Department,Entity,Transaction Date,Expense Type,Expense Area,PES Category,Supplier,Transaction No.,Amount
DEPARTMENT OF ENERGY AND CLIMATE CHANGE,THE COAL AUTHORITY,05/12/2014,MILEAGE PAYMENTS,BOARD,FUELS/LUBRCNT/GAS-FUELS,STAFF EXPENSES CONTROL,0000216171,70.20
DEPARTMENT OF ENERGY AND CLIMATE CHANGE,THE COAL AUTHORITY,05/12/2014,SUBSISTENCE ALLOWANCES,BOARD,FACILITIES - FOOD,STAFF EXPENSES CONTROL,0000216171,90.50
DEPARTMENT OF ENERGY AND CLIMATE CHANGE,THE COAL AUTHORITY,30/11/2014,HOTEL ACCOMMODATION,BOARD,TRAVEL&EVENTS-HOTELS,REDFERN TRAVEL LTD,0000216228,298.29
DEPARTMENT OF ENERGY AND CLIMATE CHANGE,THE COAL AUTHORITY,10/12/2014,FARES - PUBLIC TRANSPORT,BOARD,TRAVEL&EVENTS-TAXI,STAFF EXPENSES CONTROL,0000216293,6.00
DEPARTMENT OF ENERGY AND CLIMATE CHANGE,THE COAL AUTHORITY,10/12/2014,FARES - RAIL,BOARD,TRAVEL&EVENTS-RAIL,STAFF EXPENSES CONTROL,0000216293,144.00
DEPARTMENT OF ENERGY AND CLIMATE CHANGE,THE COAL AUTHORITY,15/12/2014,INCIDENTALS,BUSINESS DEVELOPMENT,VEHICLES-FLEET MANAGEMENT,STAFF EXPENSES CONTROL,0000216422,9.17
DEPARTMENT OF ENERGY AND CLIMATE CHANGE,THE COAL AUTHORITY,15/12/2014,MILEAGE PAYMENTS,BUSINESS DEVELOPMENT,FUELS/LUBRCNT/GAS-FUELS,STAFF EXPENSES CONTROL,0000216422,47.70
DEPARTMENT OF ENERGY AND CLIMATE CHANGE,THE COAL AUTHORITY,15/12/2014,SUBSISTENCE ALLOWANCES,BUSINESS DEVELOPMENT,FACILITIES - FOOD,STAFF EXPENSES CONTROL,0000216422,7.50
DEPARTMENT OF ENERGY AND CLIMATE CHANGE,THE COAL AUTHORITY,08/12/2014,INCIDENTALS,BUSINESS DEVELOPMENT,VEHICLES-FLEET MANAGEMENT,COMPANY BARCLAYCARD,0000216491,8.33
DEPARTMENT OF ENERGY AND CLIMATE CHANGE,THE COAL AUTHORITY,08/12/2014,SUBSISTENCE ALLOWANCES,BUSINESS DEVELOPMENT,FACILITIES - FOOD,COMPANY BARCLAYCARD,0000216491,11.04
DEPARTMENT OF ENERGY AND CLIMATE CHANGE,THE COAL AUTHORITY,30/11/2014,FARES - RAIL,CHIEF EXECUTIVE,TRAVEL&EVENTS-RAIL,REDFERN TRAVEL LTD,0000216227,260.25
DEPARTMENT OF ENERGY AND CLIMATE CHANGE,THE COAL AUTHORITY,30/11/2014,HOTEL ACCOMMODATION,CHIEF EXECUTIVE,TRAVEL&EVENTS-HOTELS,REDFERN TRAVEL LTD,0000216228,166.30
DEPARTMENT OF ENERGY AND CLIMATE CHANGE,THE COAL AUTHORITY,08/12/2014,STAFF EVENTS,CHIEF EXECUTIVE,FACILITIES - FOOD,COMPANY BARCLAYCARD,0000216295,22.45
DEPARTMENT OF ENERGY AND CLIMATE CHANGE,THE COAL AUTHORITY,08/12/2014,STAFF EVENTS,CHIEF EXECUTIVE,FACILITIES - FOOD,COMPANY BARCLAYCARD,0000216374,327.62
DEPARTMENT OF ENERGY AND CLIMATE CHANGE,THE COAL AUTHORITY,08/12/2014,PROFESSIONAL SUBSCRIPTIONS,CHIEF EXECUTIVE,PERSONNEL RLTD-HR BUS PRCS O/S,COMPANY BARCLAYCARD,0000216377,259.00
DEPARTMENT OF ENERGY AND CLIMATE CHANGE,THE COAL AUTHORITY,15/12/2014,MILEAGE PAYMENTS,CHIEF EXECUTIVE,FUELS/LUBRCNT/GAS-FUELS,STAFF EXPENSES CONTROL,0000216423,44.88
DEPARTMENT OF ENERGY AND CLIMATE CHANGE,THE COAL AUTHORITY,15/12/2014,SUBSISTENCE ALLOWANCES,CHIEF EXECUTIVE,FACILITIES - FOOD,STAFF EXPENSES CONTROL,0000216423,17.44
DEPARTMENT OF ENERGY AND CLIMATE CHANGE,THE COAL AUTHORITY,08/12/2014,INCIDENTALS,CHIEF EXECUTIVE,VEHICLES-FLEET MANAGEMENT,COMPANY BARCLAYCARD,0000216483,29.66
DEPARTMENT OF ENERGY AND CLIMATE CHANGE,THE COAL AUTHORITY,08/12/2014,SUBSISTENCE ALLOWANCES,CHIEF EXECUTIVE,FACILITIES - FOOD,COMPANY BARCLAYCARD,0000216483,4.67
DEPARTMENT OF ENERGY AND CLIMATE CHANGE,THE COAL AUTHORITY,03/12/2014,LEGAL COSTS,CORPORATE AFFAIRS,PROF SER-LEGAL SERVICES,DLA PIPER UK LLP,0000216120,8724.00
DEPARTMENT OF ENERGY AND CLIMATE CHANGE,THE COAL AUTHORITY,30/11/2014,FARES - RAIL,CORPORATE AFFAIRS,TRAVEL&EVENTS-RAIL,REDFERN TRAVEL LTD,0000216227,183.57
DEPARTMENT OF ENERGY AND CLIMATE CHANGE,THE COAL AUTHORITY,30/11/2014,PUBLIC RELATIONS,CORPORATE AFFAIRS,MARKETING & MEDIA-PROMOTION,GORKANA GROUP LTD,0000216357,180.23
DEPARTMENT OF ENERGY AND CLIMATE CHANGE,THE COAL AUTHORITY,30/11/2014,PUBLIC RELATIONS,CORPORATE AFFAIRS,MARKETING & MEDIA-PROMOTION,GORKANA GROUP LTD,0000216358,477.90
DEPARTMENT OF ENERGY AND CLIMATE CHANGE,THE COAL AUTHORITY,30/11/2014,PUBLIC RELATIONS,CORPORATE AFFAIRS,MARKETING & MEDIA-PROMOTION,SHARPE PRITCHARD,0000216367,430.00
DEPARTMENT OF ENERGY AND CLIMATE CHANGE,THE COAL AUTHORITY,13/11/2014,TRAINING AND EDUCATION,CORPORATE PROJECT OFFICE,PROF SER LRNG&DEV-STAFF TRNING,OE CAM LLP,0000215941,600.76
DEPARTMENT OF ENERGY AND CLIMATE CHANGE,THE COAL AUTHORITY,28/11/2014,PAYMENTS TO AGENCIES FOR TEMPS,CORPORATE PROJECT OFFICE,PROF SER TMP STFF-SPCLST CNTRT,KEY PERSONNEL SOLUTIONS L,0000216057,1375.45
DEPARTMENT OF ENERGY AND CLIMATE CHANGE,THE COAL AUTHORITY,30/11/2014,FARES - RAIL,CORPORATE PROJECT OFFICE,TRAVEL&EVENTS-RAIL,REDFERN TRAVEL LTD,0000216227,156.60
DEPARTMENT OF ENERGY AND CLIMATE CHANGE,THE COAL AUTHORITY,05/12/2014,PAYMENTS TO AGENCIES FOR TEMPS,CORPORATE PROJECT OFFICE,PROF SER TMP STFF-SPCLST CNTRT,KEY PERSONNEL SOLUTIONS L,0000216242,1375.45
DEPARTMENT OF ENERGY AND CLIMATE CHANGE,THE COAL AUTHORITY,08/12/2014,PUBLICATIONS,CORPORATE PROJECT OFFICE,OPRTNL GOODS&SERV-DEVLPNG MTRL,COMPANY BARCLAYCARD,0000216350,103.25
DEPARTMENT OF ENERGY AND CLIMATE CHANGE,THE COAL AUTHORITY,12/12/2014,PAYMENTS TO AGENCIES FOR TEMPS,CORPORATE PROJECT OFFICE,PROF SER TMP STFF-SPCLST CNTRT,KEY PERSONNEL SOLUTIONS L,0000216454,1375.45
DEPARTMENT OF ENERGY AND CLIMATE CHANGE,THE COAL AUTHORITY,11/12/2014,DAMP PROOF SURVEY FEES,DAMPPROOF/TIMBER TREATMENT,"CONSTRUCTION-BLD,REPR&MAINTNCE",REFUND NESS TIMBER PRESER,0000216342,72.00
DEPARTMENT OF ENERGY AND CLIMATE CHANGE,THE COAL AUTHORITY,21/07/2014,M/W SLUDGE DISPOSAL,ENVIRONMENT,CONSTRUCTION-MAIN CONTRACTORS,INTEGRATED WATER SERVICES,0000212646,29240.41
DEPARTMENT OF ENERGY AND CLIMATE CHANGE,THE COAL AUTHORITY,01/10/2014,M/W SCOPING/FEASIBILITY/CONCEP,ENVIRONMENT,PROF SER TECH-ENGINEERING SER,MOUCHEL LTD,0000214485,494.47
DEPARTMENT OF ENERGY AND CLIMATE CHANGE,THE COAL AUTHORITY,13/10/2014,CURR YR ADDNS MINEWATER SCHEME,ENVIRONMENT,CONSTRUCTION-MAIN CONTRACTORS,INTEGRATED WATER SERVICES,0000215058,9384.92
DEPARTMENT OF ENERGY AND CLIMATE CHANGE,THE COAL AUTHORITY,27/10/2014,M/W CHEMICAL OPERATIONAL,ENVIRONMENT,ENGRNG GOODS-NON-MDICL CHMCLS,BIOCHEMICA UK LIMITED,0000215243,524.00
DEPARTMENT OF ENERGY AND CLIMATE CHANGE,THE COAL AUTHORITY,24/10/2014,M/W CHEMICAL OPERATIONAL,ENVIRONMENT,ENGRNG GOODS-NON-MDICL CHMCLS,BIOCHEMICA UK LIMITED,0000215244,4700.00
DEPARTMENT OF ENERGY AND CLIMATE CHANGE,THE COAL AUTHORITY,31/10/2014,CURR YR ADDNS MINEWATER SCHEME,ENVIRONMENT,PROF SER TECH-ENGINEERING SER,MOTT MACDONALD LTD,0000215248,12084.40
DEPARTMENT OF ENERGY AND CLIMATE CHANGE,THE COAL AUTHORITY,31/10/2014,M/W SCOPING/FEASIBILITY/CONCEP,ENVIRONMENT,PROF SER TECH-ENGINEERING SER,MOTT MACDONALD LTD,0000215251,620.50
DEPARTMENT OF ENERGY AND CLIMATE CHANGE,THE COAL AUTHORITY,29/10/2014,M/W SCOPING/FEASIBILITY/CONCEP,ENVIRONMENT,PROF SER TECH-ENGINEERING SER,MOTT MACDONALD LTD,0000215252,4898.60
DEPARTMENT OF ENERGY AND CLIMATE CHANGE,THE COAL AUTHORITY,28/10/2014,M/W SCOPING/FEASIBILITY/CONCEP,ENVIRONMENT,PROF SER TECH-ENGINEERING SER,ATKINS LIMITED,0000215256,156.00
DEPARTMENT OF ENERGY AND CLIMATE CHANGE,THE COAL AUTHORITY,28/10/2014,CURR YR ADDNS MINEWATER SCHEME,ENVIRONMENT,PROF SER TECH-ENGINEERING SER,ATKINS LIMITED,0000215257,760.00
DEPARTMENT OF ENERGY AND CLIMATE CHANGE,THE COAL AUTHORITY,13/10/2014,M/W POWER COSTS,ENVIRONMENT,ENERGY&UTILITIES-ELECTRICITY,PROFESSIONAL COST MANAGEM,0000215271,1818.49
DEPARTMENT OF ENERGY AND CLIMATE CHANGE,THE COAL AUTHORITY,13/10/2014,M/W POWER COSTS,ENVIRONMENT,ENERGY&UTILITIES-ELECTRICITY,PROFESSIONAL COST MANAGEM,0000215273,2969.58
DEPARTMENT OF ENERGY AND CLIMATE CHANGE,THE COAL AUTHORITY,31/10/2014,PROJECT MANAGEMENT-BOREHOLES,ENVIRONMENT,PROF SER TECH-ENGINEERING SER,JMC ENGINEERING (UK) LTD,0000215280,2318.00
DEPARTMENT OF ENERGY AND CLIMATE CHANGE,THE COAL AUTHORITY,31/10/2014,M/W LANDSCAPING SUPERVISION,ENVIRONMENT,PROF SER TECH-ENGINEERING SER,JMC ENGINEERING (UK) LTD,0000215287,806.60
DEPARTMENT OF ENERGY AND CLIMATE CHANGE,THE COAL AUTHORITY,31/10/2014,M/W LANDSCAPING SUPERVISION,ENVIRONMENT,PROF SER-ENVIRONMENTAL SRVICES,JMC ENGINEERING (UK) LTD,0000215288,1245.30
DEPARTMENT OF ENERGY AND CLIMATE CHANGE,THE COAL AUTHORITY,31/10/2014,M/W LANDSCAPING SUPERVISION,ENVIRONMENT,PROF SER TECH-ENGINEERING SER,JMC ENGINEERING (UK) LTD,0000215295,273.80
DEPARTMENT OF ENERGY AND CLIMATE CHANGE,THE COAL AUTHORITY,29/10/2014,M/W CHEMICAL OPERATIONAL,ENVIRONMENT,ENGRNG GOODS-NON-MDICL CHMCLS,BIOCHEMICA UK LIMITED,0000215318,524.00
DEPARTMENT OF ENERGY AND CLIMATE CHANGE,THE COAL AUTHORITY,29/10/2014,M/W CHEMICAL OPERATIONAL,ENVIRONMENT,ENGRNG GOODS-NON-MDICL CHMCLS,GOLDCREST CHEMICALS LIMIT,0000215319,3169.15
DEPARTMENT OF ENERGY AND CLIMATE CHANGE,THE COAL AUTHORITY,29/10/2014,M/W CHEMICAL OPERATIONAL,ENVIRONMENT,ENGRNG GOODS-NON-MDICL CHMCLS,GOLDCREST CHEMICALS LIMIT,0000215320,3277.62
DEPARTMENT OF ENERGY AND CLIMATE CHANGE,THE COAL AUTHORITY,23/10/2014,CONSULTANTS OPERATIONS,ENVIRONMENT,CONSTRUCTION-CNSTRN SER PROVDR,HYDRO LOGIC SERVICES LLP,0000215324,1610.00
DEPARTMENT OF ENERGY AND CLIMATE CHANGE,THE COAL AUTHORITY,24/10/2014,M/W SCOPING/FEASIBILITY/CONCEP,ENVIRONMENT,PROF SER TECH-ENGINEERING SER,ENVIRONMENT AGENCY,0000215326,168.00
DEPARTMENT OF ENERGY AND CLIMATE CHANGE,THE COAL AUTHORITY,05/11/2014,M/W CONTRCTR OPRNTL MTHLY MAIN,ENVIRONMENT,PROF SER CNSLTNCY-PPM CNSLTNCY,INTEGRATED WATER SERVICES,0000215354,314.56
DEPARTMENT OF ENERGY AND CLIMATE CHANGE,THE COAL AUTHORITY,05/11/2014,M/W CONTRCTR OPRNTL MTHLY MAIN,ENVIRONMENT,PROF SER CNSLTNCY-PPM CNSLTNCY,INTEGRATED WATER SERVICES,0000215354,209.72
DEPARTMENT OF ENERGY AND CLIMATE CHANGE,THE COAL AUTHORITY,05/11/2014,M/W CONTRCTR OPRNTL MTHLY MAIN,ENVIRONMENT,PROF SER CNSLTNCY-PPM CNSLTNCY,INTEGRATED WATER SERVICES,0000215354,630.76
DEPARTMENT OF ENERGY AND CLIMATE CHANGE,THE COAL AUTHORITY,05/11/2014,M/W CONTRCTR OPRNTL MTHLY MAIN,ENVIRONMENT,PROF SER CNSLTNCY-PPM CNSLTNCY,INTEGRATED WATER SERVICES,0000215354,629.12
DEPARTMENT OF ENERGY AND CLIMATE CHANGE,THE COAL AUTHORITY,05/11/2014,M/W CONTRCTR OPRNTL MTHLY MAIN,ENVIRONMENT,PROF SER CNSLTNCY-PPM CNSLTNCY,INTEGRATED WATER SERVICES,0000215354,1270.31
DEPARTMENT OF ENERGY AND CLIMATE CHANGE,THE COAL AUTHORITY,05/11/2014,M/W CONTRCTR OPRNTL MTHLY MAIN,ENVIRONMENT,PROF SER CNSLTNCY-PPM CNSLTNCY,INTEGRATED WATER SERVICES,0000215354,419.44
DEPARTMENT OF ENERGY AND CLIMATE CHANGE,THE COAL AUTHORITY,05/11/2014,M/W CONTRCTR OPRNTL MTHLY MAIN,ENVIRONMENT,PROF SER CNSLTNCY-PPM CNSLTNCY,INTEGRATED WATER SERVICES,0000215354,314.56
DEPARTMENT OF ENERGY AND CLIMATE CHANGE,THE COAL AUTHORITY,05/11/2014,M/W CONTRCTR OPRNTL MTHLY MAIN,ENVIRONMENT,PROF SER CNSLTNCY-PPM CNSLTNCY,INTEGRATED WATER SERVICES,0000215354,688.58
DEPARTMENT OF ENERGY AND CLIMATE CHANGE,THE COAL AUTHORITY,05/11/2014,M/W CONTRCTR OPRNTL MTHLY MAIN,ENVIRONMENT,PROF SER CNSLTNCY-PPM CNSLTNCY,INTEGRATED WATER SERVICES,0000215354,314.56
DEPARTMENT OF ENERGY AND CLIMATE CHANGE,THE COAL AUTHORITY,05/11/2014,M/W CONTRCTR OPRNTL MTHLY MAIN,ENVIRONMENT,PROF SER CNSLTNCY-PPM CNSLTNCY,INTEGRATED WATER SERVICES,0000215354,209.72
DEPARTMENT OF ENERGY AND CLIMATE CHANGE,THE COAL AUTHORITY,05/11/2014,M/W CONTRCTR OPRNTL MTHLY MAIN,ENVIRONMENT,PROF SER CNSLTNCY-PPM CNSLTNCY,INTEGRATED WATER SERVICES,0000215354,209.72
DEPARTMENT OF ENERGY AND CLIMATE CHANGE,THE COAL AUTHORITY,05/11/2014,M/W CONTRCTR OPRNTL MTHLY MAIN,ENVIRONMENT,PROF SER CNSLTNCY-PPM CNSLTNCY,INTEGRATED WATER SERVICES,0000215354,419.44
DEPARTMENT OF ENERGY AND CLIMATE CHANGE,THE COAL AUTHORITY,05/11/2014,M/W CONTRCTR OPRNTL MTHLY MAIN,ENVIRONMENT,PROF SER CNSLTNCY-PPM CNSLTNCY,INTEGRATED WATER SERVICES,0000215354,629.12
DEPARTMENT OF ENERGY AND CLIMATE CHANGE,THE COAL AUTHORITY,05/11/2014,M/W CONTRCTR OPRNTL MTHLY MAIN,ENVIRONMENT,PROF SER CNSLTNCY-PPM CNSLTNCY,INTEGRATED WATER SERVICES,0000215354,630.76
DEPARTMENT OF ENERGY AND CLIMATE CHANGE,THE COAL AUTHORITY,05/11/2014,M/W CONTRCTR OPRNTL MTHLY MAIN,ENVIRONMENT,PROF SER CNSLTNCY-PPM CNSLTNCY,INTEGRATED WATER SERVICES,0000215354,773.03
DEPARTMENT OF ENERGY AND CLIMATE CHANGE,THE COAL AUTHORITY,05/11/2014,M/W CONTRCTR OPRNTL MTHLY MAIN,ENVIRONMENT,PROF SER CNSLTNCY-PPM CNSLTNCY,INTEGRATED WATER SERVICES,0000215354,314.56
DEPARTMENT OF ENERGY AND CLIMATE CHANGE,THE COAL AUTHORITY,05/11/2014,M/W CONTRCTR OPRNTL MTHLY MAIN,ENVIRONMENT,PROF SER CNSLTNCY-PPM CNSLTNCY,INTEGRATED WATER SERVICES,0000215354,629.12
DEPARTMENT OF ENERGY AND CLIMATE CHANGE,THE COAL AUTHORITY,05/11/2014,M/W CONTRCTR OPRNTL MTHLY MAIN,ENVIRONMENT,PROF SER CNSLTNCY-PPM CNSLTNCY,INTEGRATED WATER SERVICES,0000215354,209.72
DEPARTMENT OF ENERGY AND CLIMATE CHANGE,THE COAL AUTHORITY,05/11/2014,M/W CONTRCTR OPRNTL MTHLY MAIN,ENVIRONMENT,PROF SER CNSLTNCY-PPM CNSLTNCY,INTEGRATED WATER SERVICES,0000215354,1258.24
DEPARTMENT OF ENERGY AND CLIMATE CHANGE,THE COAL AUTHORITY,05/11/2014,M/W CONTRCTR OPRNTL MTHLY MAIN,ENVIRONMENT,PROF SER CNSLTNCY-PPM CNSLTNCY,INTEGRATED WATER SERVICES,0000215354,209.72
DEPARTMENT OF ENERGY AND CLIMATE CHANGE,THE COAL AUTHORITY,31/10/2014,LIABILITY SITE MONTHLY MAINT,ENVIRONMENT,PROF SER CNSLTNCY-PPM CNSLTNCY,INTEGRATED WATER SERVICES,0000215358,5355.00
DEPARTMENT OF ENERGY AND CLIMATE CHANGE,THE COAL AUTHORITY,31/10/2014,M/W CONTRCTR OPRNTL MTHLY MAIN,ENVIRONMENT,PROF SER CNSLTNCY-PPM CNSLTNCY,INTEGRATED WATER SERVICES,0000215358,5355.00
DEPARTMENT OF ENERGY AND CLIMATE CHANGE,THE COAL AUTHORITY,06/11/2014,M/W CNTRCTR-OPRTNL MNTLY TSKS,ENVIRONMENT,CONSTRUCTION-MAIN CONTRACTORS,INTEGRATED WATER SERVICES,0000215390,634.65
DEPARTMENT OF ENERGY AND CLIMATE CHANGE,THE COAL AUTHORITY,06/11/2014,M/W CNTRCTR-OPRTNL MNTLY TSKS,ENVIRONMENT,CONSTRUCTION-MAIN CONTRACTORS,INTEGRATED WATER SERVICES,0000215390,671.00
DEPARTMENT OF ENERGY AND CLIMATE CHANGE,THE COAL AUTHORITY,06/11/2014,M/W PUMPING TESTS,ENVIRONMENT,CONSTRUCTION-MAIN CONTRACTORS,INTEGRATED WATER SERVICES,0000215392,10975.06
DEPARTMENT OF ENERGY AND CLIMATE CHANGE,THE COAL AUTHORITY,28/10/2014,M/W CNTRCTR-OPRTNL MNTLY TSKS,ENVIRONMENT,CONSTRUCTION-MAIN CONTRACTORS,INTEGRATED WATER SERVICES,0000215393,6537.79
DEPARTMENT OF ENERGY AND CLIMATE CHANGE,THE COAL AUTHORITY,29/10/2014,CURR YR ADDNS MINEWATER SCHEME,ENVIRONMENT,CONSTRUCTION-MAIN CONTRACTORS,INTEGRATED WATER SERVICES,0000215394,59418.30
DEPARTMENT OF ENERGY AND CLIMATE CHANGE,THE COAL AUTHORITY,11/11/2014,M/W CHEMICAL OPERATIONAL,ENVIRONMENT,ENGRNG GOODS-NON-MDICL CHMCLS,UNIVAR B V,0000215508,3420.00
DEPARTMENT OF ENERGY AND CLIMATE CHANGE,THE COAL AUTHORITY,05/11/2014,M/W SCOPING/FEASIBILITY/CONCEP,ENVIRONMENT,PROF SER TECH-ENGINEERING SER,URS INFRASTRUCT & ENV UK,0000215509,993.72
DEPARTMENT OF ENERGY AND CLIMATE CHANGE,THE COAL AUTHORITY,11/11/2014,CURR YR ADDNS MINEWATER SCHEME,ENVIRONMENT,CONSTRUCTION-MAIN CONTRACTORS,INTEGRATED WATER SERVICES,0000215518,6797.42
DEPARTMENT OF ENERGY AND CLIMATE CHANGE,THE COAL AUTHORITY,11/11/2014,M/W CNTRCTR-OPRTNL MNTLY TSKS,ENVIRONMENT,CONSTRUCTION-MAIN CONTRACTORS,INTEGRATED WATER SERVICES,0000215518,15.04
DEPARTMENT OF ENERGY AND CLIMATE CHANGE,THE COAL AUTHORITY,11/11/2014,M/W CNTRCTR-OPRTNL MNTLY TSKS,ENVIRONMENT,CONSTRUCTION-MAIN CONTRACTORS,INTEGRATED WATER SERVICES,0000215518,1522.63
DEPARTMENT OF ENERGY AND CLIMATE CHANGE,THE COAL AUTHORITY,11/11/2014,M/W CNTRCTR-OPRTNL MNTLY TSKS,ENVIRONMENT,CONSTRUCTION-MAIN CONTRACTORS,INTEGRATED WATER SERVICES,0000215518,294.34
DEPARTMENT OF ENERGY AND CLIMATE CHANGE,THE COAL AUTHORITY,11/11/2014,M/W CNTRCTR-OPRTNL MNTLY TSKS,ENVIRONMENT,CONSTRUCTION-MAIN CONTRACTORS,INTEGRATED WATER SERVICES,0000215518,1373.58
DEPARTMENT OF ENERGY AND CLIMATE CHANGE,THE COAL AUTHORITY,11/11/2014,M/W CHEMICAL OPERATIONAL,ENVIRONMENT,ENGRNG GOODS-NON-MDICL CHMCLS,INTEGRATED WATER SERVICES,0000215520,816.28
DEPARTMENT OF ENERGY AND CLIMATE CHANGE,THE COAL AUTHORITY,11/11/2014,M/W CNTRCTR-OPRTNL MNTLY TSKS,ENVIRONMENT,CONSTRUCTION-MAIN CONTRACTORS,INTEGRATED WATER SERVICES,0000215520,656.36
DEPARTMENT OF ENERGY AND CLIMATE CHANGE,THE COAL AUTHORITY,11/11/2014,M/W CNTRCTR-OPRTNL MNTLY TSKS,ENVIRONMENT,CONSTRUCTION-MAIN CONTRACTORS,INTEGRATED WATER SERVICES,0000215520,168.75
DEPARTMENT OF ENERGY AND CLIMATE CHANGE,THE COAL AUTHORITY,11/11/2014,M/W CNTRCTR-OPRTNL MNTLY TSKS,ENVIRONMENT,CONSTRUCTION-MAIN CONTRACTORS,INTEGRATED WATER SERVICES,0000215520,374.05
DEPARTMENT OF ENERGY AND CLIMATE CHANGE,THE COAL AUTHORITY,11/11/2014,M/W CNTRCTR-OPRTNL MNTLY TSKS,ENVIRONMENT,CONSTRUCTION-MAIN CONTRACTORS,INTEGRATED WATER SERVICES,0000215520,214.41
DEPARTMENT OF ENERGY AND CLIMATE CHANGE,THE COAL AUTHORITY,11/11/2014,M/W CNTRCTR-OPRTNL MNTLY TSKS,ENVIRONMENT,CONSTRUCTION-MAIN CONTRACTORS,INTEGRATED WATER SERVICES,0000215520,1070.69
DEPARTMENT OF ENERGY AND CLIMATE CHANGE,THE COAL AUTHORITY,07/11/2014,CONSULTANTS OPERATIONS,ENVIRONMENT,CONSTRUCTION-MAIN CONTRACTORS,INTEGRATED WATER SERVICES,0000215521,821.79
DEPARTMENT OF ENERGY AND CLIMATE CHANGE,THE COAL AUTHORITY,07/11/2014,M/W CNTRCTR-OPRTNL MNTLY TSKS,ENVIRONMENT,CONSTRUCTION-MAIN CONTRACTORS,INTEGRATED WATER SERVICES,0000215522,1100.44
DEPARTMENT OF ENERGY AND CLIMATE CHANGE,THE COAL AUTHORITY,07/11/2014,CONSULTANTS OPERATIONS,ENVIRONMENT,CONSTRUCTION-MAIN CONTRACTORS,INTEGRATED WATER SERVICES,0000215523,1136.17
DEPARTMENT OF ENERGY AND CLIMATE CHANGE,THE COAL AUTHORITY,10/11/2014,M/W CHEMICAL OPERATIONAL,ENVIRONMENT,ENGRNG GOODS-NON-MDICL CHMCLS,INTEGRATED WATER SERVICES,0000215524,790.98
DEPARTMENT OF ENERGY AND CLIMATE CHANGE,THE COAL AUTHORITY,10/11/2014,M/W CNTRCTR-OPRTNL MNTLY TSKS,ENVIRONMENT,PROF SER-ENVIRONMENTAL SRVICES,INTEGRATED WATER SERVICES,0000215524,591.46
DEPARTMENT OF ENERGY AND CLIMATE CHANGE,THE COAL AUTHORITY,10/11/2014,M/W CNTRCTR-OPRTNL MNTLY TSKS,ENVIRONMENT,CONSTRUCTION-MAIN CONTRACTORS,INTEGRATED WATER SERVICES,0000215524,1379.48
DEPARTMENT OF ENERGY AND CLIMATE CHANGE,THE COAL AUTHORITY,10/11/2014,M/W CNTRCTR-OPRTNL MNTLY TSKS,ENVIRONMENT,CONSTRUCTION-MAIN CONTRACTORS,INTEGRATED WATER SERVICES,0000215524,47.40
DEPARTMENT OF ENERGY AND CLIMATE CHANGE,THE COAL AUTHORITY,10/11/2014,M/W CNTRCTR-OPRTNL MNTLY TSKS,ENVIRONMENT,CONSTRUCTION-MAIN CONTRACTORS,INTEGRATED WATER SERVICES,0000215524,327.18
DEPARTMENT OF ENERGY AND CLIMATE CHANGE,THE COAL AUTHORITY,10/11/2014,M/W CNTRCTR-OPRTNL MNTLY TSKS,ENVIRONMENT,CONSTRUCTION-MAIN CONTRACTORS,INTEGRATED WATER SERVICES,0000215524,1506.04
DEPARTMENT OF ENERGY AND CLIMATE CHANGE,THE COAL AUTHORITY,10/11/2014,M/W CNTRCTR-OPRTNL MNTLY TSKS,ENVIRONMENT,CONSTRUCTION-MAIN CONTRACTORS,INTEGRATED WATER SERVICES,0000215524,572.47
DEPARTMENT OF ENERGY AND CLIMATE CHANGE,THE COAL AUTHORITY,10/11/2014,M/W CNTRCTR-OPRTNL MNTLY TSKS,ENVIRONMENT,CONSTRUCTION-MAIN CONTRACTORS,INTEGRATED WATER SERVICES,0000215524,341.41
DEPARTMENT OF ENERGY AND CLIMATE CHANGE,THE COAL AUTHORITY,10/11/2014,M/W CNTRCTR-OPRTNL MNTLY TSKS,ENVIRONMENT,CONSTRUCTION-MAIN CONTRACTORS,INTEGRATED WATER SERVICES,0000215524,897.86
DEPARTMENT OF ENERGY AND CLIMATE CHANGE,THE COAL AUTHORITY,10/11/2014,M/W CNTRCTR-OPRTNL MNTLY TSKS,ENVIRONMENT,CONSTRUCTION-MAIN CONTRACTORS,INTEGRATED WATER SERVICES,0000215525,995.77
DEPARTMENT OF ENERGY AND CLIMATE CHANGE,THE COAL AUTHORITY,10/11/2014,M/W CNTRCTR-OPRTNL MNTLY TSKS,ENVIRONMENT,CONSTRUCTION-MAIN CONTRACTORS,INTEGRATED WATER SERVICES,0000215526,3010.44
DEPARTMENT OF ENERGY AND CLIMATE CHANGE,THE COAL AUTHORITY,10/11/2014,M/W CNTRCTR-OPRTNL MNTLY TSKS,ENVIRONMENT,CONSTRUCTION-MAIN CONTRACTORS,INTEGRATED WATER SERVICES,0000215527,1945.40
DEPARTMENT OF ENERGY AND CLIMATE CHANGE,THE COAL AUTHORITY,10/11/2014,M/W SLUDGE DISPOSAL,ENVIRONMENT,CONSTRUCTION-MAIN CONTRACTORS,INTEGRATED WATER SERVICES,0000215528,15387.06
DEPARTMENT OF ENERGY AND CLIMATE CHANGE,THE COAL AUTHORITY,10/11/2014,M/W CNTRCTR-OPRTNL MNTLY TSKS,ENVIRONMENT,CONSTRUCTION-MAIN CONTRACTORS,INTEGRATED WATER SERVICES,0000215529,6397.20
DEPARTMENT OF ENERGY AND CLIMATE CHANGE,THE COAL AUTHORITY,10/11/2014,CURR YR ADDNS MINEWATER SCHEME,ENVIRONMENT,CONSTRUCTION-MAIN CONTRACTORS,INTEGRATED WATER SERVICES,0000215531,35827.30
DEPARTMENT OF ENERGY AND CLIMATE CHANGE,THE COAL AUTHORITY,10/11/2014,M/W SLUDGE DISPOSAL,ENVIRONMENT,CONSTRUCTION-MAIN CONTRACTORS,INTEGRATED WATER SERVICES,0000215532,8464.73
DEPARTMENT OF ENERGY AND CLIMATE CHANGE,THE COAL AUTHORITY,12/11/2014,M/W CHEMICAL OPERATIONAL,ENVIRONMENT,ENGRNG GOODS-NON-MDICL CHMCLS,BIOCHEMICA UK LIMITED,0000215637,524.00
DEPARTMENT OF ENERGY AND CLIMATE CHANGE,THE COAL AUTHORITY,10/11/2014,M/W CHEMICAL OPERATIONAL,ENVIRONMENT,ENGRNG GOODS-NON-MDICL CHMCLS,BIOCHEMICA UK LIMITED,0000215638,648.00
DEPARTMENT OF ENERGY AND CLIMATE CHANGE,THE COAL AUTHORITY,11/11/2014,WATER SAMPLING - OPERATIONAL,ENVIRONMENT,ENGRNG GOODS-NON-MDICL CHMCLS,GOLDCREST CHEMICALS LIMIT,0000215639,2919.02
DEPARTMENT OF ENERGY AND CLIMATE CHANGE,THE COAL AUTHORITY,26/10/2014,CURR YR ADDNS MINEWATER SCHEME,ENVIRONMENT,CONSTRUCTION-MAIN CONTRACTORS,J N BENTLEY LIMITED,0000215795,-289.51
DEPARTMENT OF ENERGY AND CLIMATE CHANGE,THE COAL AUTHORITY,26/10/2014,CURR YR ADDNS MINEWATER SCHEME,ENVIRONMENT,CONSTRUCTION-MAIN CONTRACTORS,J N BENTLEY LIMITED,0000215796,166332.00
DEPARTMENT OF ENERGY AND CLIMATE CHANGE,THE COAL AUTHORITY,26/10/2014,M/W REMEDIATION,ENVIRONMENT,CONSTRUCTION-MAIN CONTRACTORS,J N BENTLEY LIMITED,0000215798,1364.18
DEPARTMENT OF ENERGY AND CLIMATE CHANGE,THE COAL AUTHORITY,26/10/2014,CURR YR ADDNS MINEWATER SCHEME,ENVIRONMENT,CONSTRUCTION-MAIN CONTRACTORS,J N BENTLEY LIMITED,0000215799,4248.18
DEPARTMENT OF ENERGY AND CLIMATE CHANGE,THE COAL AUTHORITY,26/10/2014,M/W NEW SCHEME - CONSULTANCY,ENVIRONMENT,CONSTRUCTION-CNSTRN SER PROVDR,J N BENTLEY LIMITED,0000215800,691.05
DEPARTMENT OF ENERGY AND CLIMATE CHANGE,THE COAL AUTHORITY,12/11/2014,CURR YR ADDNS MINEWATER SCHEME,ENVIRONMENT,CONSTRUCTION-MAIN CONTRACTORS,SOIL ENGINEERING GEOSERVI,0000215810,1825.15
DEPARTMENT OF ENERGY AND CLIMATE CHANGE,THE COAL AUTHORITY,03/11/2014,M/W POWER COSTS,ENVIRONMENT,ENERGY&UTILITIES-ELECTRICITY,NATIONAL COAL MINING MUSE,0000215811,11474.97
DEPARTMENT OF ENERGY AND CLIMATE CHANGE,THE COAL AUTHORITY,14/11/2014,R&D-EXTERNAL COSTS,ENVIRONMENT,PROF SER TECH-FORENSIC/LAB SER,ENVIRONMENTAL SCIENTIFICS,0000215825,368.96
DEPARTMENT OF ENERGY AND CLIMATE CHANGE,THE COAL AUTHORITY,12/11/2014,R&D-EXTERNAL COSTS,ENVIRONMENT,PROF SER TECH-FORENSIC/LAB SER,ENVIRONMENTAL SCIENTIFICS,0000215826,368.96
DEPARTMENT OF ENERGY AND CLIMATE CHANGE,THE COAL AUTHORITY,18/11/2014,R&D-EXTERNAL COSTS,ENVIRONMENT,PROF SER TECH-FORENSIC/LAB SER,ENVIRONMENTAL SCIENTIFICS,0000215827,368.96
DEPARTMENT OF ENERGY AND CLIMATE CHANGE,THE COAL AUTHORITY,18/11/2014,R&D-EXTERNAL COSTS,ENVIRONMENT,PROF SER TECH-FORENSIC/LAB SER,ENVIRONMENTAL SCIENTIFICS,0000215828,368.96
DEPARTMENT OF ENERGY AND CLIMATE CHANGE,THE COAL AUTHORITY,21/11/2014,M/W PUMPING TESTS,ENVIRONMENT,CONSTRUCTION-MAIN CONTRACTORS,INTEGRATED WATER SERVICES,0000215829,3239.77
DEPARTMENT OF ENERGY AND CLIMATE CHANGE,THE COAL AUTHORITY,18/11/2014,M/W CNTRCTR-OPRTNL MNTLY TSKS,ENVIRONMENT,ENGRNG GOODS-NON-MDICL CHMCLS,INTEGRATED WATER SERVICES,0000215831,537.85
DEPARTMENT OF ENERGY AND CLIMATE CHANGE,THE COAL AUTHORITY,18/11/2014,M/W CNTRCTR-OPRTNL MNTLY TSKS,ENVIRONMENT,CONSTRUCTION-MAIN CONTRACTORS,INTEGRATED WATER SERVICES,0000215831,1553.16
DEPARTMENT OF ENERGY AND CLIMATE CHANGE,THE COAL AUTHORITY,10/11/2014,M/W CNTRCTR-OPRTNL MNTLY TSKS,ENVIRONMENT,CONSTRUCTION-MAIN CONTRACTORS,INTEGRATED WATER SERVICES,0000215832,1028.98
DEPARTMENT OF ENERGY AND CLIMATE CHANGE,THE COAL AUTHORITY,20/11/2014,M/W REMEDIATION,ENVIRONMENT,CONSTRUCTION-MAIN CONTRACTORS,INTEGRATED WATER SERVICES,0000215833,10764.80
DEPARTMENT OF ENERGY AND CLIMATE CHANGE,THE COAL AUTHORITY,20/11/2014,M/W CNTRCTR-OPRTNL MNTLY TSKS,ENVIRONMENT,CONSTRUCTION-MAIN CONTRACTORS,INTEGRATED WATER SERVICES,0000215834,8438.02
DEPARTMENT OF ENERGY AND CLIMATE CHANGE,THE COAL AUTHORITY,20/11/2014,M/W CNTRCTR-OPRTNL MNTLY TSKS,ENVIRONMENT,CONSTRUCTION-MAIN CONTRACTORS,INTEGRATED WATER SERVICES,0000215835,1665.00
DEPARTMENT OF ENERGY AND CLIMATE CHANGE,THE COAL AUTHORITY,20/11/2014,M/W CNTRCTR-OPRTNL MNTLY TSKS,ENVIRONMENT,CONSTRUCTION-MAIN CONTRACTORS,INTEGRATED WATER SERVICES,0000215835,3407.73
DEPARTMENT OF ENERGY AND CLIMATE CHANGE,THE COAL AUTHORITY,20/11/2014,M/W CNTRCTR-OPRTNL MNTLY TSKS,ENVIRONMENT,CONSTRUCTION-MAIN CONTRACTORS,INTEGRATED WATER SERVICES,0000215835,1133.08
DEPARTMENT OF ENERGY AND CLIMATE CHANGE,THE COAL AUTHORITY,20/11/2014,M/W CNTRCTR-OPRTNL MNTLY TSKS,ENVIRONMENT,CONSTRUCTION-MAIN CONTRACTORS,INTEGRATED WATER SERVICES,0000215835,4789.58
DEPARTMENT OF ENERGY AND CLIMATE CHANGE,THE COAL AUTHORITY,20/11/2014,M/W CNTRCTR-OPRTNL MNTLY TSKS,ENVIRONMENT,CONSTRUCTION-MAIN CONTRACTORS,INTEGRATED WATER SERVICES,0000215835,284.50
DEPARTMENT OF ENERGY AND CLIMATE CHANGE,THE COAL AUTHORITY,20/11/2014,M/W CNTRCTR-OPRTNL MNTLY TSKS,ENVIRONMENT,CONSTRUCTION-MAIN CONTRACTORS,INTEGRATED WATER SERVICES,0000215835,594.54
DEPARTMENT OF ENERGY AND CLIMATE CHANGE,THE COAL AUTHORITY,20/11/2014,M/W REMEDIATION,ENVIRONMENT,CONSTRUCTION-MAIN CONTRACTORS,INTEGRATED WATER SERVICES,0000215835,5445.08
DEPARTMENT OF ENERGY AND CLIMATE CHANGE,THE COAL AUTHORITY,20/11/2014,M/W SLUDGE DISPOSAL,ENVIRONMENT,CONSTRUCTION-MAIN CONTRACTORS,INTEGRATED WATER SERVICES,0000215835,10504.20
DEPARTMENT OF ENERGY AND CLIMATE CHANGE,THE COAL AUTHORITY,20/11/2014,M/W CNTRCTR-OPRTNL MNTLY TSKS,ENVIRONMENT,CONSTRUCTION-MAIN CONTRACTORS,INTEGRATED WATER SERVICES,0000215837,8651.75
DEPARTMENT OF ENERGY AND CLIMATE CHANGE,THE COAL AUTHORITY,20/11/2014,CHILDCARE VOUCHERS,ENVIRONMENT,PERSONNEL RLTD-STAFF CHILDCARE,FIDELITI LIMITED,0000215838,50.00
DEPARTMENT OF ENERGY AND CLIMATE CHANGE,THE COAL AUTHORITY,21/11/2014,M/W CHEMICAL OPERATIONAL,ENVIRONMENT,ENGRNG GOODS-NON-MDICL CHMCLS,GOLDCREST CHEMICALS LIMIT,0000215865,3296.48
DEPARTMENT OF ENERGY AND CLIMATE CHANGE,THE COAL AUTHORITY,20/11/2014,R&D-EXTERNAL COSTS,ENVIRONMENT,PROF SER TECH-FORENSIC/LAB SER,ENVIRONMENTAL SCIENTIFICS,0000215866,368.96
DEPARTMENT OF ENERGY AND CLIMATE CHANGE,THE COAL AUTHORITY,20/11/2014,R&D-EXTERNAL COSTS,ENVIRONMENT,PROF SER TECH-FORENSIC/LAB SER,ENVIRONMENTAL SCIENTIFICS,0000215867,368.96
DEPARTMENT OF ENERGY AND CLIMATE CHANGE,THE COAL AUTHORITY,20/11/2014,PUMP OVERHAULS,ENVIRONMENT,LOGISTICS-WAREHOUSE&STORAGE,THE DERITEND GROUP LIMITE,0000215868,3360.00
DEPARTMENT OF ENERGY AND CLIMATE CHANGE,THE COAL AUTHORITY,19/11/2014,M/W CHEMICAL OPERATIONAL,ENVIRONMENT,ENGRNG GOODS-NON-MDICL CHMCLS,BIOCHEMICA UK LIMITED,0000215870,786.00
DEPARTMENT OF ENERGY AND CLIMATE CHANGE,THE COAL AUTHORITY,21/11/2014,PAYMENTS TO AGENCIES FOR TEMPS,ENVIRONMENT,PROF SER TMP STFF-TEMP WRKERS,KEY PERSONNEL SOLUTIONS L,0000215881,437.92
DEPARTMENT OF ENERGY AND CLIMATE CHANGE,THE COAL AUTHORITY,14/11/2014,CONSULTANTS OPERATIONS,ENVIRONMENT,PROF SER CNSLTNCY-PROP/CNSTRCN,CASTLETON CONSULTING LTD,0000215889,29362.69
DEPARTMENT OF ENERGY AND CLIMATE CHANGE,THE COAL AUTHORITY,24/11/2014,M/W RENTS PAYABLE,ENVIRONMENT,FACILITIES-BUILDING MANAGEMENT,FISHER GERMAN,0000215891,25.00
DEPARTMENT OF ENERGY AND CLIMATE CHANGE,THE COAL AUTHORITY,24/11/2014,R&D-EXTERNAL COSTS,ENVIRONMENT,PROF SER TECH-FORENSIC/LAB SER,ENVIRONMENTAL SCIENTIFICS,0000215892,368.96
DEPARTMENT OF ENERGY AND CLIMATE CHANGE,THE COAL AUTHORITY,25/11/2014,CURR YR ADDNS MINEWATER SCHEME,ENVIRONMENT,CONSTRUCTION-MAIN CONTRACTORS,INTEGRATED WATER SERVICES,0000215900,84612.03
DEPARTMENT OF ENERGY AND CLIMATE CHANGE,THE COAL AUTHORITY,27/11/2014,CURR YR ADDNS MINEWATER SCHEME,ENVIRONMENT,CONSTRUCTION-MAIN CONTRACTORS,BALFOUR BEATTY CIVIL ENG,0000215927,112775.69
DEPARTMENT OF ENERGY AND CLIMATE CHANGE,THE COAL AUTHORITY,27/11/2014,M/W REMEDIATION,ENVIRONMENT,CONSTRUCTION-MAIN CONTRACTORS,BALFOUR BEATTY CIVIL ENG,0000215928,147.66
DEPARTMENT OF ENERGY AND CLIMATE CHANGE,THE COAL AUTHORITY,27/11/2014,M/W REMEDIATION,ENVIRONMENT,CONSTRUCTION-MAIN CONTRACTORS,BALFOUR BEATTY CIVIL ENG,0000215930,219.16
DEPARTMENT OF ENERGY AND CLIMATE CHANGE,THE COAL AUTHORITY,27/11/2014,PAYMENTS TO AGENCIES FOR TEMPS,ENVIRONMENT,PROF SER TMP STFF-SPCLST CNTRT,HUXLEY ASSOCIATES,0000215944,1763.00
DEPARTMENT OF ENERGY AND CLIMATE CHANGE,THE COAL AUTHORITY,10/11/2014,M/W WATER CHARGES,ENVIRONMENT,ENERGY&UTILITIES-WATER,NORTHUMBRIAN WATER LIMITE,0000215946,2638.26
DEPARTMENT OF ENERGY AND CLIMATE CHANGE,THE COAL AUTHORITY,25/11/2014,R&D-EXTERNAL COSTS,ENVIRONMENT,PROF SER TECH-FORENSIC/LAB SER,ENVIRONMENTAL SCIENTIFICS,0000215947,184.48
DEPARTMENT OF ENERGY AND CLIMATE CHANGE,THE COAL AUTHORITY,25/11/2014,R&D-EXTERNAL COSTS,ENVIRONMENT,PROF SER TECH-FORENSIC/LAB SER,ENVIRONMENTAL SCIENTIFICS,0000215947,184.48
DEPARTMENT OF ENERGY AND CLIMATE CHANGE,THE COAL AUTHORITY,25/11/2014,R&D-EXTERNAL COSTS,ENVIRONMENT,PROF SER TECH-FORENSIC/LAB SER,ENVIRONMENTAL SCIENTIFICS,0000215948,368.96
DEPARTMENT OF ENERGY AND CLIMATE CHANGE,THE COAL AUTHORITY,26/11/2014,M/W SCOPING/FEASIBILITY/CONCEP,ENVIRONMENT,PROF SER TECH-ENGINEERING SER,ATKINS LIMITED,0000215950,915.00
DEPARTMENT OF ENERGY AND CLIMATE CHANGE,THE COAL AUTHORITY,26/11/2014,M/W SCOPING/FEASIBILITY/CONCEP,ENVIRONMENT,PROF SER TECH-ENGINEERING SER,ATKINS LIMITED,0000215951,3322.50
DEPARTMENT OF ENERGY AND CLIMATE CHANGE,THE COAL AUTHORITY,26/11/2014,M/W SCOPING/FEASIBILITY/CONCEP,ENVIRONMENT,PROF SER TECH-ENGINEERING SER,ATKINS LIMITED,0000215952,1050.00
DEPARTMENT OF ENERGY AND CLIMATE CHANGE,THE COAL AUTHORITY,26/11/2014,M/W SCOPING/FEASIBILITY/CONCEP,ENVIRONMENT,PROF SER TECH-ENGINEERING SER,ATKINS LIMITED,0000215953,-1950.20
DEPARTMENT OF ENERGY AND CLIMATE CHANGE,THE COAL AUTHORITY,27/11/2014,MONITORING & FLOW MEASUREMENT,ENVIRONMENT,PROF SER CNSLTNCY-PPM CNSLTNCY,INTEGRATED WATER SERVICES,0000215954,1612.12
DEPARTMENT OF ENERGY AND CLIMATE CHANGE,THE COAL AUTHORITY,27/11/2014,LIABILITY SITE MONTHLY MAINT,ENVIRONMENT,PROF SER CNSLTNCY-PPM CNSLTNCY,INTEGRATED WATER SERVICES,0000215955,11206.20
DEPARTMENT OF ENERGY AND CLIMATE CHANGE,THE COAL AUTHORITY,27/11/2014,LIABILITY SITE MONTHLY MAINT,ENVIRONMENT,PROF SER CNSLTNCY-PPM CNSLTNCY,INTEGRATED WATER SERVICES,0000215956,5355.00
DEPARTMENT OF ENERGY AND CLIMATE CHANGE,THE COAL AUTHORITY,27/11/2014,M/W CONTRCTR OPRNTL MTHLY MAIN,ENVIRONMENT,PROF SER CNSLTNCY-PPM CNSLTNCY,INTEGRATED WATER SERVICES,0000215956,5355.00
DEPARTMENT OF ENERGY AND CLIMATE CHANGE,THE COAL AUTHORITY,27/11/2014,M/W CONTRCTR OPRNTL MTHLY MAIN,ENVIRONMENT,PROF SER CNSLTNCY-PPM CNSLTNCY,INTEGRATED WATER SERVICES,0000215957,8418.60
DEPARTMENT OF ENERGY AND CLIMATE CHANGE,THE COAL AUTHORITY,27/11/2014,M/W CONTRCTR OPRNTL MTHLY MAIN,ENVIRONMENT,PROF SER CNSLTNCY-PPM CNSLTNCY,INTEGRATED WATER SERVICES,0000215960,749.26
DEPARTMENT OF ENERGY AND CLIMATE CHANGE,THE COAL AUTHORITY,27/11/2014,M/W CONTRCTR OPRNTL MTHLY MAIN,ENVIRONMENT,PROF SER CNSLTNCY-PPM CNSLTNCY,INTEGRATED WATER SERVICES,0000215960,1887.36
DEPARTMENT OF ENERGY AND CLIMATE CHANGE,THE COAL AUTHORITY,27/11/2014,M/W CONTRCTR OPRNTL MTHLY MAIN,ENVIRONMENT,PROF SER CNSLTNCY-PPM CNSLTNCY,INTEGRATED WATER SERVICES,0000215960,4709.84
DEPARTMENT OF ENERGY AND CLIMATE CHANGE,THE COAL AUTHORITY,27/11/2014,M/W CONTRCTR OPRNTL MTHLY MAIN,ENVIRONMENT,PROF SER CNSLTNCY-PPM CNSLTNCY,INTEGRATED WATER SERVICES,0000215960,104.86
DEPARTMENT OF ENERGY AND CLIMATE CHANGE,THE COAL AUTHORITY,27/11/2014,M/W CONTRCTR OPRNTL MTHLY MAIN,ENVIRONMENT,PROF SER CNSLTNCY-PPM CNSLTNCY,INTEGRATED WATER SERVICES,0000215960,629.12
DEPARTMENT OF ENERGY AND CLIMATE CHANGE,THE COAL AUTHORITY,27/11/2014,M/W CONTRCTR OPRNTL MTHLY MAIN,ENVIRONMENT,PROF SER CNSLTNCY-PPM CNSLTNCY,INTEGRATED WATER SERVICES,0000215960,104.86
DEPARTMENT OF ENERGY AND CLIMATE CHANGE,THE COAL AUTHORITY,27/11/2014,M/W CONTRCTR OPRNTL MTHLY MAIN,ENVIRONMENT,PROF SER CNSLTNCY-PPM CNSLTNCY,INTEGRATED WATER SERVICES,0000215960,104.86
DEPARTMENT OF ENERGY AND CLIMATE CHANGE,THE COAL AUTHORITY,27/11/2014,M/W CONTRCTR OPRNTL MTHLY MAIN,ENVIRONMENT,PROF SER CNSLTNCY-PPM CNSLTNCY,INTEGRATED WATER SERVICES,0000215960,104.86
DEPARTMENT OF ENERGY AND CLIMATE CHANGE,THE COAL AUTHORITY,27/11/2014,M/W CONTRCTR OPRNTL MTHLY MAIN,ENVIRONMENT,PROF SER CNSLTNCY-PPM CNSLTNCY,INTEGRATED WATER SERVICES,0000215960,104.86
DEPARTMENT OF ENERGY AND CLIMATE CHANGE,THE COAL AUTHORITY,27/11/2014,M/W CONTRCTR OPRNTL MTHLY MAIN,ENVIRONMENT,PROF SER CNSLTNCY-PPM CNSLTNCY,INTEGRATED WATER SERVICES,0000215960,104.86
DEPARTMENT OF ENERGY AND CLIMATE CHANGE,THE COAL AUTHORITY,27/11/2014,M/W CONTRCTR OPRNTL MTHLY MAIN,ENVIRONMENT,PROF SER CNSLTNCY-PPM CNSLTNCY,INTEGRATED WATER SERVICES,0000215960,314.56
DEPARTMENT OF ENERGY AND CLIMATE CHANGE,THE COAL AUTHORITY,27/11/2014,M/W CONTRCTR OPRNTL MTHLY MAIN,ENVIRONMENT,PROF SER CNSLTNCY-PPM CNSLTNCY,INTEGRATED WATER SERVICES,0000215960,104.86
DEPARTMENT OF ENERGY AND CLIMATE CHANGE,THE COAL AUTHORITY,27/11/2014,M/W CONTRCTR OPRNTL MTHLY MAIN,ENVIRONMENT,PROF SER CNSLTNCY-PPM CNSLTNCY,INTEGRATED WATER SERVICES,0000215960,314.56
DEPARTMENT OF ENERGY AND CLIMATE CHANGE,THE COAL AUTHORITY,27/11/2014,M/W CONTRCTR OPRNTL MTHLY MAIN,ENVIRONMENT,PROF SER CNSLTNCY-PPM CNSLTNCY,INTEGRATED WATER SERVICES,0000215961,629.12
DEPARTMENT OF ENERGY AND CLIMATE CHANGE,THE COAL AUTHORITY,27/11/2014,M/W CONTRCTR OPRNTL MTHLY MAIN,ENVIRONMENT,PROF SER CNSLTNCY-PPM CNSLTNCY,INTEGRATED WATER SERVICES,0000215961,52.43
DEPARTMENT OF ENERGY AND CLIMATE CHANGE,THE COAL AUTHORITY,27/11/2014,M/W CONTRCTR OPRNTL MTHLY MAIN,ENVIRONMENT,PROF SER CNSLTNCY-PPM CNSLTNCY,INTEGRATED WATER SERVICES,0000215961,39.32
DEPARTMENT OF ENERGY AND CLIMATE CHANGE,THE COAL AUTHORITY,27/11/2014,M/W CONTRCTR OPRNTL MTHLY MAIN,ENVIRONMENT,PROF SER CNSLTNCY-PPM CNSLTNCY,INTEGRATED WATER SERVICES,0000215961,104.86
DEPARTMENT OF ENERGY AND CLIMATE CHANGE,THE COAL AUTHORITY,27/11/2014,M/W CONTRCTR OPRNTL MTHLY MAIN,ENVIRONMENT,PROF SER CNSLTNCY-PPM CNSLTNCY,INTEGRATED WATER SERVICES,0000215961,209.72
DEPARTMENT OF ENERGY AND CLIMATE CHANGE,THE COAL AUTHORITY,27/11/2014,M/W CONTRCTR OPRNTL MTHLY MAIN,ENVIRONMENT,PROF SER CNSLTNCY-PPM CNSLTNCY,INTEGRATED WATER SERVICES,0000215961,629.12
DEPARTMENT OF ENERGY AND CLIMATE CHANGE,THE COAL AUTHORITY,27/11/2014,M/W CONTRCTR OPRNTL MTHLY MAIN,ENVIRONMENT,PROF SER CNSLTNCY-PPM CNSLTNCY,INTEGRATED WATER SERVICES,0000215961,104.86
DEPARTMENT OF ENERGY AND CLIMATE CHANGE,THE COAL AUTHORITY,27/11/2014,M/W CONTRCTR OPRNTL MTHLY MAIN,ENVIRONMENT,PROF SER CNSLTNCY-PPM CNSLTNCY,INTEGRATED WATER SERVICES,0000215961,209.72
DEPARTMENT OF ENERGY AND CLIMATE CHANGE,THE COAL AUTHORITY,27/11/2014,M/W CONTRCTR OPRNTL MTHLY MAIN,ENVIRONMENT,PROF SER CNSLTNCY-PPM CNSLTNCY,INTEGRATED WATER SERVICES,0000215961,419.44
DEPARTMENT OF ENERGY AND CLIMATE CHANGE,THE COAL AUTHORITY,27/11/2014,M/W CONTRCTR OPRNTL MTHLY MAIN,ENVIRONMENT,PROF SER CNSLTNCY-PPM CNSLTNCY,INTEGRATED WATER SERVICES,0000215961,104.86
DEPARTMENT OF ENERGY AND CLIMATE CHANGE,THE COAL AUTHORITY,27/11/2014,M/W CONTRCTR OPRNTL MTHLY MAIN,ENVIRONMENT,PROF SER CNSLTNCY-PPM CNSLTNCY,INTEGRATED WATER SERVICES,0000215961,3355.36
DEPARTMENT OF ENERGY AND CLIMATE CHANGE,THE COAL AUTHORITY,27/11/2014,M/W CONTRCTR OPRNTL MTHLY MAIN,ENVIRONMENT,PROF SER CNSLTNCY-PPM CNSLTNCY,INTEGRATED WATER SERVICES,0000215961,314.56
DEPARTMENT OF ENERGY AND CLIMATE CHANGE,THE COAL AUTHORITY,27/11/2014,M/W CONTRCTR OPRNTL MTHLY MAIN,ENVIRONMENT,PROF SER CNSLTNCY-PPM CNSLTNCY,INTEGRATED WATER SERVICES,0000215961,209.72
DEPARTMENT OF ENERGY AND CLIMATE CHANGE,THE COAL AUTHORITY,27/11/2014,M/W CONTRCTR OPRNTL MTHLY MAIN,ENVIRONMENT,PROF SER CNSLTNCY-PPM CNSLTNCY,INTEGRATED WATER SERVICES,0000215961,314.56
DEPARTMENT OF ENERGY AND CLIMATE CHANGE,THE COAL AUTHORITY,27/11/2014,M/W CONTRCTR OPRNTL MTHLY MAIN,ENVIRONMENT,PROF SER CNSLTNCY-PPM CNSLTNCY,INTEGRATED WATER SERVICES,0000215961,419.44
DEPARTMENT OF ENERGY AND CLIMATE CHANGE,THE COAL AUTHORITY,27/11/2014,M/W CONTRCTR OPRNTL MTHLY MAIN,ENVIRONMENT,PROF SER CNSLTNCY-PPM CNSLTNCY,INTEGRATED WATER SERVICES,0000215961,157.28
DEPARTMENT OF ENERGY AND CLIMATE CHANGE,THE COAL AUTHORITY,27/11/2014,M/W CONTRCTR OPRNTL MTHLY MAIN,ENVIRONMENT,PROF SER CNSLTNCY-PPM CNSLTNCY,INTEGRATED WATER SERVICES,0000215961,104.86
DEPARTMENT OF ENERGY AND CLIMATE CHANGE,THE COAL AUTHORITY,27/11/2014,M/W CONTRCTR OPRNTL MTHLY MAIN,ENVIRONMENT,PROF SER CNSLTNCY-PPM CNSLTNCY,INTEGRATED WATER SERVICES,0000215961,209.72
DEPARTMENT OF ENERGY AND CLIMATE CHANGE,THE COAL AUTHORITY,27/11/2014,M/W CONTRCTR OPRNTL MTHLY MAIN,ENVIRONMENT,PROF SER CNSLTNCY-PPM CNSLTNCY,INTEGRATED WATER SERVICES,0000215961,419.44
DEPARTMENT OF ENERGY AND CLIMATE CHANGE,THE COAL AUTHORITY,27/11/2014,M/W CONTRCTR OPRNTL MTHLY MAIN,ENVIRONMENT,PROF SER CNSLTNCY-PPM CNSLTNCY,INTEGRATED WATER SERVICES,0000215961,629.12
DEPARTMENT OF ENERGY AND CLIMATE CHANGE,THE COAL AUTHORITY,27/11/2014,M/W CONTRCTR OPRNTL MTHLY MAIN,ENVIRONMENT,PROF SER CNSLTNCY-PPM CNSLTNCY,INTEGRATED WATER SERVICES,0000215961,314.56
DEPARTMENT OF ENERGY AND CLIMATE CHANGE,THE COAL AUTHORITY,27/11/2014,M/W CONTRCTR OPRNTL MTHLY MAIN,ENVIRONMENT,PROF SER CNSLTNCY-PPM CNSLTNCY,INTEGRATED WATER SERVICES,0000215961,629.12
DEPARTMENT OF ENERGY AND CLIMATE CHANGE,THE COAL AUTHORITY,27/11/2014,M/W CONTRCTR OPRNTL MTHLY MAIN,ENVIRONMENT,PROF SER CNSLTNCY-PPM CNSLTNCY,INTEGRATED WATER SERVICES,0000215961,104.86
DEPARTMENT OF ENERGY AND CLIMATE CHANGE,THE COAL AUTHORITY,27/11/2014,M/W CONTRCTR OPRNTL MTHLY MAIN,ENVIRONMENT,PROF SER CNSLTNCY-PPM CNSLTNCY,INTEGRATED WATER SERVICES,0000215961,52.43
DEPARTMENT OF ENERGY AND CLIMATE CHANGE,THE COAL AUTHORITY,27/11/2014,M/W CONTRCTR OPRNTL MTHLY MAIN,ENVIRONMENT,PROF SER CNSLTNCY-PPM CNSLTNCY,INTEGRATED WATER SERVICES,0000215961,39.32
DEPARTMENT OF ENERGY AND CLIMATE CHANGE,THE COAL AUTHORITY,27/11/2014,M/W CONTRCTR OPRNTL MTHLY MAIN,ENVIRONMENT,PROF SER CNSLTNCY-PPM CNSLTNCY,INTEGRATED WATER SERVICES,0000215961,52.43
DEPARTMENT OF ENERGY AND CLIMATE CHANGE,THE COAL AUTHORITY,27/11/2014,M/W CONTRCTR OPRNTL MTHLY MAIN,ENVIRONMENT,PROF SER CNSLTNCY-PPM CNSLTNCY,INTEGRATED WATER SERVICES,0000215962,314.56
DEPARTMENT OF ENERGY AND CLIMATE CHANGE,THE COAL AUTHORITY,27/11/2014,M/W CONTRCTR OPRNTL MTHLY MAIN,ENVIRONMENT,PROF SER CNSLTNCY-PPM CNSLTNCY,INTEGRATED WATER SERVICES,0000215962,209.72
DEPARTMENT OF ENERGY AND CLIMATE CHANGE,THE COAL AUTHORITY,27/11/2014,M/W CONTRCTR OPRNTL MTHLY MAIN,ENVIRONMENT,PROF SER CNSLTNCY-PPM CNSLTNCY,INTEGRATED WATER SERVICES,0000215962,620.56
DEPARTMENT OF ENERGY AND CLIMATE CHANGE,THE COAL AUTHORITY,27/11/2014,M/W CONTRCTR OPRNTL MTHLY MAIN,ENVIRONMENT,PROF SER CNSLTNCY-PPM CNSLTNCY,INTEGRATED WATER SERVICES,0000215962,629.12
DEPARTMENT OF ENERGY AND CLIMATE CHANGE,THE COAL AUTHORITY,27/11/2014,M/W CONTRCTR OPRNTL MTHLY MAIN,ENVIRONMENT,PROF SER CNSLTNCY-PPM CNSLTNCY,INTEGRATED WATER SERVICES,0000215962,1461.61
DEPARTMENT OF ENERGY AND CLIMATE CHANGE,THE COAL AUTHORITY,27/11/2014,M/W CONTRCTR OPRNTL MTHLY MAIN,ENVIRONMENT,PROF SER CNSLTNCY-PPM CNSLTNCY,INTEGRATED WATER SERVICES,0000215962,629.12
DEPARTMENT OF ENERGY AND CLIMATE CHANGE,THE COAL AUTHORITY,27/11/2014,M/W CONTRCTR OPRNTL MTHLY MAIN,ENVIRONMENT,PROF SER CNSLTNCY-PPM CNSLTNCY,INTEGRATED WATER SERVICES,0000215962,419.44
DEPARTMENT OF ENERGY AND CLIMATE CHANGE,THE COAL AUTHORITY,27/11/2014,M/W CONTRCTR OPRNTL MTHLY MAIN,ENVIRONMENT,PROF SER CNSLTNCY-PPM CNSLTNCY,INTEGRATED WATER SERVICES,0000215962,314.56
DEPARTMENT OF ENERGY AND CLIMATE CHANGE,THE COAL AUTHORITY,27/11/2014,M/W CONTRCTR OPRNTL MTHLY MAIN,ENVIRONMENT,PROF SER CNSLTNCY-PPM CNSLTNCY,INTEGRATED WATER SERVICES,0000215962,326.63
DEPARTMENT OF ENERGY AND CLIMATE CHANGE,THE COAL AUTHORITY,27/11/2014,M/W CONTRCTR OPRNTL MTHLY MAIN,ENVIRONMENT,PROF SER CNSLTNCY-PPM CNSLTNCY,INTEGRATED WATER SERVICES,0000215962,314.56
DEPARTMENT OF ENERGY AND CLIMATE CHANGE,THE COAL AUTHORITY,27/11/2014,M/W CONTRCTR OPRNTL MTHLY MAIN,ENVIRONMENT,PROF SER CNSLTNCY-PPM CNSLTNCY,INTEGRATED WATER SERVICES,0000215962,209.72
DEPARTMENT OF ENERGY AND CLIMATE CHANGE,THE COAL AUTHORITY,27/11/2014,M/W CONTRCTR OPRNTL MTHLY MAIN,ENVIRONMENT,PROF SER CNSLTNCY-PPM CNSLTNCY,INTEGRATED WATER SERVICES,0000215962,209.72
DEPARTMENT OF ENERGY AND CLIMATE CHANGE,THE COAL AUTHORITY,27/11/2014,M/W CONTRCTR OPRNTL MTHLY MAIN,ENVIRONMENT,PROF SER CNSLTNCY-PPM CNSLTNCY,INTEGRATED WATER SERVICES,0000215962,419.44
DEPARTMENT OF ENERGY AND CLIMATE CHANGE,THE COAL AUTHORITY,27/11/2014,M/W CONTRCTR OPRNTL MTHLY MAIN,ENVIRONMENT,PROF SER CNSLTNCY-PPM CNSLTNCY,INTEGRATED WATER SERVICES,0000215962,629.12
DEPARTMENT OF ENERGY AND CLIMATE CHANGE,THE COAL AUTHORITY,27/11/2014,M/W CONTRCTR OPRNTL MTHLY MAIN,ENVIRONMENT,PROF SER CNSLTNCY-PPM CNSLTNCY,INTEGRATED WATER SERVICES,0000215962,620.56
DEPARTMENT OF ENERGY AND CLIMATE CHANGE,THE COAL AUTHORITY,27/11/2014,M/W CONTRCTR OPRNTL MTHLY MAIN,ENVIRONMENT,PROF SER CNSLTNCY-PPM CNSLTNCY,INTEGRATED WATER SERVICES,0000215962,326.63
DEPARTMENT OF ENERGY AND CLIMATE CHANGE,THE COAL AUTHORITY,27/11/2014,M/W CONTRCTR OPRNTL MTHLY MAIN,ENVIRONMENT,PROF SER CNSLTNCY-PPM CNSLTNCY,INTEGRATED WATER SERVICES,0000215962,314.56
DEPARTMENT OF ENERGY AND CLIMATE CHANGE,THE COAL AUTHORITY,27/11/2014,M/W CONTRCTR OPRNTL MTHLY MAIN,ENVIRONMENT,PROF SER CNSLTNCY-PPM CNSLTNCY,INTEGRATED WATER SERVICES,0000215962,629.12
DEPARTMENT OF ENERGY AND CLIMATE CHANGE,THE COAL AUTHORITY,27/11/2014,M/W CONTRCTR OPRNTL MTHLY MAIN,ENVIRONMENT,PROF SER CNSLTNCY-PPM CNSLTNCY,INTEGRATED WATER SERVICES,0000215962,209.72
DEPARTMENT OF ENERGY AND CLIMATE CHANGE,THE COAL AUTHORITY,27/11/2014,M/W CONTRCTR OPRNTL MTHLY MAIN,ENVIRONMENT,PROF SER CNSLTNCY-PPM CNSLTNCY,INTEGRATED WATER SERVICES,0000215962,629.12
DEPARTMENT OF ENERGY AND CLIMATE CHANGE,THE COAL AUTHORITY,27/11/2014,M/W CONTRCTR OPRNTL MTHLY MAIN,ENVIRONMENT,PROF SER CNSLTNCY-PPM CNSLTNCY,INTEGRATED WATER SERVICES,0000215962,209.72
DEPARTMENT OF ENERGY AND CLIMATE CHANGE,THE COAL AUTHORITY,27/11/2014,M/W CONTRCTR OPRNTL MTHLY MAIN,ENVIRONMENT,PROF SER CNSLTNCY-PPM CNSLTNCY,INTEGRATED WATER SERVICES,0000215963,3058.20
DEPARTMENT OF ENERGY AND CLIMATE CHANGE,THE COAL AUTHORITY,27/11/2014,M/W CONTRCTR OPRNTL MTHLY MAIN,ENVIRONMENT,PROF SER CNSLTNCY-PPM CNSLTNCY,INTEGRATED WATER SERVICES,0000215963,104.86
DEPARTMENT OF ENERGY AND CLIMATE CHANGE,THE COAL AUTHORITY,27/11/2014,M/W CONTRCTR OPRNTL MTHLY MAIN,ENVIRONMENT,PROF SER CNSLTNCY-PPM CNSLTNCY,INTEGRATED WATER SERVICES,0000215963,1258.32
DEPARTMENT OF ENERGY AND CLIMATE CHANGE,THE COAL AUTHORITY,27/11/2014,M/W CONTRCTR OPRNTL MTHLY MAIN,ENVIRONMENT,PROF SER CNSLTNCY-PPM CNSLTNCY,INTEGRATED WATER SERVICES,0000215963,419.44
DEPARTMENT OF ENERGY AND CLIMATE CHANGE,THE COAL AUTHORITY,27/11/2014,M/W CONTRCTR OPRNTL MTHLY MAIN,ENVIRONMENT,PROF SER CNSLTNCY-PPM CNSLTNCY,INTEGRATED WATER SERVICES,0000215963,209.72
DEPARTMENT OF ENERGY AND CLIMATE CHANGE,THE COAL AUTHORITY,27/11/2014,M/W CONTRCTR OPRNTL MTHLY MAIN,ENVIRONMENT,PROF SER CNSLTNCY-PPM CNSLTNCY,INTEGRATED WATER SERVICES,0000215963,104.86
DEPARTMENT OF ENERGY AND CLIMATE CHANGE,THE COAL AUTHORITY,27/11/2014,M/W CONTRCTR OPRNTL MTHLY MAIN,ENVIRONMENT,PROF SER CNSLTNCY-PPM CNSLTNCY,INTEGRATED WATER SERVICES,0000215963,104.86
DEPARTMENT OF ENERGY AND CLIMATE CHANGE,THE COAL AUTHORITY,27/11/2014,M/W CONTRCTR OPRNTL MTHLY MAIN,ENVIRONMENT,PROF SER CNSLTNCY-PPM CNSLTNCY,INTEGRATED WATER SERVICES,0000215963,104.86
DEPARTMENT OF ENERGY AND CLIMATE CHANGE,THE COAL AUTHORITY,27/11/2014,M/W CONTRCTR OPRNTL MTHLY MAIN,ENVIRONMENT,PROF SER CNSLTNCY-PPM CNSLTNCY,INTEGRATED WATER SERVICES,0000215963,104.86
DEPARTMENT OF ENERGY AND CLIMATE CHANGE,THE COAL AUTHORITY,27/11/2014,M/W CONTRCTR OPRNTL MTHLY MAIN,ENVIRONMENT,PROF SER CNSLTNCY-PPM CNSLTNCY,INTEGRATED WATER SERVICES,0000215963,209.72
DEPARTMENT OF ENERGY AND CLIMATE CHANGE,THE COAL AUTHORITY,27/11/2014,M/W CONTRCTR OPRNTL MTHLY MAIN,ENVIRONMENT,PROF SER CNSLTNCY-PPM CNSLTNCY,INTEGRATED WATER SERVICES,0000215963,209.72
DEPARTMENT OF ENERGY AND CLIMATE CHANGE,THE COAL AUTHORITY,26/11/2014,M/W CNTRCTR-OPRTNL MNTLY TSKS,ENVIRONMENT,CONSTRUCTION-MAIN CONTRACTORS,INTEGRATED WATER SERVICES,0000215964,4471.88
DEPARTMENT OF ENERGY AND CLIMATE CHANGE,THE COAL AUTHORITY,26/11/2014,M/W CNTRCTR-OPRTNL MNTLY TSKS,ENVIRONMENT,PROF SER CNSLTNCY-PPM CNSLTNCY,INTEGRATED WATER SERVICES,0000215965,1291.08
DEPARTMENT OF ENERGY AND CLIMATE CHANGE,THE COAL AUTHORITY,26/11/2014,M/W CNTRCTR-OPRTNL MNTLY TSKS,ENVIRONMENT,CONSTRUCTION-MAIN CONTRACTORS,INTEGRATED WATER SERVICES,0000215966,669.66
DEPARTMENT OF ENERGY AND CLIMATE CHANGE,THE COAL AUTHORITY,26/11/2014,M/W CNTRCTR-OPRTNL MNTLY TSKS,ENVIRONMENT,CONSTRUCTION-MAIN CONTRACTORS,INTEGRATED WATER SERVICES,0000215966,4725.00
DEPARTMENT OF ENERGY AND CLIMATE CHANGE,THE COAL AUTHORITY,26/11/2014,M/W CNTRCTR-OPRTNL MNTLY TSKS,ENVIRONMENT,CONSTRUCTION-MAIN CONTRACTORS,INTEGRATED WATER SERVICES,0000215966,213.86
DEPARTMENT OF ENERGY AND CLIMATE CHANGE,THE COAL AUTHORITY,28/11/2014,M/W SCOPING/FEASIBILITY/CONCEP,ENVIRONMENT,PROF SER TECH-ENGINEERING SER,MOTT MACDONALD LTD,0000215990,923.50
DEPARTMENT OF ENERGY AND CLIMATE CHANGE,THE COAL AUTHORITY,28/11/2014,CONSULTANTS-INVESTIGATIONS,ENVIRONMENT,PROF SER TECH-ENGINEERING SER,MOTT MACDONALD LTD,0000215991,1510.50
DEPARTMENT OF ENERGY AND CLIMATE CHANGE,THE COAL AUTHORITY,28/11/2014,CURR YR ADDNS MINEWATER SCHEME,ENVIRONMENT,PROF SER TMP STFF-SPCLST CNTRT,MOTT MACDONALD LTD,0000215992,1580.25
DEPARTMENT OF ENERGY AND CLIMATE CHANGE,THE COAL AUTHORITY,28/11/2014,CURR YR ADDNS MINEWATER SCHEME,ENVIRONMENT,PROF SER TMP STFF-SPCLST CNTRT,MOTT MACDONALD LTD,0000215992,106.00
DEPARTMENT OF ENERGY AND CLIMATE CHANGE,THE COAL AUTHORITY,28/11/2014,CURR YR ADDNS MINEWATER SCHEME,ENVIRONMENT,PROF SER TMP STFF-SPCLST CNTRT,MOTT MACDONALD LTD,0000215992,53.00
DEPARTMENT OF ENERGY AND CLIMATE CHANGE,THE COAL AUTHORITY,28/11/2014,M/W SCOPING/FEASIBILITY/CONCEP,ENVIRONMENT,PROF SER TECH-ENGINEERING SER,MOTT MACDONALD LTD,0000215993,11272.43
DEPARTMENT OF ENERGY AND CLIMATE CHANGE,THE COAL AUTHORITY,28/11/2014,CURR YR ADDNS MINEWATER SCHEME,ENVIRONMENT,PROF SER TECH-ENGINEERING SER,MOTT MACDONALD LTD,0000215994,1689.50
DEPARTMENT OF ENERGY AND CLIMATE CHANGE,THE COAL AUTHORITY,28/11/2014,CURR YR ADDNS MINEWATER SCHEME,ENVIRONMENT,PROF SER TECH-ENGINEERING SER,MOTT MACDONALD LTD,0000215995,2035.28
DEPARTMENT OF ENERGY AND CLIMATE CHANGE,THE COAL AUTHORITY,28/11/2014,CURR YR ADDNS MINEWATER SCHEME,ENVIRONMENT,PROF SER TECH-ENGINEERING SER,MOTT MACDONALD LTD,0000215996,2913.20
DEPARTMENT OF ENERGY AND CLIMATE CHANGE,THE COAL AUTHORITY,28/11/2014,CONSULTANTS-INVESTIGATIONS,ENVIRONMENT,PROF SER TECH-ENGINEERING SER,MOUCHEL LTD,0000215997,720.78
DEPARTMENT OF ENERGY AND CLIMATE CHANGE,THE COAL AUTHORITY,27/11/2014,WATER SAMPLING - OPERATIONAL,ENVIRONMENT,PROF SER TECH-FORENSIC/LAB SER,ENVIRONMENTAL SCIENTIFICS,0000215998,110.00
DEPARTMENT OF ENERGY AND CLIMATE CHANGE,THE COAL AUTHORITY,27/11/2014,WATER SAMPLING - OPERATIONAL,ENVIRONMENT,PROF SER TECH-FORENSIC/LAB SER,ENVIRONMENTAL SCIENTIFICS,0000215999,7637.87
DEPARTMENT OF ENERGY AND CLIMATE CHANGE,THE COAL AUTHORITY,27/11/2014,WATER SAMPLING - DEVELOPMENT,ENVIRONMENT,PROF SER TECH-FORENSIC/LAB SER,ENVIRONMENTAL SCIENTIFICS,0000216000,3595.89
DEPARTMENT OF ENERGY AND CLIMATE CHANGE,THE COAL AUTHORITY,28/11/2014,PUMP OVERHAULS,ENVIRONMENT,"CONSTRUCTION-BLD,REPR&MAINTNCE",THE DERITEND GROUP LIMITE,0000216003,2790.00
DEPARTMENT OF ENERGY AND CLIMATE CHANGE,THE COAL AUTHORITY,28/11/2014,M/W CHEMICAL OPERATIONAL,ENVIRONMENT,ENGRNG GOODS-NON-MDICL CHMCLS,GOLDCREST CHEMICALS LIMIT,0000216004,3277.62
DEPARTMENT OF ENERGY AND CLIMATE CHANGE,THE COAL AUTHORITY,26/11/2014,M/W CHEMICAL OPERATIONAL,ENVIRONMENT,ENGRNG GOODS-NON-MDICL CHMCLS,BIOCHEMICA UK LIMITED,0000216009,524.00
DEPARTMENT OF ENERGY AND CLIMATE CHANGE,THE COAL AUTHORITY,30/11/2014,M/W CHEMICAL OPERATIONAL,ENVIRONMENT,ENGRNG GOODS-NON-MDICL CHMCLS,BIOCHEMICA UK LIMITED,0000216010,786.00
DEPARTMENT OF ENERGY AND CLIMATE CHANGE,THE COAL AUTHORITY,30/11/2014,PAYMENTS TO AGENCIES FOR TEMPS,ENVIRONMENT,PROF SER TMP STFF-SPCLST CNTRT,AQUA CONSULTANTS,0000216011,7970.82
DEPARTMENT OF ENERGY AND CLIMATE CHANGE,THE COAL AUTHORITY,30/11/2014,PAYMENTS TO AGENCIES FOR TEMPS,ENVIRONMENT,PROF SER TMP STFF-SPCLST CNTRT,AQUA CONSULTANTS,0000216012,6405.70
DEPARTMENT OF ENERGY AND CLIMATE CHANGE,THE COAL AUTHORITY,30/11/2014,CURR YR ADDNS MINEWATER SCHEME,ENVIRONMENT,PROF SER TECH-ENGINEERING SER,MOTT MACDONALD LTD,0000216013,319.00
DEPARTMENT OF ENERGY AND CLIMATE CHANGE,THE COAL AUTHORITY,01/12/2014,M/W SCOPING/FEASIBILITY/CONCEP,ENVIRONMENT,PROF SER TECH-ENGINEERING SER,MOUCHEL LTD,0000216015,3343.88
DEPARTMENT OF ENERGY AND CLIMATE CHANGE,THE COAL AUTHORITY,01/12/2014,R&D-EXTERNAL COSTS,ENVIRONMENT,PROF SER TECH-ENGINEERING SER,MOUCHEL LTD,0000216016,1079.25
DEPARTMENT OF ENERGY AND CLIMATE CHANGE,THE COAL AUTHORITY,28/11/2014,M/W CHEMICAL OPERATIONAL,ENVIRONMENT,ENGRNG GOODS-NON-MDICL CHMCLS,INTEGRATED WATER SERVICES,0000216025,537.85
DEPARTMENT OF ENERGY AND CLIMATE CHANGE,THE COAL AUTHORITY,28/11/2014,M/W CNTRCTR-OPRTNL MNTLY TSKS,ENVIRONMENT,CONSTRUCTION-MAIN CONTRACTORS,INTEGRATED WATER SERVICES,0000216025,2523.51
DEPARTMENT OF ENERGY AND CLIMATE CHANGE,THE COAL AUTHORITY,28/11/2014,M/W CNTRCTR-OPRTNL MNTLY TSKS,ENVIRONMENT,CONSTRUCTION-MAIN CONTRACTORS,INTEGRATED WATER SERVICES,0000216025,1283.83
DEPARTMENT OF ENERGY AND CLIMATE CHANGE,THE COAL AUTHORITY,28/11/2014,M/W CNTRCTR-OPRTNL MNTLY TSKS,ENVIRONMENT,CONSTRUCTION-MAIN CONTRACTORS,INTEGRATED WATER SERVICES,0000216025,2599.25
DEPARTMENT OF ENERGY AND CLIMATE CHANGE,THE COAL AUTHORITY,28/11/2014,M/W SLUDGE DISPOSAL,ENVIRONMENT,CONSTRUCTION-MAIN CONTRACTORS,INTEGRATED WATER SERVICES,0000216025,7692.62
DEPARTMENT OF ENERGY AND CLIMATE CHANGE,THE COAL AUTHORITY,28/11/2014,M/W PUMPING TESTS,ENVIRONMENT,CONSTRUCTION-MAIN CONTRACTORS,INTEGRATED WATER SERVICES,0000216026,7560.00
DEPARTMENT OF ENERGY AND CLIMATE CHANGE,THE COAL AUTHORITY,28/11/2014,CURR YR ADDNS MINEWATER SCHEME,ENVIRONMENT,CONSTRUCTION-MAIN CONTRACTORS,INTEGRATED WATER SERVICES,0000216027,16546.22
DEPARTMENT OF ENERGY AND CLIMATE CHANGE,THE COAL AUTHORITY,21/11/2014,R&D-EXTERNAL COSTS,ENVIRONMENT,PROF SER TECH-ENGINEERING SER,WWT (CONSULTING) LTD,0000216033,9876.65
DEPARTMENT OF ENERGY AND CLIMATE CHANGE,THE COAL AUTHORITY,08/11/2014,CAR HIRE,ENVIRONMENT,TRAVEL&EVENTS-VEHICLE HIRE,ENTERPRISE RENT A CAR,0000216042,31.75
DEPARTMENT OF ENERGY AND CLIMATE CHANGE,THE COAL AUTHORITY,14/11/2014,CAR HIRE,ENVIRONMENT,TRAVEL&EVENTS-VEHICLE HIRE,ENTERPRISE RENT A CAR,0000216047,65.72
DEPARTMENT OF ENERGY AND CLIMATE CHANGE,THE COAL AUTHORITY,15/11/2014,CAR HIRE,ENVIRONMENT,TRAVEL&EVENTS-VEHICLE HIRE,ENTERPRISE RENT A CAR,0000216049,60.72
DEPARTMENT OF ENERGY AND CLIMATE CHANGE,THE COAL AUTHORITY,13/11/2014,CAR HIRE,ENVIRONMENT,TRAVEL&EVENTS-VEHICLE HIRE,ENTERPRISE RENT A CAR,0000216050,48.50
DEPARTMENT OF ENERGY AND CLIMATE CHANGE,THE COAL AUTHORITY,27/11/2014,CAR HIRE,ENVIRONMENT,TRAVEL&EVENTS-VEHICLE HIRE,ENTERPRISE RENT A CAR,0000216051,48.50
DEPARTMENT OF ENERGY AND CLIMATE CHANGE,THE COAL AUTHORITY,28/11/2014,PAYMENTS TO AGENCIES FOR TEMPS,ENVIRONMENT,PROF SER TMP STFF-TEMP WRKERS,KEY PERSONNEL SOLUTIONS L,0000216057,443.33
DEPARTMENT OF ENERGY AND CLIMATE CHANGE,THE COAL AUTHORITY,02/12/2014,LAND OPTION/ACCESS PAYMENTS,ENVIRONMENT,PROF SER-LEGAL SERVICES,CONCLUSION OF LEASE FOR B,0000216058,10000.00
DEPARTMENT OF ENERGY AND CLIMATE CHANGE,THE COAL AUTHORITY,02/12/2014,M/W LAND AGENTS (AQUISITIONS),ENVIRONMENT,PROF SER-LEGAL SERVICES,CONCLUSION OF LEASE FOR B,0000216058,340.00
DEPARTMENT OF ENERGY AND CLIMATE CHANGE,THE COAL AUTHORITY,30/11/2014,CURR YR ADDNS MINEWATER SCHEME,ENVIRONMENT,PROF SER TECH-ENGINEERING SER,JMC ENGINEERING (UK) LTD,0000216059,4633.29
DEPARTMENT OF ENERGY AND CLIMATE CHANGE,THE COAL AUTHORITY,30/11/2014,PROJECT MANAGEMENT-BOREHOLES,ENVIRONMENT,PROF SER CNSLTNCY-TCHNL CNSLTY,JMC ENGINEERING (UK) LTD,0000216062,186.00
DEPARTMENT OF ENERGY AND CLIMATE CHANGE,THE COAL AUTHORITY,30/11/2014,PROJECT MANAGEMENT-BOREHOLES,ENVIRONMENT,PROF SER TECH-ENGINEERING SER,JMC ENGINEERING (UK) LTD,0000216063,231.00
DEPARTMENT OF ENERGY AND CLIMATE CHANGE,THE COAL AUTHORITY,30/11/2014,PROJECT MANAGEMENT-BOREHOLES,ENVIRONMENT,PROF SER TECH-ENGINEERING SER,JMC ENGINEERING (UK) LTD,0000216064,310.00
DEPARTMENT OF ENERGY AND CLIMATE CHANGE,THE COAL AUTHORITY,30/11/2014,M/W LANDSCAPING SUPERVISION,ENVIRONMENT,PROF SER TECH-ENGINEERING SER,JMC ENGINEERING (UK) LTD,0000216066,125.80
DEPARTMENT OF ENERGY AND CLIMATE CHANGE,THE COAL AUTHORITY,30/11/2014,M/W LAND AGENTS (AQUISITIONS),ENVIRONMENT,PROF SER TECH-ENGINEERING SER,JMC ENGINEERING (UK) LTD,0000216067,222.00
DEPARTMENT OF ENERGY AND CLIMATE CHANGE,THE COAL AUTHORITY,30/11/2014,M/W LANDSCAPING SUPERVISION,ENVIRONMENT,PROF SER TECH-ENGINEERING SER,JMC ENGINEERING (UK) LTD,0000216070,74.00
DEPARTMENT OF ENERGY AND CLIMATE CHANGE,THE COAL AUTHORITY,30/11/2014,M/W LANDSCAPING SUPERVISION,ENVIRONMENT,PROF SER TECH-ENGINEERING SER,JMC ENGINEERING (UK) LTD,0000216071,444.00
DEPARTMENT OF ENERGY AND CLIMATE CHANGE,THE COAL AUTHORITY,30/11/2014,PROJECT MANAGEMENT-BOREHOLES,ENVIRONMENT,PROF SER TECH-ENGINEERING SER,JMC ENGINEERING (UK) LTD,0000216072,281.20
DEPARTMENT OF ENERGY AND CLIMATE CHANGE,THE COAL AUTHORITY,30/11/2014,M/W LAND AGENTS (AQUISITIONS),ENVIRONMENT,PROF SER TECH-ENGINEERING SER,JMC ENGINEERING (UK) LTD,0000216073,74.00
DEPARTMENT OF ENERGY AND CLIMATE CHANGE,THE COAL AUTHORITY,30/11/2014,M/W LANDSCAPING SUPERVISION,ENVIRONMENT,PROF SER TECH-ENGINEERING SER,JMC ENGINEERING (UK) LTD,0000216074,440.60
DEPARTMENT OF ENERGY AND CLIMATE CHANGE,THE COAL AUTHORITY,30/11/2014,PROJECT MANAGEMENT-BOREHOLES,ENVIRONMENT,PROF SER TECH-ENGINEERING SER,JMC ENGINEERING (UK) LTD,0000216075,429.20
DEPARTMENT OF ENERGY AND CLIMATE CHANGE,THE COAL AUTHORITY,30/11/2014,M/W LANDSCAPING SUPERVISION,ENVIRONMENT,PROF SER TECH-ENGINEERING SER,JMC ENGINEERING (UK) LTD,0000216076,569.80
DEPARTMENT OF ENERGY AND CLIMATE CHANGE,THE COAL AUTHORITY,30/11/2014,R&D-EXTERNAL COSTS,ENVIRONMENT,PROF SER TECH-ENGINEERING SER,JMC ENGINEERING (UK) LTD,0000216077,296.00
DEPARTMENT OF ENERGY AND CLIMATE CHANGE,THE COAL AUTHORITY,02/12/2014,M/W CNTRCTR-OPRTNL MNTLY TSKS,ENVIRONMENT,CONSTRUCTION-CNSTRN SER PROVDR,INTEGRATED WATER SERVICES,0000216079,229.06
DEPARTMENT OF ENERGY AND CLIMATE CHANGE,THE COAL AUTHORITY,02/12/2014,LIABILITY SITES AD-HOC TASKS,ENVIRONMENT,CONSTRUCTION-MAIN CONTRACTORS,INTEGRATED WATER SERVICES,0000216081,932.53
DEPARTMENT OF ENERGY AND CLIMATE CHANGE,THE COAL AUTHORITY,02/12/2014,LIABILITY SITES AD-HOC TASKS,ENVIRONMENT,CONSTRUCTION-MAIN CONTRACTORS,INTEGRATED WATER SERVICES,0000216082,1706.67
DEPARTMENT OF ENERGY AND CLIMATE CHANGE,THE COAL AUTHORITY,02/12/2014,M/W CNTRCTR-OPRTNL MNTLY TSKS,ENVIRONMENT,CONSTRUCTION-MAIN CONTRACTORS,INTEGRATED WATER SERVICES,0000216083,848.26
DEPARTMENT OF ENERGY AND CLIMATE CHANGE,THE COAL AUTHORITY,02/12/2014,M/W CNTRCTR-OPRTNL MNTLY TSKS,ENVIRONMENT,CONSTRUCTION-MAIN CONTRACTORS,INTEGRATED WATER SERVICES,0000216083,638.01
DEPARTMENT OF ENERGY AND CLIMATE CHANGE,THE COAL AUTHORITY,02/12/2014,M/W CNTRCTR-OPRTNL MNTLY TSKS,ENVIRONMENT,PROF SER TECH-FORENSIC/LAB SER,INTEGRATED WATER SERVICES,0000216083,160.68
DEPARTMENT OF ENERGY AND CLIMATE CHANGE,THE COAL AUTHORITY,02/12/2014,M/W CNTRCTR-OPRTNL MNTLY TSKS,ENVIRONMENT,CONSTRUCTION-MAIN CONTRACTORS,INTEGRATED WATER SERVICES,0000216084,3022.94
DEPARTMENT OF ENERGY AND CLIMATE CHANGE,THE COAL AUTHORITY,02/12/2014,M/W CNTRCTR-OPRTNL MNTLY TSKS,ENVIRONMENT,CONSTRUCTION-MAIN CONTRACTORS,INTEGRATED WATER SERVICES,0000216084,183.24
DEPARTMENT OF ENERGY AND CLIMATE CHANGE,THE COAL AUTHORITY,02/12/2014,M/W CNTRCTR-OPRTNL MNTLY TSKS,ENVIRONMENT,CONSTRUCTION-MAIN CONTRACTORS,INTEGRATED WATER SERVICES,0000216084,445.66
DEPARTMENT OF ENERGY AND CLIMATE CHANGE,THE COAL AUTHORITY,02/12/2014,M/W CNTRCTR-OPRTNL MNTLY TSKS,ENVIRONMENT,CONSTRUCTION-MAIN CONTRACTORS,INTEGRATED WATER SERVICES,0000216084,119.68
DEPARTMENT OF ENERGY AND CLIMATE CHANGE,THE COAL AUTHORITY,02/12/2014,M/W CNTRCTR-OPRTNL MNTLY TSKS,ENVIRONMENT,CONSTRUCTION-MAIN CONTRACTORS,INTEGRATED WATER SERVICES,0000216084,906.95
DEPARTMENT OF ENERGY AND CLIMATE CHANGE,THE COAL AUTHORITY,02/12/2014,M/W CNTRCTR-OPRTNL MNTLY TSKS,ENVIRONMENT,CONSTRUCTION-MAIN CONTRACTORS,INTEGRATED WATER SERVICES,0000216084,5616.23
DEPARTMENT OF ENERGY AND CLIMATE CHANGE,THE COAL AUTHORITY,02/12/2014,M/W CNTRCTR-OPRTNL MNTLY TSKS,ENVIRONMENT,CONSTRUCTION-MAIN CONTRACTORS,INTEGRATED WATER SERVICES,0000216084,65.46
DEPARTMENT OF ENERGY AND CLIMATE CHANGE,THE COAL AUTHORITY,02/12/2014,M/W CNTRCTR-OPRTNL MNTLY TSKS,ENVIRONMENT,CONSTRUCTION-MAIN CONTRACTORS,INTEGRATED WATER SERVICES,0000216084,1713.16
DEPARTMENT OF ENERGY AND CLIMATE CHANGE,THE COAL AUTHORITY,02/12/2014,M/W CNTRCTR-OPRTNL MNTLY TSKS,ENVIRONMENT,CONSTRUCTION-MAIN CONTRACTORS,INTEGRATED WATER SERVICES,0000216084,697.02
DEPARTMENT OF ENERGY AND CLIMATE CHANGE,THE COAL AUTHORITY,02/12/2014,M/W CNTRCTR-OPRTNL MNTLY TSKS,ENVIRONMENT,CONSTRUCTION-MAIN CONTRACTORS,INTEGRATED WATER SERVICES,0000216084,56.90
DEPARTMENT OF ENERGY AND CLIMATE CHANGE,THE COAL AUTHORITY,02/12/2014,M/W CNTRCTR-OPRTNL MNTLY TSKS,ENVIRONMENT,PROF SER TECH-FORENSIC/LAB SER,INTEGRATED WATER SERVICES,0000216084,94.80
DEPARTMENT OF ENERGY AND CLIMATE CHANGE,THE COAL AUTHORITY,28/11/2014,R&D-EXTERNAL COSTS,ENVIRONMENT,PROF SER TECH-FORENSIC/LAB SER,ENVIRONMENTAL SCIENTIFICS,0000216085,368.96
DEPARTMENT OF ENERGY AND CLIMATE CHANGE,THE COAL AUTHORITY,28/11/2014,R&D-EXTERNAL COSTS,ENVIRONMENT,PROF SER TECH-FORENSIC/LAB SER,ENVIRONMENTAL SCIENTIFICS,0000216086,184.48
DEPARTMENT OF ENERGY AND CLIMATE CHANGE,THE COAL AUTHORITY,28/11/2014,R&D-EXTERNAL COSTS,ENVIRONMENT,PROF SER TECH-FORENSIC/LAB SER,ENVIRONMENTAL SCIENTIFICS,0000216086,184.48
DEPARTMENT OF ENERGY AND CLIMATE CHANGE,THE COAL AUTHORITY,28/11/2014,R&D-EXTERNAL COSTS,ENVIRONMENT,PROF SER TECH-FORENSIC/LAB SER,ENVIRONMENTAL SCIENTIFICS,0000216087,184.48
DEPARTMENT OF ENERGY AND CLIMATE CHANGE,THE COAL AUTHORITY,28/11/2014,R&D-EXTERNAL COSTS,ENVIRONMENT,PROF SER TECH-FORENSIC/LAB SER,ENVIRONMENTAL SCIENTIFICS,0000216087,184.48
DEPARTMENT OF ENERGY AND CLIMATE CHANGE,THE COAL AUTHORITY,28/11/2014,R&D-EXTERNAL COSTS,ENVIRONMENT,PROF SER TECH-FORENSIC/LAB SER,ENVIRONMENTAL SCIENTIFICS,0000216088,368.96
DEPARTMENT OF ENERGY AND CLIMATE CHANGE,THE COAL AUTHORITY,28/11/2014,R&D-EXTERNAL COSTS,ENVIRONMENT,PROF SER TECH-FORENSIC/LAB SER,ENVIRONMENTAL SCIENTIFICS,0000216089,184.48
DEPARTMENT OF ENERGY AND CLIMATE CHANGE,THE COAL AUTHORITY,28/11/2014,R&D-EXTERNAL COSTS,ENVIRONMENT,PROF SER TECH-FORENSIC/LAB SER,ENVIRONMENTAL SCIENTIFICS,0000216089,184.48
DEPARTMENT OF ENERGY AND CLIMATE CHANGE,THE COAL AUTHORITY,03/12/2014,PAYMENTS TO AGENCIES FOR TEMPS,ENVIRONMENT,PROF SER TMP STFF-SPCLST CNTRT,HUXLEY ASSOCIATES,0000216099,1619.50
DEPARTMENT OF ENERGY AND CLIMATE CHANGE,THE COAL AUTHORITY,24/11/2014,LEGAL COSTS,ENVIRONMENT,PROF SER-LEGAL SERVICES,WALKER MORRIS,0000216104,1137.10
DEPARTMENT OF ENERGY AND CLIMATE CHANGE,THE COAL AUTHORITY,28/11/2014,M/W DISCHARGE CONSENTS,ENVIRONMENT,ENERGY&UTILITIES-WATER,ENVIRONMENT AGENCY,0000216105,9961.60
DEPARTMENT OF ENERGY AND CLIMATE CHANGE,THE COAL AUTHORITY,28/11/2014,M/W POWER COSTS,ENVIRONMENT,ENERGY&UTILITIES-ELECTRICITY,EDF ENERGY 1 LIMITED,0000216106,4055.78
DEPARTMENT OF ENERGY AND CLIMATE CHANGE,THE COAL AUTHORITY,01/12/2014,M/W POWER COSTS,ENVIRONMENT,ENERGY&UTILITIES-ELECTRICITY,EDF ENERGY 1 LIMITED,0000216107,6005.88
DEPARTMENT OF ENERGY AND CLIMATE CHANGE,THE COAL AUTHORITY,03/12/2014,M/W CNTRCTR-OPRTNL MNTLY TSKS,ENVIRONMENT,CONSTRUCTION-MAIN CONTRACTORS,INTEGRATED WATER SERVICES,0000216110,4841.80
DEPARTMENT OF ENERGY AND CLIMATE CHANGE,THE COAL AUTHORITY,03/12/2014,M/W CNTRCTR-OPRTNL MNTLY TSKS,ENVIRONMENT,CONSTRUCTION-MAIN CONTRACTORS,INTEGRATED WATER SERVICES,0000216111,131.18
DEPARTMENT OF ENERGY AND CLIMATE CHANGE,THE COAL AUTHORITY,03/12/2014,M/W CNTRCTR-OPRTNL MNTLY TSKS,ENVIRONMENT,CONSTRUCTION-MAIN CONTRACTORS,INTEGRATED WATER SERVICES,0000216111,2064.13
DEPARTMENT OF ENERGY AND CLIMATE CHANGE,THE COAL AUTHORITY,03/12/2014,M/W CNTRCTR-OPRTNL MNTLY TSKS,ENVIRONMENT,CONSTRUCTION-MAIN CONTRACTORS,INTEGRATED WATER SERVICES,0000216113,261.27
DEPARTMENT OF ENERGY AND CLIMATE CHANGE,THE COAL AUTHORITY,03/12/2014,M/W CNTRCTR-OPRTNL MNTLY TSKS,ENVIRONMENT,PROF SER TECH-FORENSIC/LAB SER,INTEGRATED WATER SERVICES,0000216114,164.06
DEPARTMENT OF ENERGY AND CLIMATE CHANGE,THE COAL AUTHORITY,03/12/2014,M/W CNTRCTR-OPRTNL MNTLY TSKS,ENVIRONMENT,PROF SER TECH-FORENSIC/LAB SER,INTEGRATED WATER SERVICES,0000216114,934.27
DEPARTMENT OF ENERGY AND CLIMATE CHANGE,THE COAL AUTHORITY,03/12/2014,M/W CNTRCTR-OPRTNL MNTLY TSKS,ENVIRONMENT,PROF SER TECH-FORENSIC/LAB SER,INTEGRATED WATER SERVICES,0000216114,462.74
DEPARTMENT OF ENERGY AND CLIMATE CHANGE,THE COAL AUTHORITY,03/12/2014,LIABILITY SITES AD-HOC TASKS,ENVIRONMENT,CONSTRUCTION-MAIN CONTRACTORS,INTEGRATED WATER SERVICES,0000216115,186.97
DEPARTMENT OF ENERGY AND CLIMATE CHANGE,THE COAL AUTHORITY,02/12/2014,M/W CNTRCTR-OPRTNL MNTLY TSKS,ENVIRONMENT,PROF SER TECH-FORENSIC/LAB SER,INTEGRATED WATER SERVICES,0000216118,529.65
DEPARTMENT OF ENERGY AND CLIMATE CHANGE,THE COAL AUTHORITY,01/12/2014,CONSULTANTS OPERATIONS,ENVIRONMENT,PROF SER TECH-ENGINEERING SER,SCOTTISH WATER INTERNATIO,0000216119,1500.00
DEPARTMENT OF ENERGY AND CLIMATE CHANGE,THE COAL AUTHORITY,03/12/2014,LEGAL COSTS,ENVIRONMENT,PROF SER-LEGAL SERVICES,DLA PIPER UK LLP,0000216120,3151.66
DEPARTMENT OF ENERGY AND CLIMATE CHANGE,THE COAL AUTHORITY,30/11/2014,PAYMENTS TO AGENCIES FOR TEMPS,ENVIRONMENT,PROF SER TMP STFF-SPCLST CNTRT,MACILDOWIE ASSOCIATES,0000216158,7762.50
DEPARTMENT OF ENERGY AND CLIMATE CHANGE,THE COAL AUTHORITY,23/11/2014,CURR YR ADDNS MINEWATER SCHEME,ENVIRONMENT,CONSTRUCTION-MAIN CONTRACTORS,J N BENTLEY LIMITED,0000216169,17988.26
DEPARTMENT OF ENERGY AND CLIMATE CHANGE,THE COAL AUTHORITY,05/12/2014,FUEL (VEHICLE),ENVIRONMENT,FUELS/LUBRCNT/GAS-FUELS,STAFF EXPENSES CONTROL,0000216177,18.52
DEPARTMENT OF ENERGY AND CLIMATE CHANGE,THE COAL AUTHORITY,05/12/2014,SUBSISTENCE ALLOWANCES,ENVIRONMENT,FACILITIES - FOOD,STAFF EXPENSES CONTROL,0000216177,39.66
DEPARTMENT OF ENERGY AND CLIMATE CHANGE,THE COAL AUTHORITY,04/12/2014,M/W POWER COSTS,ENVIRONMENT,ENERGY&UTILITIES-ELECTRICITY,EDF ENERGY 1 LIMITED,0000216206,968.83
DEPARTMENT OF ENERGY AND CLIMATE CHANGE,THE COAL AUTHORITY,30/11/2014,M/W CONTRCTR OPRNTL MTHLY MAIN,ENVIRONMENT,WASTE MANAGEMENT-WSTE MNGT SER,PREMIER WASTE RECYCLING L,0000216208,16.12
DEPARTMENT OF ENERGY AND CLIMATE CHANGE,THE COAL AUTHORITY,03/12/2014,M/W CONTRCTR OPRNTL MTHLY MAIN,ENVIRONMENT,WASTE MANAGEMENT-WSTE MNGT SER,NORTHUMBERLAND COUNTY COU,0000216209,133.92
DEPARTMENT OF ENERGY AND CLIMATE CHANGE,THE COAL AUTHORITY,02/12/2014,M/W TELECOMS & TELEMETRY,ENVIRONMENT,ICT-TELECOMS,O2 (UK) LIMITED,0000216210,12.50
DEPARTMENT OF ENERGY AND CLIMATE CHANGE,THE COAL AUTHORITY,02/12/2014,M/W TELECOMS & TELEMETRY,ENVIRONMENT,ICT-TELECOMS,O2 (UK) LIMITED,0000216211,12.50
DEPARTMENT OF ENERGY AND CLIMATE CHANGE,THE COAL AUTHORITY,02/12/2014,M/W TELECOMS & TELEMETRY,ENVIRONMENT,ICT-TELECOMS,O2 (UK) LIMITED,0000216212,12.50
DEPARTMENT OF ENERGY AND CLIMATE CHANGE,THE COAL AUTHORITY,03/12/2014,M/W POWER COSTS,ENVIRONMENT,ENERGY&UTILITIES-ELECTRICITY,EDF ENERGY 1 LIMITED,0000216222,61.29
DEPARTMENT OF ENERGY AND CLIMATE CHANGE,THE COAL AUTHORITY,03/12/2014,M/W WATER CHARGES,ENVIRONMENT,ENERGY&UTILITIES-WATER,DWR CYMRU WELSH WATER,0000216226,54.75
DEPARTMENT OF ENERGY AND CLIMATE CHANGE,THE COAL AUTHORITY,30/11/2014,FARES - RAIL,ENVIRONMENT,TRAVEL&EVENTS-RAIL,REDFERN TRAVEL LTD,0000216227,2456.64
DEPARTMENT OF ENERGY AND CLIMATE CHANGE,THE COAL AUTHORITY,30/11/2014,HOTEL ACCOMMODATION,ENVIRONMENT,TRAVEL&EVENTS-HOTELS,REDFERN TRAVEL LTD,0000216228,1539.49
DEPARTMENT OF ENERGY AND CLIMATE CHANGE,THE COAL AUTHORITY,05/12/2014,M/W CHEMICAL OPERATIONAL,ENVIRONMENT,ENGRNG GOODS-NON-MDICL CHMCLS,BIOCHEMICA UK LIMITED,0000216237,2240.00
DEPARTMENT OF ENERGY AND CLIMATE CHANGE,THE COAL AUTHORITY,05/12/2014,M/W CHEMICAL OPERATIONAL,ENVIRONMENT,ENGRNG GOODS-NON-MDICL CHMCLS,BIOCHEMICA UK LIMITED,0000216238,4700.00
DEPARTMENT OF ENERGY AND CLIMATE CHANGE,THE COAL AUTHORITY,05/12/2014,PAYMENTS TO AGENCIES FOR TEMPS,ENVIRONMENT,PROF SER TMP STFF-TEMP WRKERS,KEY PERSONNEL SOLUTIONS L,0000216242,470.12
DEPARTMENT OF ENERGY AND CLIMATE CHANGE,THE COAL AUTHORITY,09/12/2014,PAYMENTS TO AGENCIES FOR TEMPS,ENVIRONMENT,PROF SER TMP STFF-SPCLST CNTRT,HUXLEY ASSOCIATES,0000216243,1845.00
DEPARTMENT OF ENERGY AND CLIMATE CHANGE,THE COAL AUTHORITY,05/12/2014,MEETINGS,ENVIRONMENT,TRAVEL&EVENTS-EVENT ORGNSTN,EASTWOOD HALL,0000216255,311.67
DEPARTMENT OF ENERGY AND CLIMATE CHANGE,THE COAL AUTHORITY,05/12/2014,M/W POWER COSTS,ENVIRONMENT,ENERGY&UTILITIES-ELECTRICITY,EDF ENERGY,0000216275,1563.22
DEPARTMENT OF ENERGY AND CLIMATE CHANGE,THE COAL AUTHORITY,05/12/2014,M/W POWER COSTS,ENVIRONMENT,ENERGY&UTILITIES-ELECTRICITY,EDF ENERGY,0000216275,14146.67
DEPARTMENT OF ENERGY AND CLIMATE CHANGE,THE COAL AUTHORITY,05/12/2014,M/W POWER COSTS,ENVIRONMENT,ENERGY&UTILITIES-ELECTRICITY,EDF ENERGY,0000216275,6660.38
DEPARTMENT OF ENERGY AND CLIMATE CHANGE,THE COAL AUTHORITY,05/12/2014,M/W POWER COSTS,ENVIRONMENT,ENERGY&UTILITIES-ELECTRICITY,EDF ENERGY,0000216275,5092.66
DEPARTMENT OF ENERGY AND CLIMATE CHANGE,THE COAL AUTHORITY,05/12/2014,M/W POWER COSTS,ENVIRONMENT,ENERGY&UTILITIES-ELECTRICITY,EDF ENERGY,0000216275,18337.49
DEPARTMENT OF ENERGY AND CLIMATE CHANGE,THE COAL AUTHORITY,05/12/2014,M/W POWER COSTS,ENVIRONMENT,ENERGY&UTILITIES-ELECTRICITY,EDF ENERGY,0000216275,16853.78
DEPARTMENT OF ENERGY AND CLIMATE CHANGE,THE COAL AUTHORITY,05/12/2014,M/W POWER COSTS,ENVIRONMENT,ENERGY&UTILITIES-ELECTRICITY,EDF ENERGY,0000216275,4415.53
DEPARTMENT OF ENERGY AND CLIMATE CHANGE,THE COAL AUTHORITY,05/12/2014,M/W POWER COSTS,ENVIRONMENT,ENERGY&UTILITIES-ELECTRICITY,EDF ENERGY,0000216275,2943.82
DEPARTMENT OF ENERGY AND CLIMATE CHANGE,THE COAL AUTHORITY,05/12/2014,M/W POWER COSTS,ENVIRONMENT,ENERGY&UTILITIES-ELECTRICITY,EDF ENERGY,0000216275,14406.11
DEPARTMENT OF ENERGY AND CLIMATE CHANGE,THE COAL AUTHORITY,05/12/2014,M/W POWER COSTS,ENVIRONMENT,ENERGY&UTILITIES-ELECTRICITY,EDF ENERGY,0000216275,12879.40
DEPARTMENT OF ENERGY AND CLIMATE CHANGE,THE COAL AUTHORITY,05/12/2014,M/W POWER COSTS,ENVIRONMENT,ENERGY&UTILITIES-ELECTRICITY,EDF ENERGY,0000216275,1073.75
DEPARTMENT OF ENERGY AND CLIMATE CHANGE,THE COAL AUTHORITY,05/12/2014,M/W POWER COSTS,ENVIRONMENT,ENERGY&UTILITIES-ELECTRICITY,EDF ENERGY,0000216275,4393.88
DEPARTMENT OF ENERGY AND CLIMATE CHANGE,THE COAL AUTHORITY,05/12/2014,M/W POWER COSTS,ENVIRONMENT,ENERGY&UTILITIES-ELECTRICITY,EDF ENERGY,0000216275,26077.71
DEPARTMENT OF ENERGY AND CLIMATE CHANGE,THE COAL AUTHORITY,05/12/2014,M/W POWER COSTS,ENVIRONMENT,ENERGY&UTILITIES-ELECTRICITY,EDF ENERGY,0000216275,5842.18
DEPARTMENT OF ENERGY AND CLIMATE CHANGE,THE COAL AUTHORITY,05/12/2014,M/W POWER COSTS,ENVIRONMENT,ENERGY&UTILITIES-ELECTRICITY,EDF ENERGY,0000216275,5890.16
DEPARTMENT OF ENERGY AND CLIMATE CHANGE,THE COAL AUTHORITY,30/11/2014,M/W SLUDGE DISPOSAL,ENVIRONMENT,WASTE MANAGEMENT-WSTE MNGT SER,HARGREAVES (UK) SERVICES,0000216280,13868.36
DEPARTMENT OF ENERGY AND CLIMATE CHANGE,THE COAL AUTHORITY,03/12/2014,M/W WATER CHARGES,ENVIRONMENT,ENERGY&UTILITIES-WATER,NORTHUMBRIAN WATER LIMITE,0000216281,50.18
DEPARTMENT OF ENERGY AND CLIMATE CHANGE,THE COAL AUTHORITY,03/12/2014,M/W WATER CHARGES,ENVIRONMENT,ENERGY&UTILITIES-WATER,NORTHUMBRIAN WATER LIMITE,0000216282,18.18
DEPARTMENT OF ENERGY AND CLIMATE CHANGE,THE COAL AUTHORITY,08/12/2014,M/W POWER COSTS,ENVIRONMENT,ENERGY&UTILITIES-ELECTRICITY,BRITISH GAS BUSINESS,0000216301,472.12
DEPARTMENT OF ENERGY AND CLIMATE CHANGE,THE COAL AUTHORITY,08/12/2014,M/W POWER COSTS,ENVIRONMENT,ENERGY&UTILITIES-ELECTRICITY,BRITISH GAS BUSINESS,0000216302,413.10
DEPARTMENT OF ENERGY AND CLIMATE CHANGE,THE COAL AUTHORITY,08/12/2014,M/W POWER COSTS,ENVIRONMENT,ENERGY&UTILITIES-ELECTRICITY,BRITISH GAS BUSINESS,0000216303,666.65
DEPARTMENT OF ENERGY AND CLIMATE CHANGE,THE COAL AUTHORITY,08/12/2014,M/W POWER COSTS,ENVIRONMENT,ENERGY&UTILITIES-ELECTRICITY,BRITISH GAS BUSINESS,0000216304,370.65
DEPARTMENT OF ENERGY AND CLIMATE CHANGE,THE COAL AUTHORITY,08/12/2014,M/W RENTS PAYABLE,ENVIRONMENT,FACILITIES-BUILDING MANAGEMENT,NETWORK RAIL,0000216308,1799.61
DEPARTMENT OF ENERGY AND CLIMATE CHANGE,THE COAL AUTHORITY,01/11/2014,M/W CONTRCTR OPRNTL MTHLY MAIN,ENVIRONMENT,CONSTRUCTION-MAIN CONTRACTORS,NATIONAL COAL MINING MUSE,0000216309,3880.00
DEPARTMENT OF ENERGY AND CLIMATE CHANGE,THE COAL AUTHORITY,30/11/2014,CONSULTANTS OPERATIONS,ENVIRONMENT,CONSTRUCTION-CNSTRN SER PROVDR,HYDRO LOGIC SERVICES LLP,0000216311,487.23
DEPARTMENT OF ENERGY AND CLIMATE CHANGE,THE COAL AUTHORITY,04/12/2014,M/W RENTS PAYABLE,ENVIRONMENT,FACILITIES-BUILDING MANAGEMENT,GEORGE F WHITE,0000216313,550.00
DEPARTMENT OF ENERGY AND CLIMATE CHANGE,THE COAL AUTHORITY,09/12/2014,R&D-EXTERNAL COSTS,ENVIRONMENT,CONSTRUCTION-CNSTRN SER PROVDR,INTEGRATED WATER SERVICES,0000216314,130.60
DEPARTMENT OF ENERGY AND CLIMATE CHANGE,THE COAL AUTHORITY,09/12/2014,R&D-EXTERNAL COSTS,ENVIRONMENT,CONSTRUCTION-CNSTRN SER PROVDR,INTEGRATED WATER SERVICES,0000216314,130.60
DEPARTMENT OF ENERGY AND CLIMATE CHANGE,THE COAL AUTHORITY,05/12/2014,M/W CNTRCTR-OPRTNL MNTLY TSKS,ENVIRONMENT,CONSTRUCTION-MAIN CONTRACTORS,INTEGRATED WATER SERVICES,0000216315,893.25
DEPARTMENT OF ENERGY AND CLIMATE CHANGE,THE COAL AUTHORITY,05/12/2014,M/W CNTRCTR-OPRTNL MNTLY TSKS,ENVIRONMENT,CONSTRUCTION-MAIN CONTRACTORS,INTEGRATED WATER SERVICES,0000216316,821.79
DEPARTMENT OF ENERGY AND CLIMATE CHANGE,THE COAL AUTHORITY,05/12/2014,M/W CNTRCTR-OPRTNL MNTLY TSKS,ENVIRONMENT,CONSTRUCTION-MAIN CONTRACTORS,INTEGRATED WATER SERVICES,0000216317,1136.17
DEPARTMENT OF ENERGY AND CLIMATE CHANGE,THE COAL AUTHORITY,05/12/2014,M/W CNTRCTR-OPRTNL MNTLY TSKS,ENVIRONMENT,CONSTRUCTION-MAIN CONTRACTORS,INTEGRATED WATER SERVICES,0000216317,1136.17
DEPARTMENT OF ENERGY AND CLIMATE CHANGE,THE COAL AUTHORITY,10/12/2014,M/W CNTRCTR-OPRTNL MNTLY TSKS,ENVIRONMENT,CONSTRUCTION-MAIN CONTRACTORS,INTEGRATED WATER SERVICES,0000216319,114.28
DEPARTMENT OF ENERGY AND CLIMATE CHANGE,THE COAL AUTHORITY,10/12/2014,M/W CNTRCTR-OPRTNL MNTLY TSKS,ENVIRONMENT,CONSTRUCTION-MAIN CONTRACTORS,INTEGRATED WATER SERVICES,0000216320,1599.86
DEPARTMENT OF ENERGY AND CLIMATE CHANGE,THE COAL AUTHORITY,10/12/2014,M/W CNTRCTR-OPRTNL MNTLY TSKS,ENVIRONMENT,CONSTRUCTION-MAIN CONTRACTORS,INTEGRATED WATER SERVICES,0000216322,990.00
DEPARTMENT OF ENERGY AND CLIMATE CHANGE,THE COAL AUTHORITY,10/12/2014,M/W CNTRCTR-OPRTNL MNTLY TSKS,ENVIRONMENT,CONSTRUCTION-MAIN CONTRACTORS,INTEGRATED WATER SERVICES,0000216322,732.57
DEPARTMENT OF ENERGY AND CLIMATE CHANGE,THE COAL AUTHORITY,10/12/2014,M/W CNTRCTR-OPRTNL MNTLY TSKS,ENVIRONMENT,CONSTRUCTION-MAIN CONTRACTORS,INTEGRATED WATER SERVICES,0000216324,6033.61
DEPARTMENT OF ENERGY AND CLIMATE CHANGE,THE COAL AUTHORITY,10/12/2014,M/W CNTRCTR-OPRTNL MNTLY TSKS,ENVIRONMENT,CONSTRUCTION-MAIN CONTRACTORS,INTEGRATED WATER SERVICES,0000216324,128.04
DEPARTMENT OF ENERGY AND CLIMATE CHANGE,THE COAL AUTHORITY,10/12/2014,M/W CNTRCTR-OPRTNL MNTLY TSKS,ENVIRONMENT,CONSTRUCTION-MAIN CONTRACTORS,INTEGRATED WATER SERVICES,0000216324,2716.54
DEPARTMENT OF ENERGY AND CLIMATE CHANGE,THE COAL AUTHORITY,10/12/2014,MONITORING & FLOW MEASUREMENT,ENVIRONMENT,PROF SER CNSLTNCY-PPM CNSLTNCY,INTEGRATED WATER SERVICES,0000216325,429.81
DEPARTMENT OF ENERGY AND CLIMATE CHANGE,THE COAL AUTHORITY,11/12/2014,MILEAGE PAYMENTS,ENVIRONMENT,FUELS/LUBRCNT/GAS-FUELS,STAFF EXPENSES CONTROL,0000216343,19.80
DEPARTMENT OF ENERGY AND CLIMATE CHANGE,THE COAL AUTHORITY,11/12/2014,SUBSISTENCE ALLOWANCES,ENVIRONMENT,FACILITIES - FOOD,STAFF EXPENSES CONTROL,0000216343,15.68
DEPARTMENT OF ENERGY AND CLIMATE CHANGE,THE COAL AUTHORITY,08/12/2014,CONSULTANTS-INVESTIGATIONS,ENVIRONMENT,PROF SER-OPERATIONAL SERVICES,COMPANY BARCLAYCARD,0000216348,76.75
DEPARTMENT OF ENERGY AND CLIMATE CHANGE,THE COAL AUTHORITY,08/12/2014,CONSULTANTS-INVESTIGATIONS,ENVIRONMENT,PROF SER-OPERATIONAL SERVICES,COMPANY BARCLAYCARD,0000216348,716.40
DEPARTMENT OF ENERGY AND CLIMATE CHANGE,THE COAL AUTHORITY,08/12/2014,PROFESSIONAL SUBSCRIPTIONS,ENVIRONMENT,PERSONNEL RLTD-HR BUS PRCS O/S,COMPANY BARCLAYCARD,0000216348,310.00
DEPARTMENT OF ENERGY AND CLIMATE CHANGE,THE COAL AUTHORITY,08/12/2014,FUEL (VEHICLE),ENVIRONMENT,FUELS/LUBRCNT/GAS-FUELS,COMPANY BARCLAYCARD,0000216354,64.32
DEPARTMENT OF ENERGY AND CLIMATE CHANGE,THE COAL AUTHORITY,08/12/2014,INCIDENTALS,ENVIRONMENT,VEHICLES-FLEET MANAGEMENT,COMPANY BARCLAYCARD,0000216354,12.30
DEPARTMENT OF ENERGY AND CLIMATE CHANGE,THE COAL AUTHORITY,08/12/2014,SUBSISTENCE ALLOWANCES,ENVIRONMENT,FACILITIES - FOOD,COMPANY BARCLAYCARD,0000216354,74.73
DEPARTMENT OF ENERGY AND CLIMATE CHANGE,THE COAL AUTHORITY,08/12/2014,SUBSISTENCE ALLOWANCES,ENVIRONMENT,FACILITIES - FOOD,COMPANY BARCLAYCARD,0000216355,23.71
DEPARTMENT OF ENERGY AND CLIMATE CHANGE,THE COAL AUTHORITY,10/12/2014,R&D-EXTERNAL COSTS,ENVIRONMENT,PROF SER TECH-FORENSIC/LAB SER,ENVIRONMENTAL SCIENTIFICS,0000216363,184.48
DEPARTMENT OF ENERGY AND CLIMATE CHANGE,THE COAL AUTHORITY,10/12/2014,R&D-EXTERNAL COSTS,ENVIRONMENT,PROF SER TECH-FORENSIC/LAB SER,ENVIRONMENTAL SCIENTIFICS,0000216363,184.48
DEPARTMENT OF ENERGY AND CLIMATE CHANGE,THE COAL AUTHORITY,10/12/2014,WATER SAMPLING - OPERATIONAL,ENVIRONMENT,PROF SER TECH-FORENSIC/LAB SER,ENVIRONMENTAL SCIENTIFICS,0000216366,102.60
DEPARTMENT OF ENERGY AND CLIMATE CHANGE,THE COAL AUTHORITY,11/12/2014,M/W WATER CHARGES,ENVIRONMENT,ENERGY&UTILITIES-WATER,BUSINESS STREAM,0000216406,4500.96
DEPARTMENT OF ENERGY AND CLIMATE CHANGE,THE COAL AUTHORITY,11/12/2014,M/W POWER COSTS,ENVIRONMENT,ENERGY&UTILITIES-ELECTRICITY,BRITISH GAS BUSINESS,0000216407,794.71
DEPARTMENT OF ENERGY AND CLIMATE CHANGE,THE COAL AUTHORITY,11/12/2014,M/W POWER COSTS,ENVIRONMENT,ENERGY&UTILITIES-ELECTRICITY,BRITISH GAS BUSINESS,0000216432,855.55
DEPARTMENT OF ENERGY AND CLIMATE CHANGE,THE COAL AUTHORITY,11/12/2014,M/W POWER COSTS,ENVIRONMENT,ENERGY&UTILITIES-ELECTRICITY,BRITISH GAS BUSINESS,0000216432,1655.57
DEPARTMENT OF ENERGY AND CLIMATE CHANGE,THE COAL AUTHORITY,11/12/2014,M/W POWER COSTS,ENVIRONMENT,ENERGY&UTILITIES-ELECTRICITY,BRITISH GAS BUSINESS,0000216432,655.58
DEPARTMENT OF ENERGY AND CLIMATE CHANGE,THE COAL AUTHORITY,11/12/2014,M/W POWER COSTS,ENVIRONMENT,ENERGY&UTILITIES-ELECTRICITY,BRITISH GAS BUSINESS,0000216432,387.84
DEPARTMENT OF ENERGY AND CLIMATE CHANGE,THE COAL AUTHORITY,11/12/2014,M/W POWER COSTS,ENVIRONMENT,ENERGY&UTILITIES-ELECTRICITY,BRITISH GAS BUSINESS,0000216432,3090.94
DEPARTMENT OF ENERGY AND CLIMATE CHANGE,THE COAL AUTHORITY,11/12/2014,M/W POWER COSTS,ENVIRONMENT,ENERGY&UTILITIES-ELECTRICITY,BRITISH GAS BUSINESS,0000216432,1411.29
DEPARTMENT OF ENERGY AND CLIMATE CHANGE,THE COAL AUTHORITY,11/12/2014,M/W POWER COSTS,ENVIRONMENT,ENERGY&UTILITIES-ELECTRICITY,BRITISH GAS BUSINESS,0000216432,1120.39
DEPARTMENT OF ENERGY AND CLIMATE CHANGE,THE COAL AUTHORITY,11/12/2014,M/W POWER COSTS,ENVIRONMENT,ENERGY&UTILITIES-ELECTRICITY,BRITISH GAS BUSINESS,0000216432,313.76
DEPARTMENT OF ENERGY AND CLIMATE CHANGE,THE COAL AUTHORITY,11/12/2014,M/W POWER COSTS,ENVIRONMENT,ENERGY&UTILITIES-ELECTRICITY,BRITISH GAS BUSINESS,0000216432,11.63
DEPARTMENT OF ENERGY AND CLIMATE CHANGE,THE COAL AUTHORITY,11/12/2014,M/W POWER COSTS,ENVIRONMENT,ENERGY&UTILITIES-ELECTRICITY,BRITISH GAS BUSINESS,0000216432,931.44
DEPARTMENT OF ENERGY AND CLIMATE CHANGE,THE COAL AUTHORITY,11/12/2014,M/W POWER COSTS,ENVIRONMENT,ENERGY&UTILITIES-ELECTRICITY,BRITISH GAS BUSINESS,0000216432,897.04
DEPARTMENT OF ENERGY AND CLIMATE CHANGE,THE COAL AUTHORITY,11/12/2014,M/W POWER COSTS,ENVIRONMENT,ENERGY&UTILITIES-ELECTRICITY,BRITISH GAS BUSINESS,0000216432,2196.12
DEPARTMENT OF ENERGY AND CLIMATE CHANGE,THE COAL AUTHORITY,11/12/2014,M/W POWER COSTS,ENVIRONMENT,ENERGY&UTILITIES-ELECTRICITY,BRITISH GAS BUSINESS,0000216432,86.76
DEPARTMENT OF ENERGY AND CLIMATE CHANGE,THE COAL AUTHORITY,11/12/2014,M/W POWER COSTS,ENVIRONMENT,ENERGY&UTILITIES-ELECTRICITY,BRITISH GAS BUSINESS,0000216432,1394.09
DEPARTMENT OF ENERGY AND CLIMATE CHANGE,THE COAL AUTHORITY,11/12/2014,M/W POWER COSTS,ENVIRONMENT,ENERGY&UTILITIES-ELECTRICITY,BRITISH GAS BUSINESS,0000216432,812.78
DEPARTMENT OF ENERGY AND CLIMATE CHANGE,THE COAL AUTHORITY,11/12/2014,M/W POWER COSTS,ENVIRONMENT,ENERGY&UTILITIES-ELECTRICITY,BRITISH GAS BUSINESS,0000216432,1105.33
DEPARTMENT OF ENERGY AND CLIMATE CHANGE,THE COAL AUTHORITY,11/12/2014,M/W POWER COSTS,ENVIRONMENT,ENERGY&UTILITIES-ELECTRICITY,BRITISH GAS BUSINESS,0000216433,-376.28
DEPARTMENT OF ENERGY AND CLIMATE CHANGE,THE COAL AUTHORITY,12/12/2014,PAYMENTS TO AGENCIES FOR TEMPS,ENVIRONMENT,PROF SER TMP STFF-TEMP WRKERS,KEY PERSONNEL SOLUTIONS L,0000216454,450.80
DEPARTMENT OF ENERGY AND CLIMATE CHANGE,THE COAL AUTHORITY,08/12/2014,INCIDENTALS,ENVIRONMENT,VEHICLES-FLEET MANAGEMENT,COMPANY BARCLAYCARD,0000216460,17.76
DEPARTMENT OF ENERGY AND CLIMATE CHANGE,THE COAL AUTHORITY,08/12/2014,SUBSISTENCE ALLOWANCES,ENVIRONMENT,FACILITIES - FOOD,COMPANY BARCLAYCARD,0000216460,26.99
DEPARTMENT OF ENERGY AND CLIMATE CHANGE,THE COAL AUTHORITY,08/12/2014,SUBSISTENCE ALLOWANCES,ENVIRONMENT,FACILITIES - FOOD,COMPANY BARCLAYCARD,0000216461,157.65
DEPARTMENT OF ENERGY AND CLIMATE CHANGE,THE COAL AUTHORITY,08/12/2014,HOTEL ACCOMMODATION,ENVIRONMENT,TRAVEL&EVENTS-HOTELS,COMPANY BARCLAYCARD,0000216465,205.77
DEPARTMENT OF ENERGY AND CLIMATE CHANGE,THE COAL AUTHORITY,08/12/2014,INCIDENTALS,ENVIRONMENT,VEHICLES-FLEET MANAGEMENT,COMPANY BARCLAYCARD,0000216465,54.17
DEPARTMENT OF ENERGY AND CLIMATE CHANGE,THE COAL AUTHORITY,08/12/2014,INCIDENTALS,ENVIRONMENT,VEHICLES-FLEET MANAGEMENT,COMPANY BARCLAYCARD,0000216465,13.33
DEPARTMENT OF ENERGY AND CLIMATE CHANGE,THE COAL AUTHORITY,08/12/2014,INCIDENTALS,ENVIRONMENT,VEHICLES-FLEET MANAGEMENT,COMPANY BARCLAYCARD,0000216467,20.00
DEPARTMENT OF ENERGY AND CLIMATE CHANGE,THE COAL AUTHORITY,08/12/2014,SUBSISTENCE ALLOWANCES,ENVIRONMENT,FACILITIES - FOOD,COMPANY BARCLAYCARD,0000216467,33.23
DEPARTMENT OF ENERGY AND CLIMATE CHANGE,THE COAL AUTHORITY,08/12/2014,CURR YR ADDNS MINEWATER SCHEME,ENVIRONMENT,CONSTRUCTION-CNSTRN SER PROVDR,COMPANY BARCLAYCARD,0000216476,21.65
DEPARTMENT OF ENERGY AND CLIMATE CHANGE,THE COAL AUTHORITY,08/12/2014,FUEL (VEHICLE),ENVIRONMENT,FUELS/LUBRCNT/GAS-FUELS,COMPANY BARCLAYCARD,0000216480,66.35
DEPARTMENT OF ENERGY AND CLIMATE CHANGE,THE COAL AUTHORITY,08/12/2014,HOTEL ACCOMMODATION,ENVIRONMENT,TRAVEL&EVENTS-HOTELS,COMPANY BARCLAYCARD,0000216480,39.95
DEPARTMENT OF ENERGY AND CLIMATE CHANGE,THE COAL AUTHORITY,08/12/2014,SUBSISTENCE ALLOWANCES,ENVIRONMENT,FACILITIES - FOOD,COMPANY BARCLAYCARD,0000216480,37.30
DEPARTMENT OF ENERGY AND CLIMATE CHANGE,THE COAL AUTHORITY,08/12/2014,INCIDENTALS,ENVIRONMENT,VEHICLES-FLEET MANAGEMENT,COMPANY BARCLAYCARD,0000216485,7.08
DEPARTMENT OF ENERGY AND CLIMATE CHANGE,THE COAL AUTHORITY,08/12/2014,SUBSISTENCE ALLOWANCES,ENVIRONMENT,FACILITIES - FOOD,COMPANY BARCLAYCARD,0000216485,4.50
DEPARTMENT OF ENERGY AND CLIMATE CHANGE,THE COAL AUTHORITY,08/12/2014,FUEL (VEHICLE),ENVIRONMENT,FUELS/LUBRCNT/GAS-FUELS,COMPANY BARCLAYCARD,0000216486,68.61
DEPARTMENT OF ENERGY AND CLIMATE CHANGE,THE COAL AUTHORITY,08/12/2014,SUBSISTENCE ALLOWANCES,ENVIRONMENT,FACILITIES - FOOD,COMPANY BARCLAYCARD,0000216486,27.70
DEPARTMENT OF ENERGY AND CLIMATE CHANGE,THE COAL AUTHORITY,17/12/2014,M/W TELECOMS & TELEMETRY,ENVIRONMENT,ICT-TELECOMS,WYLESS PLC,0000216498,50.00
DEPARTMENT OF ENERGY AND CLIMATE CHANGE,THE COAL AUTHORITY,17/12/2014,CHILDCARE VOUCHERS,ENVIRONMENT,PERSONNEL RLTD-STAFF CHILDCARE,FISHER GERMAN,0000216513,50.00
DEPARTMENT OF ENERGY AND CLIMATE CHANGE,THE COAL AUTHORITY,15/12/2014,CONTRACTORS - BOREHOLES,ENVIRONMENT,CONSTRUCTION-MAIN CONTRACTORS,DRILCORP LIMITED,0000216536,3119.04
DEPARTMENT OF ENERGY AND CLIMATE CHANGE,THE COAL AUTHORITY,15/12/2014,M/W TELECOMS & TELEMETRY,ENVIRONMENT,ICT-TELECOMS,VODAFONE LIMITED (CORPORA,0000216538,495.42
DEPARTMENT OF ENERGY AND CLIMATE CHANGE,THE COAL AUTHORITY,18/12/2014,M/W CNTRCTR-OPRTNL MNTLY TSKS,ENVIRONMENT,CONSTRUCTION-MAIN CONTRACTORS,INTEGRATED WATER SERVICES,0000216549,1210.11
DEPARTMENT OF ENERGY AND CLIMATE CHANGE,THE COAL AUTHORITY,18/12/2014,M/W CNTRCTR-OPRTNL MNTLY TSKS,ENVIRONMENT,CONSTRUCTION-MAIN CONTRACTORS,INTEGRATED WATER SERVICES,0000216549,175.70
DEPARTMENT OF ENERGY AND CLIMATE CHANGE,THE COAL AUTHORITY,18/12/2014,M/W CNTRCTR-OPRTNL MNTLY TSKS,ENVIRONMENT,CONSTRUCTION-MAIN CONTRACTORS,INTEGRATED WATER SERVICES,0000216549,63.20
DEPARTMENT OF ENERGY AND CLIMATE CHANGE,THE COAL AUTHORITY,18/12/2014,M/W CNTRCTR-OPRTNL MNTLY TSKS,ENVIRONMENT,CONSTRUCTION-MAIN CONTRACTORS,INTEGRATED WATER SERVICES,0000216552,4516.08
DEPARTMENT OF ENERGY AND CLIMATE CHANGE,THE COAL AUTHORITY,18/12/2014,M/W CNTRCTR-OPRTNL MNTLY TSKS,ENVIRONMENT,CONSTRUCTION-MAIN CONTRACTORS,INTEGRATED WATER SERVICES,0000216552,5400.00
DEPARTMENT OF ENERGY AND CLIMATE CHANGE,THE COAL AUTHORITY,18/12/2014,M/W SLUDGE DISPOSAL,ENVIRONMENT,CONSTRUCTION-MAIN CONTRACTORS,INTEGRATED WATER SERVICES,0000216552,3873.68
DEPARTMENT OF ENERGY AND CLIMATE CHANGE,THE COAL AUTHORITY,08/12/2014,FARES - RAIL,ENVIRONMENT,TRAVEL&EVENTS-RAIL,COMPANY BARCLAYCARD,0000216554,30.70
DEPARTMENT OF ENERGY AND CLIMATE CHANGE,THE COAL AUTHORITY,08/12/2014,SUBSISTENCE ALLOWANCES,ENVIRONMENT,FACILITIES - FOOD,COMPANY BARCLAYCARD,0000216554,18.89
DEPARTMENT OF ENERGY AND CLIMATE CHANGE,THE COAL AUTHORITY,17/12/2014,M/W RENTS PAYABLE,ENVIRONMENT,FACILITIES-BUILDING MANAGEMENT,SMITHS GORE,0000216563,600.00
DEPARTMENT OF ENERGY AND CLIMATE CHANGE,THE COAL AUTHORITY,17/12/2014,M/W RENTS PAYABLE,ENVIRONMENT,FACILITIES-BUILDING MANAGEMENT,SMITHS GORE,0000216564,450.00
DEPARTMENT OF ENERGY AND CLIMATE CHANGE,THE COAL AUTHORITY,05/12/2014,TRAINING AND EDUCATION,ENVIRONMENT,PROF SER LRNG&DEV-STAFF TRNING,CNCLTN OF INV 215547,35001856,-569.00
DEPARTMENT OF ENERGY AND CLIMATE CHANGE,THE COAL AUTHORITY,18/12/2014,SUBSISTENCE ALLOWANCES,ENVIRONMENT,FACILITIES - FOOD,INCREASE DOC 216461,35001944,3.00
DEPARTMENT OF ENERGY AND CLIMATE CHANGE,THE COAL AUTHORITY,14/11/2014,POOL VEHICLE USAGE,FACILITIES MANAGEMENT,VEHICLES-VEHICLE MAINTENANCE,ROSPA,0000215747,98.00
DEPARTMENT OF ENERGY AND CLIMATE CHANGE,THE COAL AUTHORITY,19/11/2014,STATIONERY,FACILITIES MANAGEMENT,OFFICE SOLUTIONS-OFFCE SPPLIES,BANNER BUSINESS SOLUTIONS,0000215984,220.98
DEPARTMENT OF ENERGY AND CLIMATE CHANGE,THE COAL AUTHORITY,19/11/2014,STATIONERY,FACILITIES MANAGEMENT,OFFICE SOLUTIONS-OFFCE SPPLIES,BANNER BUSINESS SOLUTIONS,0000215985,11.96
DEPARTMENT OF ENERGY AND CLIMATE CHANGE,THE COAL AUTHORITY,28/11/2014,POOL VEHICLE USAGE,FACILITIES MANAGEMENT,VEHICLES-VEHICLE MAINTENANCE,ROSPA,0000216122,238.00
DEPARTMENT OF ENERGY AND CLIMATE CHANGE,THE COAL AUTHORITY,28/11/2014,POOL VEHICLE USAGE,FACILITIES MANAGEMENT,VEHICLES-VEHICLE MAINTENANCE,ROSPA,0000216123,83.30
DEPARTMENT OF ENERGY AND CLIMATE CHANGE,THE COAL AUTHORITY,28/11/2014,POOL VEHICLE USAGE,FACILITIES MANAGEMENT,VEHICLES-VEHICLE MAINTENANCE,ROSPA,0000216124,-98.00
DEPARTMENT OF ENERGY AND CLIMATE CHANGE,THE COAL AUTHORITY,24/11/2014,STATIONERY,FACILITIES MANAGEMENT,OFFICE SOLUTIONS-OFFCE SPPLIES,BANNER BUSINESS SOLUTIONS,0000216125,148.44
DEPARTMENT OF ENERGY AND CLIMATE CHANGE,THE COAL AUTHORITY,24/11/2014,STATIONERY,FACILITIES MANAGEMENT,OFFICE SOLUTIONS-OFFCE SPPLIES,BANNER BUSINESS SOLUTIONS,0000216126,-11.73
DEPARTMENT OF ENERGY AND CLIMATE CHANGE,THE COAL AUTHORITY,26/11/2014,SITE SERVICES,FACILITIES MANAGEMENT,WASTE MANAGEMENT-WSTE MNGT SER,BANNER BUSINESS SOLUTIONS,0000216127,23.40
DEPARTMENT OF ENERGY AND CLIMATE CHANGE,THE COAL AUTHORITY,26/11/2014,SITE SERVICES,FACILITIES MANAGEMENT,WASTE MANAGEMENT-WSTE MNGT SER,BANNER BUSINESS SOLUTIONS,0000216128,13.50
DEPARTMENT OF ENERGY AND CLIMATE CHANGE,THE COAL AUTHORITY,26/11/2014,STATIONERY,FACILITIES MANAGEMENT,OFFICE SOLUTIONS-OFFCE SPPLIES,BANNER BUSINESS SOLUTIONS,0000216129,216.06
DEPARTMENT OF ENERGY AND CLIMATE CHANGE,THE COAL AUTHORITY,03/12/2014,FUEL (VEHICLE),FACILITIES MANAGEMENT,FUELS/LUBRCNT/GAS-FUELS,ALLSTAR BUSINESS SOLUTION,0000216130,67.52
DEPARTMENT OF ENERGY AND CLIMATE CHANGE,THE COAL AUTHORITY,03/12/2014,FUEL (VEHICLE),FACILITIES MANAGEMENT,FUELS/LUBRCNT/GAS-FUELS,ALLSTAR BUSINESS SOLUTION,0000216131,43.36
DEPARTMENT OF ENERGY AND CLIMATE CHANGE,THE COAL AUTHORITY,03/12/2014,FUEL (VEHICLE),FACILITIES MANAGEMENT,FUELS/LUBRCNT/GAS-FUELS,ALLSTAR BUSINESS SOLUTION,0000216132,43.33
DEPARTMENT OF ENERGY AND CLIMATE CHANGE,THE COAL AUTHORITY,03/12/2014,FUEL (VEHICLE),FACILITIES MANAGEMENT,FUELS/LUBRCNT/GAS-FUELS,ALLSTAR BUSINESS SOLUTION,0000216133,32.62
DEPARTMENT OF ENERGY AND CLIMATE CHANGE,THE COAL AUTHORITY,03/12/2014,FUEL (VEHICLE),FACILITIES MANAGEMENT,FUELS/LUBRCNT/GAS-FUELS,ALLSTAR BUSINESS SOLUTION,0000216134,61.38
DEPARTMENT OF ENERGY AND CLIMATE CHANGE,THE COAL AUTHORITY,03/12/2014,FUEL (VEHICLE),FACILITIES MANAGEMENT,FUELS/LUBRCNT/GAS-FUELS,ALLSTAR BUSINESS SOLUTION,0000216135,74.59
DEPARTMENT OF ENERGY AND CLIMATE CHANGE,THE COAL AUTHORITY,03/12/2014,FUEL (VEHICLE),FACILITIES MANAGEMENT,FUELS/LUBRCNT/GAS-FUELS,ALLSTAR BUSINESS SOLUTION,0000216136,105.06
DEPARTMENT OF ENERGY AND CLIMATE CHANGE,THE COAL AUTHORITY,03/12/2014,FUEL (VEHICLE),FACILITIES MANAGEMENT,FUELS/LUBRCNT/GAS-FUELS,ALLSTAR BUSINESS SOLUTION,0000216137,70.19
DEPARTMENT OF ENERGY AND CLIMATE CHANGE,THE COAL AUTHORITY,30/11/2014,SITE SERVICES,FACILITIES MANAGEMENT,WASTE MANAGEMENT-WSTE MNGT SER,ICS WASTE MANAGEMENT,0000216170,324.00
DEPARTMENT OF ENERGY AND CLIMATE CHANGE,THE COAL AUTHORITY,30/11/2014,CONTRACT HIRE VEHICLES,FACILITIES MANAGEMENT,VEHICLES-VEHICLE MAINTENANCE,AUTO SMART VALETING LTD,0000216192,567.00
DEPARTMENT OF ENERGY AND CLIMATE CHANGE,THE COAL AUTHORITY,05/12/2014,ELECTRICITY,FACILITIES MANAGEMENT,ENERGY&UTILITIES-ELECTRICITY,EDF ENERGY,0000216275,11405.77
DEPARTMENT OF ENERGY AND CLIMATE CHANGE,THE COAL AUTHORITY,10/12/2014,FUEL (VEHICLE),FACILITIES MANAGEMENT,FUELS/LUBRCNT/GAS-FUELS,ALLSTAR BUSINESS SOLUTION,0000216328,42.05
DEPARTMENT OF ENERGY AND CLIMATE CHANGE,THE COAL AUTHORITY,10/12/2014,FUEL (VEHICLE),FACILITIES MANAGEMENT,FUELS/LUBRCNT/GAS-FUELS,ALLSTAR BUSINESS SOLUTION,0000216329,22.56
DEPARTMENT OF ENERGY AND CLIMATE CHANGE,THE COAL AUTHORITY,10/12/2014,FUEL (VEHICLE),FACILITIES MANAGEMENT,FUELS/LUBRCNT/GAS-FUELS,ALLSTAR BUSINESS SOLUTION,0000216330,79.64
DEPARTMENT OF ENERGY AND CLIMATE CHANGE,THE COAL AUTHORITY,10/12/2014,FUEL (VEHICLE),FACILITIES MANAGEMENT,FUELS/LUBRCNT/GAS-FUELS,ALLSTAR BUSINESS SOLUTION,0000216331,75.63
DEPARTMENT OF ENERGY AND CLIMATE CHANGE,THE COAL AUTHORITY,10/12/2014,FUEL (VEHICLE),FACILITIES MANAGEMENT,FUELS/LUBRCNT/GAS-FUELS,ALLSTAR BUSINESS SOLUTION,0000216332,26.92
DEPARTMENT OF ENERGY AND CLIMATE CHANGE,THE COAL AUTHORITY,10/12/2014,FUEL (VEHICLE),FACILITIES MANAGEMENT,FUELS/LUBRCNT/GAS-FUELS,ALLSTAR BUSINESS SOLUTION,0000216333,58.45
DEPARTMENT OF ENERGY AND CLIMATE CHANGE,THE COAL AUTHORITY,10/12/2014,FUEL (VEHICLE),FACILITIES MANAGEMENT,FUELS/LUBRCNT/GAS-FUELS,ALLSTAR BUSINESS SOLUTION,0000216334,53.11
DEPARTMENT OF ENERGY AND CLIMATE CHANGE,THE COAL AUTHORITY,10/12/2014,FUEL (VEHICLE),FACILITIES MANAGEMENT,FUELS/LUBRCNT/GAS-FUELS,ALLSTAR BUSINESS SOLUTION,0000216335,60.60
DEPARTMENT OF ENERGY AND CLIMATE CHANGE,THE COAL AUTHORITY,08/12/2014,CONTRACT HIRE VEHICLES,FACILITIES MANAGEMENT,VEHICLES-VEHICLE MAINTENANCE,COMPANY BARCLAYCARD,0000216344,68.30
DEPARTMENT OF ENERGY AND CLIMATE CHANGE,THE COAL AUTHORITY,08/12/2014,SITE MAINTENANCE,FACILITIES MANAGEMENT,ENGINEERING GOODS-INDUSTRIAL,COMPANY BARCLAYCARD,0000216344,27.52
DEPARTMENT OF ENERGY AND CLIMATE CHANGE,THE COAL AUTHORITY,08/12/2014,STATIONERY,FACILITIES MANAGEMENT,OFFICE SOLUTIONS-OFFCE SPPLIES,COMPANY BARCLAYCARD,0000216377,28.69
DEPARTMENT OF ENERGY AND CLIMATE CHANGE,THE COAL AUTHORITY,07/12/2014,PLANT MAINTENANCE,FACILITIES MANAGEMENT,FACILITIES-BUILDING MANAGEMENT,NORLAND MANAGED SERVICES,0000216389,204.99
DEPARTMENT OF ENERGY AND CLIMATE CHANGE,THE COAL AUTHORITY,07/12/2014,PLANT MAINTENANCE,FACILITIES MANAGEMENT,FACILITIES-BUILDING MANAGEMENT,NORLAND MANAGED SERVICES,0000216390,164.01
DEPARTMENT OF ENERGY AND CLIMATE CHANGE,THE COAL AUTHORITY,07/12/2014,PLANT MAINTENANCE,FACILITIES MANAGEMENT,FACILITIES-BUILDING MANAGEMENT,NORLAND MANAGED SERVICES,0000216391,23.10
DEPARTMENT OF ENERGY AND CLIMATE CHANGE,THE COAL AUTHORITY,07/12/2014,SITE MAINTENANCE,FACILITIES MANAGEMENT,FACILITIES-BUILDING MANAGEMENT,NORLAND MANAGED SERVICES,0000216392,46.20
DEPARTMENT OF ENERGY AND CLIMATE CHANGE,THE COAL AUTHORITY,07/12/2014,SITE MAINTENANCE,FACILITIES MANAGEMENT,FACILITIES-BUILDING MANAGEMENT,NORLAND MANAGED SERVICES,0000216393,53.16
DEPARTMENT OF ENERGY AND CLIMATE CHANGE,THE COAL AUTHORITY,07/12/2014,SITE MAINTENANCE,FACILITIES MANAGEMENT,FACILITIES-BUILDING MANAGEMENT,NORLAND MANAGED SERVICES,0000216394,61.33
DEPARTMENT OF ENERGY AND CLIMATE CHANGE,THE COAL AUTHORITY,07/12/2014,SITE MAINTENANCE,FACILITIES MANAGEMENT,FACILITIES-BUILDING MANAGEMENT,NORLAND MANAGED SERVICES,0000216395,220.00
DEPARTMENT OF ENERGY AND CLIMATE CHANGE,THE COAL AUTHORITY,07/12/2014,STATIONERY,FACILITIES MANAGEMENT,OFFICE SOLUTIONS-OFFCE SPPLIES,BANNER BUSINESS SOLUTIONS,0000216402,146.18
DEPARTMENT OF ENERGY AND CLIMATE CHANGE,THE COAL AUTHORITY,08/12/2014,STATIONERY,FACILITIES MANAGEMENT,OFFICE SOLUTIONS-OFFCE SPPLIES,BANNER BUSINESS SOLUTIONS,0000216403,44.16
DEPARTMENT OF ENERGY AND CLIMATE CHANGE,THE COAL AUTHORITY,26/11/2014,PRINTING,FACILITIES MANAGEMENT,OFFICE SOLUTIONS-PRINT,WILLIAMS LEA,0000216410,643.75
DEPARTMENT OF ENERGY AND CLIMATE CHANGE,THE COAL AUTHORITY,08/12/2014,CONTRACT HIRE VEHICLES,FACILITIES MANAGEMENT,VEHICLES-VEHICLE MAINTENANCE,COMPANY BARCLAYCARD,0000216468,56.08
DEPARTMENT OF ENERGY AND CLIMATE CHANGE,THE COAL AUTHORITY,08/12/2014,SITE MAINTENANCE,FACILITIES MANAGEMENT,FACILITIES - SECURITY,COMPANY BARCLAYCARD,0000216468,17.60
DEPARTMENT OF ENERGY AND CLIMATE CHANGE,THE COAL AUTHORITY,15/12/2014,CONTRACT HIRE VEHICLES,FACILITIES MANAGEMENT,VEHICLES-VEHICLE MAINTENANCE,ALLSCREENS NATIONWIDE LTD,0000216505,247.63
DEPARTMENT OF ENERGY AND CLIMATE CHANGE,THE COAL AUTHORITY,16/12/2014,SITE MAINTENANCE,FACILITIES MANAGEMENT,FACILITIES-BUILDING MANAGEMENT,LEVERTON UK LTD,0000216512,1560.00
DEPARTMENT OF ENERGY AND CLIMATE CHANGE,THE COAL AUTHORITY,17/12/2014,FUEL (VEHICLE),FACILITIES MANAGEMENT,FUELS/LUBRCNT/GAS-FUELS,ALLSTAR BUSINESS SOLUTION,0000216517,78.85
DEPARTMENT OF ENERGY AND CLIMATE CHANGE,THE COAL AUTHORITY,17/12/2014,FUEL (VEHICLE),FACILITIES MANAGEMENT,FUELS/LUBRCNT/GAS-FUELS,ALLSTAR BUSINESS SOLUTION,0000216518,40.52
DEPARTMENT OF ENERGY AND CLIMATE CHANGE,THE COAL AUTHORITY,17/12/2014,FUEL (VEHICLE),FACILITIES MANAGEMENT,FUELS/LUBRCNT/GAS-FUELS,ALLSTAR BUSINESS SOLUTION,0000216519,54.11
DEPARTMENT OF ENERGY AND CLIMATE CHANGE,THE COAL AUTHORITY,17/12/2014,FUEL (VEHICLE),FACILITIES MANAGEMENT,FUELS/LUBRCNT/GAS-FUELS,ALLSTAR BUSINESS SOLUTION,0000216520,57.64
DEPARTMENT OF ENERGY AND CLIMATE CHANGE,THE COAL AUTHORITY,17/12/2014,FUEL (VEHICLE),FACILITIES MANAGEMENT,FUELS/LUBRCNT/GAS-FUELS,ALLSTAR BUSINESS SOLUTION,0000216521,83.21
DEPARTMENT OF ENERGY AND CLIMATE CHANGE,THE COAL AUTHORITY,17/12/2014,FUEL (VEHICLE),FACILITIES MANAGEMENT,FUELS/LUBRCNT/GAS-FUELS,ALLSTAR BUSINESS SOLUTION,0000216522,10.08
DEPARTMENT OF ENERGY AND CLIMATE CHANGE,THE COAL AUTHORITY,17/12/2014,FUEL (VEHICLE),FACILITIES MANAGEMENT,FUELS/LUBRCNT/GAS-FUELS,ALLSTAR BUSINESS SOLUTION,0000216523,59.41
DEPARTMENT OF ENERGY AND CLIMATE CHANGE,THE COAL AUTHORITY,17/12/2014,FUEL (VEHICLE),FACILITIES MANAGEMENT,FUELS/LUBRCNT/GAS-FUELS,ALLSTAR BUSINESS SOLUTION,0000216524,77.17
DEPARTMENT OF ENERGY AND CLIMATE CHANGE,THE COAL AUTHORITY,10/12/2014,SITE SERVICES,FACILITIES MANAGEMENT,WASTE MANAGEMENT-WSTE MNGT SER,BANNER BUSINESS SOLUTIONS,0000216558,25.20
DEPARTMENT OF ENERGY AND CLIMATE CHANGE,THE COAL AUTHORITY,10/12/2014,STATIONERY,FACILITIES MANAGEMENT,OFFICE SOLUTIONS-OFFCE SPPLIES,BANNER BUSINESS SOLUTIONS,0000216559,11.73
DEPARTMENT OF ENERGY AND CLIMATE CHANGE,THE COAL AUTHORITY,10/12/2014,STATIONERY,FACILITIES MANAGEMENT,OFFICE SOLUTIONS-OFFCE SPPLIES,BANNER BUSINESS SOLUTIONS,0000216560,171.65
DEPARTMENT OF ENERGY AND CLIMATE CHANGE,THE COAL AUTHORITY,20/11/2014,CHILDCARE VOUCHERS,FINANCE,PERSONNEL RLTD-STAFF CHILDCARE,FIDELITI LIMITED,0000215838,124.00
DEPARTMENT OF ENERGY AND CLIMATE CHANGE,THE COAL AUTHORITY,30/11/2014,SALARY PROCESSING FEES,FINANCE,PROF SER FNCL-BUS PROC O/SRCE,CGI IT UK LTD,0000215983,904.65
DEPARTMENT OF ENERGY AND CLIMATE CHANGE,THE COAL AUTHORITY,30/11/2014,OTHER BANK CHARGES,FINANCE,PROF SER FNCL-BANKING&INVSTMNT,NATIONAL WESTMINSTER BANK,0000216095,74.42
DEPARTMENT OF ENERGY AND CLIMATE CHANGE,THE COAL AUTHORITY,28/11/2014,IT-APPLICATIONS MANAGEMENT,FINANCE,ICT-MAINTENANCE & SUPPORT,BOTTOMLINE TECHNOLOGIES,0000216109,1738.13
DEPARTMENT OF ENERGY AND CLIMATE CHANGE,THE COAL AUTHORITY,05/12/2014,FARES - PUBLIC TRANSPORT,FINANCE,TRAVEL&EVENTS-TAXI,STAFF EXPENSES CONTROL,0000216179,6.20
DEPARTMENT OF ENERGY AND CLIMATE CHANGE,THE COAL AUTHORITY,05/12/2014,FARES - PUBLIC TRANSPORT,FINANCE,TRAVEL&EVENTS-TAXI,STAFF EXPENSES CONTROL,0000216180,5.40
DEPARTMENT OF ENERGY AND CLIMATE CHANGE,THE COAL AUTHORITY,11/12/2014,IT-APPLICATIONS MANAGEMENT,FINANCE,ICT-SOFTWARE,KONTROLLA,0000216307,1520.00
DEPARTMENT OF ENERGY AND CLIMATE CHANGE,THE COAL AUTHORITY,17/12/2014,CHILDCARE VOUCHERS,FINANCE,PERSONNEL RLTD-STAFF CHILDCARE,FIDELITI LIMITED,0000216513,124.00
DEPARTMENT OF ENERGY AND CLIMATE CHANGE,THE COAL AUTHORITY,05/12/2014,FARES - PUBLIC TRANSPORT,HEAD OF REGULATION,TRAVEL&EVENTS-TAXI,STAFF EXPENSES CONTROL,0000216173,8.50
DEPARTMENT OF ENERGY AND CLIMATE CHANGE,THE COAL AUTHORITY,05/12/2014,FARES - RAIL,HEAD OF REGULATION,TRAVEL&EVENTS-RAIL,STAFF EXPENSES CONTROL,0000216173,25.00
DEPARTMENT OF ENERGY AND CLIMATE CHANGE,THE COAL AUTHORITY,05/12/2014,INCIDENTALS,HEAD OF REGULATION,VEHICLES-FLEET MANAGEMENT,STAFF EXPENSES CONTROL,0000216173,29.16
DEPARTMENT OF ENERGY AND CLIMATE CHANGE,THE COAL AUTHORITY,05/12/2014,MILEAGE PAYMENTS,HEAD OF REGULATION,FUELS/LUBRCNT/GAS-FUELS,STAFF EXPENSES CONTROL,0000216173,20.70
DEPARTMENT OF ENERGY AND CLIMATE CHANGE,THE COAL AUTHORITY,05/12/2014,SUBSISTENCE ALLOWANCES,HEAD OF REGULATION,FACILITIES - FOOD,STAFF EXPENSES CONTROL,0000216173,10.49
DEPARTMENT OF ENERGY AND CLIMATE CHANGE,THE COAL AUTHORITY,08/12/2014,FARES - RAIL,HEAD OF REGULATION,TRAVEL&EVENTS-RAIL,COMPANY BARCLAYCARD,0000216428,40.00
DEPARTMENT OF ENERGY AND CLIMATE CHANGE,THE COAL AUTHORITY,08/12/2014,INCIDENTALS,HEAD OF REGULATION,VEHICLES-FLEET MANAGEMENT,COMPANY BARCLAYCARD,0000216428,8.50
DEPARTMENT OF ENERGY AND CLIMATE CHANGE,THE COAL AUTHORITY,18/12/2014,IT-APPLICATIONS MANAGEMENT,HEAD OF REGULATION,ICT-MAINTENANCE & SUPPORT,SOFTWARE LICENCES & MAINT,0000216508,794.60
DEPARTMENT OF ENERGY AND CLIMATE CHANGE,THE COAL AUTHORITY,26/11/2014,IT-APPLICATIONS MANAGEMENT,HISTORIC LIABILITIES,ICT-SYSTEMS DELIVERY,SCISYS UK LTD,0000215901,1598.01
DEPARTMENT OF ENERGY AND CLIMATE CHANGE,THE COAL AUTHORITY,26/11/2014,CURR YR ADD-INTNGBLE INFO TECH,HISTORIC LIABILITIES,ICT-SYSTEMS DELIVERY,SCISYS UK LTD,0000215936,269.18
DEPARTMENT OF ENERGY AND CLIMATE CHANGE,THE COAL AUTHORITY,30/11/2014,PROPERTY RENTS PAYABLE,HISTORIC LIABILITIES,FACILITIES-BUILDING MANAGEMENT,THE BUCCLEUCH ESTATES LTD,0000215987,118.00
DEPARTMENT OF ENERGY AND CLIMATE CHANGE,THE COAL AUTHORITY,24/12/2014,PROPERTY RENTS PAYABLE,HISTORIC LIABILITIES,FACILITIES-BUILDING MANAGEMENT,WELBECK ESTATES COMPANY L,0000216055,80.00
DEPARTMENT OF ENERGY AND CLIMATE CHANGE,THE COAL AUTHORITY,24/12/2014,PROPERTY RENTS PAYABLE,HISTORIC LIABILITIES,FACILITIES-BUILDING MANAGEMENT,WELBECK ESTATES COMPANY L,0000216056,110.93
DEPARTMENT OF ENERGY AND CLIMATE CHANGE,THE COAL AUTHORITY,24/11/2014,LEGAL COSTS,HISTORIC LIABILITIES,PROF SER-LEGAL SERVICES,WALKER MORRIS,0000216104,1320.00
DEPARTMENT OF ENERGY AND CLIMATE CHANGE,THE COAL AUTHORITY,30/11/2014,HOTEL ACCOMMODATION,HISTORIC LIABILITIES,TRAVEL&EVENTS-HOTELS,REDFERN TRAVEL LTD,0000216228,58.30
DEPARTMENT OF ENERGY AND CLIMATE CHANGE,THE COAL AUTHORITY,10/12/2014,LEGAL COSTS,HISTORIC LIABILITIES,PROF SER-OPERATIONAL SERVICES,LAND REGISTRY,0000216252,9.00
DEPARTMENT OF ENERGY AND CLIMATE CHANGE,THE COAL AUTHORITY,10/12/2014,CURR YR ADD-INTNGBLE INFO TECH,HISTORIC LIABILITIES,ICT-SYSTEMS DELIVERY,SCISYS UK LTD,0000216399,269.18
DEPARTMENT OF ENERGY AND CLIMATE CHANGE,THE COAL AUTHORITY,15/12/2014,PROPERTY /TIP MAINTENANCE,HISTORIC LIABILITIES,PROF SER-LEGAL SERVICES,SETTLEMENT OF DILAPIDATIO,0000216401,10000.00
DEPARTMENT OF ENERGY AND CLIMATE CHANGE,THE COAL AUTHORITY,31/12/2014,M/W RENTS PAYABLE,HISTORIC LIABILITIES,FACILITIES-BUILDING MANAGEMENT,COKE TURNER & CO,0000216415,86.66
DEPARTMENT OF ENERGY AND CLIMATE CHANGE,THE COAL AUTHORITY,08/12/2014,SUBSISTENCE ALLOWANCES,HISTORIC LIABILITIES,FACILITIES - FOOD,COMPANY BARCLAYCARD,0000216431,19.29
DEPARTMENT OF ENERGY AND CLIMATE CHANGE,THE COAL AUTHORITY,11/12/2014,PROPERTY RATES PAYABLE,HISTORIC LIABILITIES,ENERGY&UTILITIES-ELECTRICITY,BRITISH GAS BUSINESS,0000216432,45.76
DEPARTMENT OF ENERGY AND CLIMATE CHANGE,THE COAL AUTHORITY,11/12/2014,PROPERTY RATES PAYABLE,HISTORIC LIABILITIES,ENERGY&UTILITIES-ELECTRICITY,BRITISH GAS BUSINESS,0000216432,171.53
DEPARTMENT OF ENERGY AND CLIMATE CHANGE,THE COAL AUTHORITY,04/12/2014,LEGAL COSTS,HISTORIC LIABILITIES,PROF SER-OPERATIONAL SERVICES,LAND REGISTRY,0000216453,33.00
DEPARTMENT OF ENERGY AND CLIMATE CHANGE,THE COAL AUTHORITY,19/12/2014,LEGAL COSTS,HISTORIC LIABILITIES,PROF SER-OPERATIONAL SERVICES,LAND REGISTRY,0000216566,30.00
DEPARTMENT OF ENERGY AND CLIMATE CHANGE,THE COAL AUTHORITY,20/11/2014,CHILDCARE VCHRS-SERVICE CHARGE,HUMAN RESRCES&ORGNSTL DEVLPMNT,PERSONNEL RLTD-STAFF CHILDCARE,FIDELITI LIMITED,0000215838,5.42
DEPARTMENT OF ENERGY AND CLIMATE CHANGE,THE COAL AUTHORITY,13/11/2014,STAFF MEDICALS,HUMAN RESRCES&ORGNSTL DEVLPMNT,PERSONNEL RLTD-STAFF MEDICAL,BLUECREST HEALTH SCREENIN,0000215933,2197.00
DEPARTMENT OF ENERGY AND CLIMATE CHANGE,THE COAL AUTHORITY,18/11/2014,OTHER RECRUITMENT EXPENSES,HUMAN RESRCES&ORGNSTL DEVLPMNT,PERSONNEL RLTD-HR BUS PRCS O/S,ASHLEY KATE HR LTD,0000215934,6650.00
DEPARTMENT OF ENERGY AND CLIMATE CHANGE,THE COAL AUTHORITY,28/11/2014,MEETINGS,HUMAN RESRCES&ORGNSTL DEVLPMNT,FACILITIES - FOOD,RANSOMWOOD ESTATES LTD,0000216098,35.00
DEPARTMENT OF ENERGY AND CLIMATE CHANGE,THE COAL AUTHORITY,28/11/2014,MEETINGS,HUMAN RESRCES&ORGNSTL DEVLPMNT,TRAVEL&EVENTS-EVENT ORGNSTN,RANSOMWOOD ESTATES LTD,0000216098,100.00
DEPARTMENT OF ENERGY AND CLIMATE CHANGE,THE COAL AUTHORITY,03/12/2014,LEGAL COSTS,HUMAN RESRCES&ORGNSTL DEVLPMNT,PROF SER-LEGAL SERVICES,DLA PIPER UK LLP,0000216120,1720.00
DEPARTMENT OF ENERGY AND CLIMATE CHANGE,THE COAL AUTHORITY,04/12/2014,PENSION PROCESSING FEES,HUMAN RESRCES&ORGNSTL DEVLPMNT,PERSONNEL RLTD-HR BUS PRCS O/S,CAPITA CONCESSIONARY FUEL,0000216165,1155.22
DEPARTMENT OF ENERGY AND CLIMATE CHANGE,THE COAL AUTHORITY,30/11/2014,FARES - RAIL,HUMAN RESRCES&ORGNSTL DEVLPMNT,TRAVEL&EVENTS-RAIL,REDFERN TRAVEL LTD,0000216227,153.50
DEPARTMENT OF ENERGY AND CLIMATE CHANGE,THE COAL AUTHORITY,30/11/2014,HOTEL ACCOMMODATION,HUMAN RESRCES&ORGNSTL DEVLPMNT,TRAVEL&EVENTS-HOTELS,REDFERN TRAVEL LTD,0000216228,1.30
DEPARTMENT OF ENERGY AND CLIMATE CHANGE,THE COAL AUTHORITY,08/12/2014,INCIDENTALS,HUMAN RESRCES&ORGNSTL DEVLPMNT,VEHICLES-FLEET MANAGEMENT,COMPANY BARCLAYCARD,0000216374,9.17
DEPARTMENT OF ENERGY AND CLIMATE CHANGE,THE COAL AUTHORITY,08/12/2014,SUBSISTENCE ALLOWANCES,HUMAN RESRCES&ORGNSTL DEVLPMNT,FACILITIES - FOOD,COMPANY BARCLAYCARD,0000216374,12.00
DEPARTMENT OF ENERGY AND CLIMATE CHANGE,THE COAL AUTHORITY,08/12/2014,SUBSISTENCE ALLOWANCES,HUMAN RESRCES&ORGNSTL DEVLPMNT,FACILITIES - FOOD,COMPANY BARCLAYCARD,0000216430,4.15
DEPARTMENT OF ENERGY AND CLIMATE CHANGE,THE COAL AUTHORITY,16/12/2014,HOTEL ACCOMMODATION,HUMAN RESRCES&ORGNSTL DEVLPMNT,TRAVEL&EVENTS-HOTELS,INTERVIEW EXPENSES D BOOT,0000216457,77.00
DEPARTMENT OF ENERGY AND CLIMATE CHANGE,THE COAL AUTHORITY,16/12/2014,MILEAGE PAYMENTS,HUMAN RESRCES&ORGNSTL DEVLPMNT,FUELS/LUBRCNT/GAS-FUELS,INTERVIEW EXPENSES D BOOT,0000216457,148.00
DEPARTMENT OF ENERGY AND CLIMATE CHANGE,THE COAL AUTHORITY,08/12/2014,FARES - RAIL,HUMAN RESRCES&ORGNSTL DEVLPMNT,TRAVEL&EVENTS-RAIL,COMPANY BARCLAYCARD,0000216469,17.90
DEPARTMENT OF ENERGY AND CLIMATE CHANGE,THE COAL AUTHORITY,08/12/2014,OTHER RECRUITMENT EXPENSES,HUMAN RESRCES&ORGNSTL DEVLPMNT,PROF SER-OPERATIONAL SERVICES,COMPANY BARCLAYCARD,0000216469,1250.88
DEPARTMENT OF ENERGY AND CLIMATE CHANGE,THE COAL AUTHORITY,08/12/2014,STAFF MEDICALS,HUMAN RESRCES&ORGNSTL DEVLPMNT,PERSONNEL RLTD-STAFF MEDICAL,COMPANY BARCLAYCARD,0000216469,531.00
DEPARTMENT OF ENERGY AND CLIMATE CHANGE,THE COAL AUTHORITY,08/12/2014,TRAINING AND EDUCATION,HUMAN RESRCES&ORGNSTL DEVLPMNT,PROF SER LRNG&DEV-STAFF TRNING,COMPANY BARCLAYCARD,0000216469,798.00
DEPARTMENT OF ENERGY AND CLIMATE CHANGE,THE COAL AUTHORITY,08/12/2014,OTHER RECRUITMENT EXPENSES,HUMAN RESRCES&ORGNSTL DEVLPMNT,PROF SER-OPERATIONAL SERVICES,COMPANY BARCLAYCARD,0000216470,713.00
DEPARTMENT OF ENERGY AND CLIMATE CHANGE,THE COAL AUTHORITY,08/12/2014,PUBLICATIONS,HUMAN RESRCES&ORGNSTL DEVLPMNT,OPRTNL GOODS&SERV-DEVLPNG MTRL,COMPANY BARCLAYCARD,0000216470,57.97
DEPARTMENT OF ENERGY AND CLIMATE CHANGE,THE COAL AUTHORITY,17/12/2014,CHILDCARE VCHRS-SERVICE CHARGE,HUMAN RESRCES&ORGNSTL DEVLPMNT,PERSONNEL RLTD-STAFF CHILDCARE,FIDELITI LIMITED,0000216513,6.71
DEPARTMENT OF ENERGY AND CLIMATE CHANGE,THE COAL AUTHORITY,28/11/2014,IT-INFRASTRUCTURE MANAGEMENT,ICT -  SERVICE MANAGEMENT,ICT-MAINTENANCE & SUPPORT,NOWCOMM,0000215979,8000.00
DEPARTMENT OF ENERGY AND CLIMATE CHANGE,THE COAL AUTHORITY,28/11/2014,IT-INFRASTRUCTURE MANAGEMENT,ICT -  SERVICE MANAGEMENT,ICT-TELECOMS,VODAFONE LIMITED (CORPORA,0000216103,1800.90
DEPARTMENT OF ENERGY AND CLIMATE CHANGE,THE COAL AUTHORITY,05/12/2014,INCIDENTALS,ICT -  SERVICE MANAGEMENT,VEHICLES-FLEET MANAGEMENT,STAFF EXPENSES CONTROL,0000216172,5.83
DEPARTMENT OF ENERGY AND CLIMATE CHANGE,THE COAL AUTHORITY,05/12/2014,MILEAGE PAYMENTS,ICT -  SERVICE MANAGEMENT,FUELS/LUBRCNT/GAS-FUELS,STAFF EXPENSES CONTROL,0000216172,37.80
DEPARTMENT OF ENERGY AND CLIMATE CHANGE,THE COAL AUTHORITY,05/12/2014,MILEAGE PAYMENTS,ICT -  SERVICE MANAGEMENT,FACILITIES - FOOD,STAFF EXPENSES CONTROL,0000216172,19.01
DEPARTMENT OF ENERGY AND CLIMATE CHANGE,THE COAL AUTHORITY,05/12/2014,STAFF EVENTS,ICT -  SERVICE MANAGEMENT,FACILITIES - FOOD,STAFF EXPENSES CONTROL,0000216172,22.72
DEPARTMENT OF ENERGY AND CLIMATE CHANGE,THE COAL AUTHORITY,25/11/2014,IT-APPLICATIONS MANAGEMENT,ICT -  SERVICE MANAGEMENT,ICT-SOFTWARE,TOPDESK UK LIMITED,0000216193,1275.00
DEPARTMENT OF ENERGY AND CLIMATE CHANGE,THE COAL AUTHORITY,03/12/2014,IT-APPLICATIONS MANAGEMENT,ICT -  SERVICE MANAGEMENT,ICT-SOFTWARE,TOPDESK UK LIMITED,0000216194,42.13
DEPARTMENT OF ENERGY AND CLIMATE CHANGE,THE COAL AUTHORITY,03/12/2014,CURR YR ADD-INTNGBLE INFO TECH,ICT -  SERVICE MANAGEMENT,ICT-MAINTENANCE & SUPPORT,TOPDESK UK LIMITED,0000216195,906.90
DEPARTMENT OF ENERGY AND CLIMATE CHANGE,THE COAL AUTHORITY,08/12/2014,FARES - PUBLIC TRANSPORT,ICT -  SERVICE MANAGEMENT,TRAVEL&EVENTS-TAXI,STAFF EXPENSES CONTROL,0000216203,8.30
DEPARTMENT OF ENERGY AND CLIMATE CHANGE,THE COAL AUTHORITY,08/12/2014,SUBSISTENCE ALLOWANCES,ICT -  SERVICE MANAGEMENT,FACILITIES - FOOD,STAFF EXPENSES CONTROL,0000216203,23.73
DEPARTMENT OF ENERGY AND CLIMATE CHANGE,THE COAL AUTHORITY,30/11/2014,FARES - RAIL,ICT -  SERVICE MANAGEMENT,TRAVEL&EVENTS-RAIL,REDFERN TRAVEL LTD,0000216227,165.04
DEPARTMENT OF ENERGY AND CLIMATE CHANGE,THE COAL AUTHORITY,11/12/2014,LINE RENTAL,ICT -  SERVICE MANAGEMENT,ICT-TELECOMS,PHONE LINE & BROADBAND 9.,0000216326,200.94
DEPARTMENT OF ENERGY AND CLIMATE CHANGE,THE COAL AUTHORITY,30/11/2014,CALL CHARGES,ICT -  SERVICE MANAGEMENT,ICT-TELECOMS,BRITISH TELECOMMUNICATION,0000216378,512.13
DEPARTMENT OF ENERGY AND CLIMATE CHANGE,THE COAL AUTHORITY,10/12/2014,LINE RENTAL,ICT -  SERVICE MANAGEMENT,ICT-TELECOMS,BRITISH TELECOMMUNICATION,0000216405,2082.53
DEPARTMENT OF ENERGY AND CLIMATE CHANGE,THE COAL AUTHORITY,08/12/2014,TRAINING AND EDUCATION,ICT -  SERVICE MANAGEMENT,PROF SER LRNG&DEV-STAFF TRNING,COMPANY BARCLAYCARD,0000216471,707.00
DEPARTMENT OF ENERGY AND CLIMATE CHANGE,THE COAL AUTHORITY,08/12/2014,IT-APPLICATIONS MANAGEMENT,ICT -  SERVICE MANAGEMENT,ICT-SYSTEMS DELIVERY,COMPANY BARCLAYCARD,0000216473,165.60
DEPARTMENT OF ENERGY AND CLIMATE CHANGE,THE COAL AUTHORITY,08/12/2014,MEMBERSHIP SUBSCRIPTIONS,ICT -  SERVICE MANAGEMENT,PERSONNEL RLTD-STAFF SUBSCRPTN,COMPANY BARCLAYCARD,0000216473,45.90
DEPARTMENT OF ENERGY AND CLIMATE CHANGE,THE COAL AUTHORITY,08/12/2014,TELEPHONE - MEGASTREAM,ICT -  SERVICE MANAGEMENT,ICT-TELECOMS,COMPANY BARCLAYCARD,0000216477,103.43
DEPARTMENT OF ENERGY AND CLIMATE CHANGE,THE COAL AUTHORITY,08/12/2014,LINE RENTAL,ICT -  SERVICE MANAGEMENT,ICT-TELECOMS,COMPANY BARCLAYCARD,0000216482,21.49
DEPARTMENT OF ENERGY AND CLIMATE CHANGE,THE COAL AUTHORITY,08/12/2014,IT-APPLICATIONS MANAGEMENT,ICT -  SERVICE MANAGEMENT,ICT-HARDWARE,COMPANY BARCLAYCARD,0000216489,797.79
DEPARTMENT OF ENERGY AND CLIMATE CHANGE,THE COAL AUTHORITY,17/12/2014,CHILDCARE VOUCHERS,ICT -  SERVICE MANAGEMENT,PERSONNEL RLTD-STAFF CHILDCARE,FIDELITI LIMITED,0000216513,243.00
DEPARTMENT OF ENERGY AND CLIMATE CHANGE,THE COAL AUTHORITY,03/12/2014,IT-APPLICATIONS MANAGEMENT,ICT -  SERVICE MANAGEMENT,ICT-MAINTENANCE & SUPPORT,TOPDESK UK LIMITED,0000216516,3955.50
DEPARTMENT OF ENERGY AND CLIMATE CHANGE,THE COAL AUTHORITY,12/11/2014,PAYMENTS TO AGENCIES FOR TEMPS,ICT-BUSINESS ANALYSIS&DESIGN,ICT-SYSTEMS DELIVERY,SCISYS UK LTD,0000215539,7657.13
DEPARTMENT OF ENERGY AND CLIMATE CHANGE,THE COAL AUTHORITY,20/11/2014,CHILDCARE VOUCHERS,ICT-BUSINESS ANALYSIS&DESIGN,PERSONNEL RLTD-STAFF CHILDCARE,FIDELITI LIMITED,0000215838,150.00
DEPARTMENT OF ENERGY AND CLIMATE CHANGE,THE COAL AUTHORITY,30/11/2014,FARES - RAIL,ICT-BUSINESS ANALYSIS&DESIGN,TRAVEL&EVENTS-RAIL,REDFERN TRAVEL LTD,0000216227,241.91
DEPARTMENT OF ENERGY AND CLIMATE CHANGE,THE COAL AUTHORITY,30/11/2014,HOTEL ACCOMMODATION,ICT-BUSINESS ANALYSIS&DESIGN,TRAVEL&EVENTS-HOTELS,REDFERN TRAVEL LTD,0000216228,288.25
DEPARTMENT OF ENERGY AND CLIMATE CHANGE,THE COAL AUTHORITY,10/12/2014,PAYMENTS TO AGENCIES FOR TEMPS,ICT-BUSINESS ANALYSIS&DESIGN,ICT-SYSTEMS DELIVERY,SCISYS UK LTD,0000216400,6749.73
DEPARTMENT OF ENERGY AND CLIMATE CHANGE,THE COAL AUTHORITY,15/12/2014,FARES - PUBLIC TRANSPORT,ICT-BUSINESS ANALYSIS&DESIGN,TRAVEL&EVENTS-TAXI,STAFF EXPENSES CONTROL,0000216424,67.00
DEPARTMENT OF ENERGY AND CLIMATE CHANGE,THE COAL AUTHORITY,15/12/2014,SUBSISTENCE ALLOWANCES,ICT-BUSINESS ANALYSIS&DESIGN,FACILITIES - FOOD,STAFF EXPENSES CONTROL,0000216424,19.04
DEPARTMENT OF ENERGY AND CLIMATE CHANGE,THE COAL AUTHORITY,08/12/2014,IT-APPLICATIONS MANAGEMENT,ICT-BUSINESS ANALYSIS&DESIGN,ICT-MAINTENANCE & SUPPORT,COMPANY BARCLAYCARD,0000216489,66.89
DEPARTMENT OF ENERGY AND CLIMATE CHANGE,THE COAL AUTHORITY,08/12/2014,IT-APPLICATIONS MANAGEMENT,ICT-BUSINESS ANALYSIS&DESIGN,OFFICE SOLUTIONS-OFFICE MACHNE,COMPANY BARCLAYCARD,0000216489,127.92
DEPARTMENT OF ENERGY AND CLIMATE CHANGE,THE COAL AUTHORITY,17/12/2014,CHILDCARE VOUCHERS,ICT-BUSINESS ANALYSIS&DESIGN,PERSONNEL RLTD-STAFF CHILDCARE,FIDELITI LIMITED,0000216513,243.00
DEPARTMENT OF ENERGY AND CLIMATE CHANGE,THE COAL AUTHORITY,03/11/2014,IT-INFRASTRUCTURE MANAGEMENT,ICT-TECH SUPPORT&SYSTM DVLPMNT,ICT-MAINTENANCE & SUPPORT,PHOENIX IT BUS CON & RES,0000215470,39265.68
DEPARTMENT OF ENERGY AND CLIMATE CHANGE,THE COAL AUTHORITY,20/11/2014,CHILDCARE VOUCHERS,ICT-TECH SUPPORT&SYSTM DVLPMNT,PERSONNEL RLTD-STAFF CHILDCARE,FIDELITI LIMITED,0000215838,124.00
DEPARTMENT OF ENERGY AND CLIMATE CHANGE,THE COAL AUTHORITY,01/12/2014,PAYMENTS TO AGENCIES FOR TEMPS,ICT-TECH SUPPORT&SYSTM DVLPMNT,PROF SER TMP STFF-SPCLST CNTRT,PLAYCOOL LIMITED,0000216018,5733.33
DEPARTMENT OF ENERGY AND CLIMATE CHANGE,THE COAL AUTHORITY,26/11/2014,IT-APPLICATIONS MANAGEMENT,ICT-TECH SUPPORT&SYSTM DVLPMNT,ICT-MAINTENANCE & SUPPORT,PHOENIX IT BUS CON & RES,0000216038,-29449.26
DEPARTMENT OF ENERGY AND CLIMATE CHANGE,THE COAL AUTHORITY,28/11/2014,APPRENTICE COSTS,ICT-TECH SUPPORT&SYSTM DVLPMNT,PROF SER TMP STFF-TEMP WRKERS,FUTURES ADVICE SKILLS & E,0000216183,1083.04
DEPARTMENT OF ENERGY AND CLIMATE CHANGE,THE COAL AUTHORITY,30/11/2014,IT-INFRASTRUCTURE MANAGEMENT,ICT-TECH SUPPORT&SYSTM DVLPMNT,ICT-MANAGED O/SRCE SERVICES,RDC,0000216223,1717.60
DEPARTMENT OF ENERGY AND CLIMATE CHANGE,THE COAL AUTHORITY,30/11/2014,FARES - RAIL,ICT-TECH SUPPORT&SYSTM DVLPMNT,TRAVEL&EVENTS-RAIL,REDFERN TRAVEL LTD,0000216227,555.07
DEPARTMENT OF ENERGY AND CLIMATE CHANGE,THE COAL AUTHORITY,30/11/2014,HOTEL ACCOMMODATION,ICT-TECH SUPPORT&SYSTM DVLPMNT,TRAVEL&EVENTS-HOTELS,REDFERN TRAVEL LTD,0000216228,50.30
DEPARTMENT OF ENERGY AND CLIMATE CHANGE,THE COAL AUTHORITY,10/12/2014,FARES - PUBLIC TRANSPORT,ICT-TECH SUPPORT&SYSTM DVLPMNT,TRAVEL&EVENTS-TAXI,STAFF EXPENSES CONTROL,0000216248,4.00
DEPARTMENT OF ENERGY AND CLIMATE CHANGE,THE COAL AUTHORITY,10/12/2014,SUBSISTENCE ALLOWANCES,ICT-TECH SUPPORT&SYSTM DVLPMNT,FACILITIES - FOOD,STAFF EXPENSES CONTROL,0000216248,13.66
DEPARTMENT OF ENERGY AND CLIMATE CHANGE,THE COAL AUTHORITY,11/12/2014,IT-APPLICATIONS MANAGEMENT,ICT-TECH SUPPORT&SYSTM DVLPMNT,ICT-MAINTENANCE & SUPPORT,COMPUTER COMPUTER LTD,0000216306,3455.00
DEPARTMENT OF ENERGY AND CLIMATE CHANGE,THE COAL AUTHORITY,08/12/2014,TRAINING AND EDUCATION,ICT-TECH SUPPORT&SYSTM DVLPMNT,PROF SER LRNG&DEV-STAFF TRNING,COMPANY BARCLAYCARD,0000216473,1428.00
DEPARTMENT OF ENERGY AND CLIMATE CHANGE,THE COAL AUTHORITY,08/12/2014,IT-APPLICATIONS MANAGEMENT,ICT-TECH SUPPORT&SYSTM DVLPMNT,ICT-HARDWARE,COMPANY BARCLAYCARD,0000216489,1349.66
DEPARTMENT OF ENERGY AND CLIMATE CHANGE,THE COAL AUTHORITY,17/12/2014,CHILDCARE VOUCHERS,ICT-TECH SUPPORT&SYSTM DVLPMNT,PERSONNEL RLTD-STAFF CHILDCARE,FIDELITI LIMITED,0000216513,274.00
DEPARTMENT OF ENERGY AND CLIMATE CHANGE,THE COAL AUTHORITY,20/11/2014,CHILDCARE VOUCHERS,LEGAL & COMMERCIAL (ADMIN),PERSONNEL RLTD-STAFF CHILDCARE,FIDELITI LIMITED,0000215838,100.00
DEPARTMENT OF ENERGY AND CLIMATE CHANGE,THE COAL AUTHORITY,30/11/2014,FARES - RAIL,LEGAL & COMMERICAL (REGLTN),TRAVEL&EVENTS-RAIL,REDFERN TRAVEL LTD,0000216227,38.50
DEPARTMENT OF ENERGY AND CLIMATE CHANGE,THE COAL AUTHORITY,10/12/2014,TRAINING AND EDUCATION,LEGAL & COMMERICAL (REGLTN),PROF SER LRNG&DEV-STAFF TRNING,CENTRAL LAW TRAINING,0000216359,85.00
DEPARTMENT OF ENERGY AND CLIMATE CHANGE,THE COAL AUTHORITY,15/12/2014,LEGAL COSTS,LEGAL & COMMERICAL (REGLTN),PROF SER-OPERATIONAL SERVICES,LAND REGISTRY,0000216408,3.00
DEPARTMENT OF ENERGY AND CLIMATE CHANGE,THE COAL AUTHORITY,04/12/2014,LEGAL COSTS,LEGAL & COMMERICAL (REGLTN),PROF SER-OPERATIONAL SERVICES,LAND REGISTRY,0000216453,6.00
DEPARTMENT OF ENERGY AND CLIMATE CHANGE,THE COAL AUTHORITY,17/12/2014,CHILDCARE VOUCHERS,LEGAL & COMMERICAL (REGLTN),PERSONNEL RLTD-STAFF CHILDCARE,FIDELITI LIMITED,0000216513,100.00
DEPARTMENT OF ENERGY AND CLIMATE CHANGE,THE COAL AUTHORITY,19/12/2014,LEGAL COSTS,LEGAL & COMMERICAL (REGLTN),PROF SER-OPERATIONAL SERVICES,LAND REGISTRY,0000216566,3.00
DEPARTMENT OF ENERGY AND CLIMATE CHANGE,THE COAL AUTHORITY,28/11/2014,CONSULTANCY,LICENSING,PROF SER TMP STFF-SPCLST CNTRT,WYG ENV PLANNING TRANSPOR,0000216007,3192.00
DEPARTMENT OF ENERGY AND CLIMATE CHANGE,THE COAL AUTHORITY,30/11/2014,CONSULTANCY,LICENSING,PROF SER CNSLTNCY-PROP/CNSTRCN,JMC ENGINEERING (UK) LTD,0000216065,7038.65
DEPARTMENT OF ENERGY AND CLIMATE CHANGE,THE COAL AUTHORITY,30/11/2014,CONSULTANCY,LICENSING,PROF SER TECH-ENGINEERING SER,JMC ENGINEERING (UK) LTD,0000216078,2456.80
DEPARTMENT OF ENERGY AND CLIMATE CHANGE,THE COAL AUTHORITY,24/11/2014,LEGAL COSTS,LICENSING,PROF SER-LEGAL SERVICES,WALKER MORRIS,0000216104,23.00
DEPARTMENT OF ENERGY AND CLIMATE CHANGE,THE COAL AUTHORITY,03/12/2014,LEGAL COSTS,LICENSING,PROF SER-LEGAL SERVICES,DLA PIPER UK LLP,0000216120,9250.00
DEPARTMENT OF ENERGY AND CLIMATE CHANGE,THE COAL AUTHORITY,01/12/2014,COMMISSION CHARGES-E-COMMERCE,LICENSING,PROF SER FNCL-BANKING&INVSTMNT,WORLDPAY LIMITED,0000216204,263.89
DEPARTMENT OF ENERGY AND CLIMATE CHANGE,THE COAL AUTHORITY,10/12/2014,LEGAL COSTS,LICENSING: CLOSURE COSTS,PROF SER-LEGAL SERVICES,JXA/JW9/UKC.8-1 VENDORS L,0000216289,2500.00
DEPARTMENT OF ENERGY AND CLIMATE CHANGE,THE COAL AUTHORITY,19/11/2014,CONTRACTORS AND CLAIM COSTS,LICENSING: UK COAL,CONSTRUCTION-CNSTRN SER PROVDR,PRIORITY BUILDERS LTD,0000215864,371.00
DEPARTMENT OF ENERGY AND CLIMATE CHANGE,THE COAL AUTHORITY,25/11/2014,CONTRACTORS AND CLAIM COSTS,LICENSING: UK COAL,CONSTRUCTION-CNSTRN SER PROVDR,SWS ENVIRONMENTAL SERVICE,0000215986,200.00
DEPARTMENT OF ENERGY AND CLIMATE CHANGE,THE COAL AUTHORITY,01/12/2014,CONTRACTORS AND CLAIM COSTS,LICENSING: UK COAL,CONSTRUCTION-MAIN CONTRACTORS,D S WILLIAMS PAINTERS & D,0000216052,10000.00
DEPARTMENT OF ENERGY AND CLIMATE CHANGE,THE COAL AUTHORITY,01/12/2014,CONTRACTORS AND CLAIM COSTS,LICENSING: UK COAL,CONSTRUCTION-MAIN CONTRACTORS,D S WILLIAMS PAINTERS & D,0000216053,2425.00
DEPARTMENT OF ENERGY AND CLIMATE CHANGE,THE COAL AUTHORITY,19/11/2014,CONTRACTORS AND CLAIM COSTS,LICENSING: UK COAL,PROF SER-OPERATIONAL SERVICES,VALUATION OFFICE AGENCY,0000216149,747.22
DEPARTMENT OF ENERGY AND CLIMATE CHANGE,THE COAL AUTHORITY,19/11/2014,CONTRACTORS AND CLAIM COSTS,LICENSING: UK COAL,PROF SER-OPERATIONAL SERVICES,VALUATION OFFICE AGENCY,0000216150,740.75
DEPARTMENT OF ENERGY AND CLIMATE CHANGE,THE COAL AUTHORITY,02/12/2014,CONTRACTORS AND CLAIM COSTS,LICENSING: UK COAL,CONSTRUCTION-MAIN CONTRACTORS,PRIORITY BUILDERS LTD,0000216153,14778.95
DEPARTMENT OF ENERGY AND CLIMATE CHANGE,THE COAL AUTHORITY,02/12/2014,CONTRACTORS AND CLAIM COSTS,LICENSING: UK COAL,CONSTRUCTION-MAIN CONTRACTORS,PRIORITY BUILDERS LTD,0000216155,22765.08
DEPARTMENT OF ENERGY AND CLIMATE CHANGE,THE COAL AUTHORITY,02/12/2014,CONTRACTORS AND CLAIM COSTS,LICENSING: UK COAL,CONSTRUCTION-MAIN CONTRACTORS,PRIORITY BUILDERS LTD,0000216156,12002.77
DEPARTMENT OF ENERGY AND CLIMATE CHANGE,THE COAL AUTHORITY,02/12/2014,CONTRACTORS AND CLAIM COSTS,LICENSING: UK COAL,CONSTRUCTION-MAIN CONTRACTORS,PRIORITY BUILDERS LTD,0000216157,8994.96
DEPARTMENT OF ENERGY AND CLIMATE CHANGE,THE COAL AUTHORITY,30/11/2014,CONTRACTORS AND CLAIM COSTS,LICENSING: UK COAL,CONSTRUCTION-CNSTRN SER PROVDR,INTERLOCK SURVEYS,0000216187,750.00
DEPARTMENT OF ENERGY AND CLIMATE CHANGE,THE COAL AUTHORITY,12/12/2014,CONTRACTORS AND CLAIM COSTS,LICENSING: UK COAL,CONSTRUCTION-MAIN CONTRACTORS,PRIORITY BUILDERS LTD,0000216379,4971.37
DEPARTMENT OF ENERGY AND CLIMATE CHANGE,THE COAL AUTHORITY,12/12/2014,CONTRACTORS AND CLAIM COSTS,LICENSING: UK COAL,CONSTRUCTION-MAIN CONTRACTORS,PRIORITY BUILDERS LTD,0000216380,1451.87
DEPARTMENT OF ENERGY AND CLIMATE CHANGE,THE COAL AUTHORITY,12/12/2014,CONTRACTORS AND CLAIM COSTS,LICENSING: UK COAL,CONSTRUCTION-MAIN CONTRACTORS,PRIORITY BUILDERS LTD,0000216381,3612.07
DEPARTMENT OF ENERGY AND CLIMATE CHANGE,THE COAL AUTHORITY,12/12/2014,CONTRACTORS AND CLAIM COSTS,LICENSING: UK COAL,CONSTRUCTION-MAIN CONTRACTORS,PRIORITY BUILDERS LTD,0000216382,11822.83
DEPARTMENT OF ENERGY AND CLIMATE CHANGE,THE COAL AUTHORITY,12/12/2014,CONTRACTORS AND CLAIM COSTS,LICENSING: UK COAL,CONSTRUCTION-CNSTRN SER PROVDR,CORNERSTONE  PROJECTS LTD,0000216383,262.90
DEPARTMENT OF ENERGY AND CLIMATE CHANGE,THE COAL AUTHORITY,15/12/2014,CONTRACTORS AND CLAIM COSTS,LICENSING: UK COAL,CONSTRUCTION-MAIN CONTRACTORS,D S WILLIAMS PAINTERS & D,0000216451,10000.00
DEPARTMENT OF ENERGY AND CLIMATE CHANGE,THE COAL AUTHORITY,14/11/2014,OUTSOURCED MANAGEMENT-PS&S,MINE ENTRY INSPECTIONS,SOCIAL CARE-EMERGENCY SERVICES,INTERLOCK SURVEYS,0000215897,1500.00
DEPARTMENT OF ENERGY AND CLIMATE CHANGE,THE COAL AUTHORITY,26/11/2014,IT-APPLICATIONS MANAGEMENT,MINE ENTRY INSPECTIONS,ICT-SYSTEMS DELIVERY,SCISYS UK LTD,0000215901,3196.02
DEPARTMENT OF ENERGY AND CLIMATE CHANGE,THE COAL AUTHORITY,28/11/2014,OFFICE MACHINERY PURCHASED,MINE ENTRY INSPECTIONS,OPRTNL GOODS&SERV-ELEC MNTRING,ENVIRONMENTAL SCIENTIFICS,0000215921,984.80
DEPARTMENT OF ENERGY AND CLIMATE CHANGE,THE COAL AUTHORITY,26/11/2014,CURR YR ADD-INTNGBLE INFO TECH,MINE ENTRY INSPECTIONS,ICT-SYSTEMS DELIVERY,SCISYS UK LTD,0000215936,5848.80
DEPARTMENT OF ENERGY AND CLIMATE CHANGE,THE COAL AUTHORITY,01/12/2014,OUTSOURCED MANAGEMENT-PS&S,MINE ENTRY INSPECTIONS,SOCIAL CARE-EMERGENCY SERVICES,MINES RESCUE SERVICE LIMI,0000216022,21000.00
DEPARTMENT OF ENERGY AND CLIMATE CHANGE,THE COAL AUTHORITY,30/11/2014,OUTSOURCED MANAGEMENT-PS&S,MINE ENTRY INSPECTIONS,SOCIAL CARE-EMERGENCY SERVICES,INTERLOCK SURVEYS,0000216371,8095.50
DEPARTMENT OF ENERGY AND CLIMATE CHANGE,THE COAL AUTHORITY,30/11/2014,OUTSOURCED MANAGEMENT-PS&S,MINE ENTRY INSPECTIONS,SOCIAL CARE-EMERGENCY SERVICES,INTERLOCK SURVEYS,0000216372,1365.00
DEPARTMENT OF ENERGY AND CLIMATE CHANGE,THE COAL AUTHORITY,30/11/2014,OUTSOURCED MANAGEMENT-PS&S,MINE ENTRY INSPECTIONS,SOCIAL CARE-EMERGENCY SERVICES,INTERLOCK SURVEYS,0000216373,4272.00
DEPARTMENT OF ENERGY AND CLIMATE CHANGE,THE COAL AUTHORITY,10/12/2014,CURR YR ADD-INTNGBLE INFO TECH,MINE ENTRY INSPECTIONS,ICT-SYSTEMS DELIVERY,SCISYS UK LTD,0000216399,5848.80
DEPARTMENT OF ENERGY AND CLIMATE CHANGE,THE COAL AUTHORITY,03/11/2014,IT-APPLICATIONS MANAGEMENT,MINING INFORMATION COMMERCIAL,ICT-MAINTENANCE & SUPPORT,PHOENIX IT BUS CON & RES,0000215470,19632.84
DEPARTMENT OF ENERGY AND CLIMATE CHANGE,THE COAL AUTHORITY,21/11/2014,PAYMENTS TO AGENCIES FOR TEMPS,MINING INFORMATION COMMERCIAL,PROF SER TMP STFF-TEMP WRKERS,KEY PERSONNEL SOLUTIONS L,0000215881,879.06
DEPARTMENT OF ENERGY AND CLIMATE CHANGE,THE COAL AUTHORITY,26/11/2014,IT-APPLICATIONS MANAGEMENT,MINING INFORMATION COMMERCIAL,ICT-SYSTEMS DELIVERY,SCISYS UK LTD,0000215901,7990.05
DEPARTMENT OF ENERGY AND CLIMATE CHANGE,THE COAL AUTHORITY,26/11/2014,CURR YR ADD-INTNGBLE INFO TECH,MINING INFORMATION COMMERCIAL,ICT-SYSTEMS DELIVERY,SCISYS UK LTD,0000215936,17073.23
DEPARTMENT OF ENERGY AND CLIMATE CHANGE,THE COAL AUTHORITY,21/11/2014,COURIER SERVICES,MINING INFORMATION COMMERCIAL,OFFICE SOLUTIONS-POST&COURIER,TNT UK LIMITED,0000215943,69.06
DEPARTMENT OF ENERGY AND CLIMATE CHANGE,THE COAL AUTHORITY,26/11/2014,GROUNDSURE ROYALTY,MINING INFORMATION COMMERCIAL,PSPES NOT APPLICABLE,GROUNDSURE LIMITED,0000216021,35.00
DEPARTMENT OF ENERGY AND CLIMATE CHANGE,THE COAL AUTHORITY,01/12/2014,COMMISSION CHARGES-E-COMMERCE,MINING INFORMATION COMMERCIAL,PROF SER FNCL-BANKING&INVSTMNT,WORLDPAY LIMITED,0000216035,799.09
DEPARTMENT OF ENERGY AND CLIMATE CHANGE,THE COAL AUTHORITY,30/11/2014,FARES - PUBLIC TRANSPORT,MINING INFORMATION COMMERCIAL,TRAVEL&EVENTS-TAXI,ACE OF MANSFIELD LTD,0000216037,124.00
DEPARTMENT OF ENERGY AND CLIMATE CHANGE,THE COAL AUTHORITY,26/11/2014,IT-APPLICATIONS MANAGEMENT,MINING INFORMATION COMMERCIAL,ICT-MAINTENANCE & SUPPORT,PHOENIX IT BUS CON & RES,0000216038,-14724.63
DEPARTMENT OF ENERGY AND CLIMATE CHANGE,THE COAL AUTHORITY,28/11/2014,PAYMENTS TO AGENCIES FOR TEMPS,MINING INFORMATION COMMERCIAL,PROF SER TMP STFF-TEMP WRKERS,KEY PERSONNEL SOLUTIONS L,0000216057,456.98
DEPARTMENT OF ENERGY AND CLIMATE CHANGE,THE COAL AUTHORITY,28/11/2014,PAYMENTS TO AGENCIES FOR TEMPS,MINING INFORMATION COMMERCIAL,PROF SER TMP STFF-TEMP WRKERS,KEY PERSONNEL SOLUTIONS L,0000216057,479.78
DEPARTMENT OF ENERGY AND CLIMATE CHANGE,THE COAL AUTHORITY,01/12/2014,ORDANCE SURVEY MAPS,MINING INFORMATION COMMERCIAL,ICT-SOFTWARE,ORDNANCE SURVEY,0000216166,20000.00
DEPARTMENT OF ENERGY AND CLIMATE CHANGE,THE COAL AUTHORITY,28/11/2014,APPRENTICE COSTS,MINING INFORMATION COMMERCIAL,PROF SER TMP STFF-TEMP WRKERS,FUTURES ADVICE SKILLS & E,0000216183,1083.04
DEPARTMENT OF ENERGY AND CLIMATE CHANGE,THE COAL AUTHORITY,04/12/2014,GROUNDSURE ROYALTY,MINING INFORMATION COMMERCIAL,PSPES NOT APPLICABLE,GROUNDSURE LIMITED,0000216186,-35.00
DEPARTMENT OF ENERGY AND CLIMATE CHANGE,THE COAL AUTHORITY,01/12/2014,MAINTENANCE OF OFFICE MACHINES,MINING INFORMATION COMMERCIAL,OFFICE SOLUTIONS-POST&COURIER,NEOPOST LTD,0000216190,597.75
DEPARTMENT OF ENERGY AND CLIMATE CHANGE,THE COAL AUTHORITY,02/12/2014,CONSULTANCY,MINING INFORMATION COMMERCIAL,PROF SER LRNG&DEV-STAFF TRNING,STILL WATERS RESEARCH,0000216191,19192.35
DEPARTMENT OF ENERGY AND CLIMATE CHANGE,THE COAL AUTHORITY,03/12/2014,IT-APPLICATIONS MANAGEMENT,MINING INFORMATION COMMERCIAL,ICT-SOFTWARE,NOWCOMM,0000216197,19241.48
DEPARTMENT OF ENERGY AND CLIMATE CHANGE,THE COAL AUTHORITY,05/12/2014,IT-APPLICATIONS MANAGEMENT,MINING INFORMATION COMMERCIAL,ICT-SOFTWARE,NOWCOMM,0000216198,-2425.00
DEPARTMENT OF ENERGY AND CLIMATE CHANGE,THE COAL AUTHORITY,05/12/2014,CONSULTANCY,MINING INFORMATION COMMERCIAL,MARKETING & MEDIA-PROMOTION,MAKING SENSE DESIGNLTD,0000216201,1220.00
DEPARTMENT OF ENERGY AND CLIMATE CHANGE,THE COAL AUTHORITY,01/12/2014,COMMISSION CHARGES-E-COMMERCE,MINING INFORMATION COMMERCIAL,PROF SER FNCL-BANKING&INVSTMNT,WORLDPAY LIMITED,0000216204,1207.61
DEPARTMENT OF ENERGY AND CLIMATE CHANGE,THE COAL AUTHORITY,05/12/2014,PAYMENTS TO AGENCIES FOR TEMPS,MINING INFORMATION COMMERCIAL,PROF SER TMP STFF-TEMP WRKERS,KEY PERSONNEL SOLUTIONS L,0000216242,489.44
DEPARTMENT OF ENERGY AND CLIMATE CHANGE,THE COAL AUTHORITY,05/12/2014,PAYMENTS TO AGENCIES FOR TEMPS,MINING INFORMATION COMMERCIAL,PROF SER TMP STFF-TEMP WRKERS,KEY PERSONNEL SOLUTIONS L,0000216242,386.40
DEPARTMENT OF ENERGY AND CLIMATE CHANGE,THE COAL AUTHORITY,10/12/2014,IT-APPLICATIONS MANAGEMENT,MINING INFORMATION COMMERCIAL,ICT-SYSTEMS DELIVERY,SCISYS UK LTD,0000216398,2327.00
DEPARTMENT OF ENERGY AND CLIMATE CHANGE,THE COAL AUTHORITY,10/12/2014,CURR YR ADD-INTNGBLE INFO TECH,MINING INFORMATION COMMERCIAL,ICT-SYSTEMS DELIVERY,SCISYS UK LTD,0000216399,17073.23
DEPARTMENT OF ENERGY AND CLIMATE CHANGE,THE COAL AUTHORITY,11/12/2014,IT-APPLICATIONS MANAGEMENT,MINING INFORMATION COMMERCIAL,ICT-MAINTENANCE & SUPPORT,HEYNES IT LIMITED,0000216414,318.00
DEPARTMENT OF ENERGY AND CLIMATE CHANGE,THE COAL AUTHORITY,12/12/2014,PAYMENTS TO AGENCIES FOR TEMPS,MINING INFORMATION COMMERCIAL,PROF SER TMP STFF-TEMP WRKERS,KEY PERSONNEL SOLUTIONS L,0000216454,488.41
DEPARTMENT OF ENERGY AND CLIMATE CHANGE,THE COAL AUTHORITY,12/12/2014,PAYMENTS TO AGENCIES FOR TEMPS,MINING INFORMATION COMMERCIAL,PROF SER TMP STFF-TEMP WRKERS,KEY PERSONNEL SOLUTIONS L,0000216454,373.52
DEPARTMENT OF ENERGY AND CLIMATE CHANGE,THE COAL AUTHORITY,03/11/2014,IT-APPLICATIONS MANAGEMENT,MINING INFORMATION WHOLESALE,ICT-MAINTENANCE & SUPPORT,PHOENIX IT BUS CON & RES,0000215470,19632.84
DEPARTMENT OF ENERGY AND CLIMATE CHANGE,THE COAL AUTHORITY,20/11/2014,CHILDCARE VOUCHERS,MINING INFORMATION WHOLESALE,PERSONNEL RLTD-STAFF CHILDCARE,FIDELITI LIMITED,0000215838,200.00
DEPARTMENT OF ENERGY AND CLIMATE CHANGE,THE COAL AUTHORITY,26/11/2014,IT-APPLICATIONS MANAGEMENT,MINING INFORMATION WHOLESALE,ICT-SYSTEMS DELIVERY,SCISYS UK LTD,0000215901,7990.04
DEPARTMENT OF ENERGY AND CLIMATE CHANGE,THE COAL AUTHORITY,26/11/2014,CURR YR ADD-INTNGBLE INFO TECH,MINING INFORMATION WHOLESALE,ICT-SYSTEMS DELIVERY,SCISYS UK LTD,0000215936,8494.56
DEPARTMENT OF ENERGY AND CLIMATE CHANGE,THE COAL AUTHORITY,26/11/2014,IT-APPLICATIONS MANAGEMENT,MINING INFORMATION WHOLESALE,ICT-MAINTENANCE & SUPPORT,PHOENIX IT BUS CON & RES,0000216038,-14724.63
DEPARTMENT OF ENERGY AND CLIMATE CHANGE,THE COAL AUTHORITY,03/12/2014,LEGAL COSTS,MINING INFORMATION WHOLESALE,PROF SER-LEGAL SERVICES,DLA PIPER UK LLP,0000216120,73.60
DEPARTMENT OF ENERGY AND CLIMATE CHANGE,THE COAL AUTHORITY,05/12/2014,SUBSISTENCE ALLOWANCES,MINING INFORMATION WHOLESALE,FACILITIES - FOOD,STAFF EXPENSES CONTROL,0000216182,7.32
DEPARTMENT OF ENERGY AND CLIMATE CHANGE,THE COAL AUTHORITY,30/11/2014,FARES - RAIL,MINING INFORMATION WHOLESALE,TRAVEL&EVENTS-RAIL,REDFERN TRAVEL LTD,0000216227,82.69
DEPARTMENT OF ENERGY AND CLIMATE CHANGE,THE COAL AUTHORITY,30/11/2014,HOTEL ACCOMMODATION,MINING INFORMATION WHOLESALE,TRAVEL&EVENTS-HOTELS,REDFERN TRAVEL LTD,0000216228,42.95
DEPARTMENT OF ENERGY AND CLIMATE CHANGE,THE COAL AUTHORITY,10/12/2014,CURR YR ADD-INTNGBLE INFO TECH,MINING INFORMATION WHOLESALE,ICT-SYSTEMS DELIVERY,SCISYS UK LTD,0000216399,8494.56
DEPARTMENT OF ENERGY AND CLIMATE CHANGE,THE COAL AUTHORITY,15/12/2014,SUBSISTENCE ALLOWANCES,MINING INFORMATION WHOLESALE,FACILITIES - FOOD,STAFF EXPENSES CONTROL,0000216422,4.50
DEPARTMENT OF ENERGY AND CLIMATE CHANGE,THE COAL AUTHORITY,15/12/2014,INCIDENTALS,MINING INFORMATION WHOLESALE,VEHICLES-FLEET MANAGEMENT,STAFF EXPENSES CONTROL,0000216426,18.34
DEPARTMENT OF ENERGY AND CLIMATE CHANGE,THE COAL AUTHORITY,15/12/2014,MILEAGE PAYMENTS,MINING INFORMATION WHOLESALE,FUELS/LUBRCNT/GAS-FUELS,STAFF EXPENSES CONTROL,0000216426,48.60
DEPARTMENT OF ENERGY AND CLIMATE CHANGE,THE COAL AUTHORITY,28/11/2014,LEGAL COSTS,MINING INFORMATION WHOLESALE,PROF SER-LEGAL SERVICES,FIELD FISHER,0000216456,23184.80
DEPARTMENT OF ENERGY AND CLIMATE CHANGE,THE COAL AUTHORITY,08/12/2014,PUBLICATIONS,MINING INFORMATION WHOLESALE,OPRTNL GOODS&SERV-DEVLPNG MTRL,COMPANY BARCLAYCARD,0000216470,31.63
DEPARTMENT OF ENERGY AND CLIMATE CHANGE,THE COAL AUTHORITY,08/12/2014,TRAINING AND EDUCATION,MINING INFORMATION WHOLESALE,PROF SER LRNG&DEV-STAFF TRNING,COMPANY BARCLAYCARD,0000216489,308.88
DEPARTMENT OF ENERGY AND CLIMATE CHANGE,THE COAL AUTHORITY,17/12/2014,CHILDCARE VOUCHERS,MINING INFORMATION WHOLESALE,PERSONNEL RLTD-STAFF CHILDCARE,FISHER GERMAN,0000216513,200.00
DEPARTMENT OF ENERGY AND CLIMATE CHANGE,THE COAL AUTHORITY,15/10/2014,M/W SITE SURVEY WORK,NON-COAL MINEWATER (DEFRA),CONSTRUCTION-CNSTRN SER PROVDR,PMC SURVEYS,0000214985,3300.00
DEPARTMENT OF ENERGY AND CLIMATE CHANGE,THE COAL AUTHORITY,23/10/2014,M/W CHEMICAL OPERATIONAL,NON-COAL MINEWATER (DEFRA),ENGRNG GOODS-NON-MDICL CHMCLS,BIOCHEMICA UK LIMITED,0000215242,262.00
DEPARTMENT OF ENERGY AND CLIMATE CHANGE,THE COAL AUTHORITY,06/11/2014,M/W PUMPING TESTS,NON-COAL MINEWATER (DEFRA),CONSTRUCTION-MAIN CONTRACTORS,INTEGRATED WATER SERVICES,0000215391,15889.62
DEPARTMENT OF ENERGY AND CLIMATE CHANGE,THE COAL AUTHORITY,05/11/2014,R&D-EXTERNAL COSTS,NON-COAL MINEWATER (DEFRA),PROF SER TECH-ENGINEERING SER,DE MONTFORT UNIVERSITY,0000215477,8016.00
DEPARTMENT OF ENERGY AND CLIMATE CHANGE,THE COAL AUTHORITY,05/11/2014,M/W SCOPING/FEASIBILITY/CONCEP,NON-COAL MINEWATER (DEFRA),PROF SER TECH-ENGINEERING SER,URS INFRASTRUCT & ENV UK,0000215507,13255.19
DEPARTMENT OF ENERGY AND CLIMATE CHANGE,THE COAL AUTHORITY,10/11/2014,M/W SLUDGE DISPOSAL,NON-COAL MINEWATER (DEFRA),CONSTRUCTION-MAIN CONTRACTORS,INTEGRATED WATER SERVICES,0000215530,7719.79
DEPARTMENT OF ENERGY AND CLIMATE CHANGE,THE COAL AUTHORITY,26/10/2014,CURR YR ADDNS NON COAL MINES,NON-COAL MINEWATER (DEFRA),CONSTRUCTION-MAIN CONTRACTORS,J N BENTLEY LIMITED,0000215797,111247.93
DEPARTMENT OF ENERGY AND CLIMATE CHANGE,THE COAL AUTHORITY,26/10/2014,CURR YR ADDNS NON COAL MINES,NON-COAL MINEWATER (DEFRA),CONSTRUCTION-MAIN CONTRACTORS,J N BENTLEY LIMITED,0000215801,-1695.04
DEPARTMENT OF ENERGY AND CLIMATE CHANGE,THE COAL AUTHORITY,20/11/2014,CURR YR ADDNS NON COAL MINES,NON-COAL MINEWATER (DEFRA),PROF SER TECH-ENGINEERING SER,ATKINS LIMITED,0000215806,8163.90
DEPARTMENT OF ENERGY AND CLIMATE CHANGE,THE COAL AUTHORITY,19/11/2014,M/W SITE INVESTIGATIONS,NON-COAL MINEWATER (DEFRA),PROF SER TECH-ENGINEERING SER,GOLDER ASSOCIATES (UK) LT,0000215807,43190.60
DEPARTMENT OF ENERGY AND CLIMATE CHANGE,THE COAL AUTHORITY,17/11/2014,M/W COST BENEFIT ANALYSIS,NON-COAL MINEWATER (DEFRA),PROF SER TECH-ENGINEERING SER,RISK & POLICY ANALYSTS LT,0000215812,2570.63
DEPARTMENT OF ENERGY AND CLIMATE CHANGE,THE COAL AUTHORITY,17/11/2014,M/W COST BENEFIT ANALYSIS,NON-COAL MINEWATER (DEFRA),PROF SER TECH-ENGINEERING SER,RISK & POLICY ANALYSTS LT,0000215812,2570.63
DEPARTMENT OF ENERGY AND CLIMATE CHANGE,THE COAL AUTHORITY,17/11/2014,M/W COST BENEFIT ANALYSIS,NON-COAL MINEWATER (DEFRA),PROF SER TECH-ENGINEERING SER,RISK & POLICY ANALYSTS LT,0000215812,2570.62
DEPARTMENT OF ENERGY AND CLIMATE CHANGE,THE COAL AUTHORITY,19/11/2014,M/W PUMPING TESTS,NON-COAL MINEWATER (DEFRA),CONSTRUCTION-MAIN CONTRACTORS,INTEGRATED WATER SERVICES,0000215830,11960.46
DEPARTMENT OF ENERGY AND CLIMATE CHANGE,THE COAL AUTHORITY,21/11/2014,M/W CHEMICAL OPERATIONAL,NON-COAL MINEWATER (DEFRA),ENGRNG GOODS-NON-MDICL CHMCLS,BIOCHEMICA UK LIMITED,0000215869,262.00
DEPARTMENT OF ENERGY AND CLIMATE CHANGE,THE COAL AUTHORITY,26/11/2014,M/W SCOPING/FEASIBILITY/CONCEP,NON-COAL MINEWATER (DEFRA),PROF SER TECH-PRESERVATION SER,ATKINS LIMITED,0000215949,4339.60
DEPARTMENT OF ENERGY AND CLIMATE CHANGE,THE COAL AUTHORITY,26/11/2014,M/W CNTRCTR-OPRTNL MNTLY TSKS,NON-COAL MINEWATER (DEFRA),CONSTRUCTION-MAIN CONTRACTORS,INTEGRATED WATER SERVICES,0000215966,384.09
DEPARTMENT OF ENERGY AND CLIMATE CHANGE,THE COAL AUTHORITY,26/11/2014,M/W CNTRCTR-OPRTNL MNTLY TSKS,NON-COAL MINEWATER (DEFRA),CONSTRUCTION-MAIN CONTRACTORS,INTEGRATED WATER SERVICES,0000215967,384.09
DEPARTMENT OF ENERGY AND CLIMATE CHANGE,THE COAL AUTHORITY,26/11/2014,M/W CNTRCTR-OPRTNL MNTLY TSKS,NON-COAL MINEWATER (DEFRA),CONSTRUCTION-MAIN CONTRACTORS,INTEGRATED WATER SERVICES,0000215968,-384.09
DEPARTMENT OF ENERGY AND CLIMATE CHANGE,THE COAL AUTHORITY,27/11/2014,CURR YR ADDNS NON COAL MINES,NON-COAL MINEWATER (DEFRA),PROF SER TECH-ENGINEERING SER,MOTT MACDONALD LTD,0000215988,849.00
DEPARTMENT OF ENERGY AND CLIMATE CHANGE,THE COAL AUTHORITY,27/11/2014,CURR YR ADDNS NON COAL MINES,NON-COAL MINEWATER (DEFRA),PROF SER TECH-ENGINEERING SER,MOTT MACDONALD LTD,0000215989,1283.00
DEPARTMENT OF ENERGY AND CLIMATE CHANGE,THE COAL AUTHORITY,30/11/2014,CURR YR ADDNS NON COAL MINES,NON-COAL MINEWATER (DEFRA),PROF SER TECH-ENGINEERING SER,MOTT MACDONALD LTD,0000216014,1152.00
DEPARTMENT OF ENERGY AND CLIMATE CHANGE,THE COAL AUTHORITY,01/12/2014,M/W SCOPING/FEASIBILITY/CONCEP,NON-COAL MINEWATER (DEFRA),PROF SER TECH-ENGINEERING SER,MOUCHEL LTD,0000216017,5011.88
DEPARTMENT OF ENERGY AND CLIMATE CHANGE,THE COAL AUTHORITY,27/11/2014,WATER SAMPLING - DEVELOPMENT,NON-COAL MINEWATER (DEFRA),PROF SER TECH-FORENSIC/LAB SER,ENVIRONMENTAL SCIENTIFICS,0000216019,102.60
DEPARTMENT OF ENERGY AND CLIMATE CHANGE,THE COAL AUTHORITY,27/11/2014,WATER SAMPLING - DEVELOPMENT,NON-COAL MINEWATER (DEFRA),PROF SER TECH-FORENSIC/LAB SER,ENVIRONMENTAL SCIENTIFICS,0000216019,102.60
DEPARTMENT OF ENERGY AND CLIMATE CHANGE,THE COAL AUTHORITY,27/11/2014,WATER SAMPLING - DEVELOPMENT,NON-COAL MINEWATER (DEFRA),PROF SER TECH-FORENSIC/LAB SER,ENVIRONMENTAL SCIENTIFICS,0000216019,102.60
DEPARTMENT OF ENERGY AND CLIMATE CHANGE,THE COAL AUTHORITY,27/11/2014,WATER SAMPLING - DEVELOPMENT,NON-COAL MINEWATER (DEFRA),PROF SER TECH-FORENSIC/LAB SER,ENVIRONMENTAL SCIENTIFICS,0000216019,54.30
DEPARTMENT OF ENERGY AND CLIMATE CHANGE,THE COAL AUTHORITY,27/11/2014,WATER SAMPLING - DEVELOPMENT,NON-COAL MINEWATER (DEFRA),PROF SER TECH-FORENSIC/LAB SER,ENVIRONMENTAL SCIENTIFICS,0000216019,153.90
DEPARTMENT OF ENERGY AND CLIMATE CHANGE,THE COAL AUTHORITY,27/11/2014,WATER SAMPLING - DEVELOPMENT,NON-COAL MINEWATER (DEFRA),PROF SER TECH-FORENSIC/LAB SER,ENVIRONMENTAL SCIENTIFICS,0000216019,51.30
DEPARTMENT OF ENERGY AND CLIMATE CHANGE,THE COAL AUTHORITY,27/11/2014,WATER SAMPLING - DEVELOPMENT,NON-COAL MINEWATER (DEFRA),PROF SER TECH-FORENSIC/LAB SER,ENVIRONMENTAL SCIENTIFICS,0000216019,51.30
DEPARTMENT OF ENERGY AND CLIMATE CHANGE,THE COAL AUTHORITY,27/11/2014,WATER SAMPLING - DEVELOPMENT,NON-COAL MINEWATER (DEFRA),PROF SER TECH-FORENSIC/LAB SER,ENVIRONMENTAL SCIENTIFICS,0000216019,102.60
DEPARTMENT OF ENERGY AND CLIMATE CHANGE,THE COAL AUTHORITY,27/11/2014,WATER SAMPLING - DEVELOPMENT,NON-COAL MINEWATER (DEFRA),PROF SER TECH-FORENSIC/LAB SER,ENVIRONMENTAL SCIENTIFICS,0000216019,51.30
DEPARTMENT OF ENERGY AND CLIMATE CHANGE,THE COAL AUTHORITY,27/11/2014,WATER SAMPLING - OPERATIONAL,NON-COAL MINEWATER (DEFRA),PROF SER TECH-FORENSIC/LAB SER,ENVIRONMENTAL SCIENTIFICS,0000216019,1059.32
DEPARTMENT OF ENERGY AND CLIMATE CHANGE,THE COAL AUTHORITY,27/11/2014,WATER SAMPLING - OPERATIONAL,NON-COAL MINEWATER (DEFRA),PROF SER TECH-FORENSIC/LAB SER,ENVIRONMENTAL SCIENTIFICS,0000216019,2144.40
DEPARTMENT OF ENERGY AND CLIMATE CHANGE,THE COAL AUTHORITY,01/12/2014,MONITORING & FLOW MEASUREMENT,NON-COAL MINEWATER (DEFRA),CONSTRUCTION-MAIN CONTRACTORS,LLETTYSHENKIN CONS CO LTD,0000216090,3143.50
DEPARTMENT OF ENERGY AND CLIMATE CHANGE,THE COAL AUTHORITY,24/11/2014,LEGAL COSTS,NON-COAL MINEWATER (DEFRA),PROF SER-LEGAL SERVICES,WALKER MORRIS,0000216104,120.00
DEPARTMENT OF ENERGY AND CLIMATE CHANGE,THE COAL AUTHORITY,03/12/2014,M/W CNTRCTR-OPRTNL MNTLY TSKS,NON-COAL MINEWATER (DEFRA),PROF SER TECH-FORENSIC/LAB SER,INTEGRATED WATER SERVICES,0000216116,142.20
DEPARTMENT OF ENERGY AND CLIMATE CHANGE,THE COAL AUTHORITY,05/12/2014,SUBSISTENCE ALLOWANCES,NON-COAL MINEWATER (DEFRA),FACILITIES - FOOD,STAFF EXPENSES CONTROL,0000216177,3.51
DEPARTMENT OF ENERGY AND CLIMATE CHANGE,THE COAL AUTHORITY,05/12/2014,SUBSISTENCE ALLOWANCES,NON-COAL MINEWATER (DEFRA),FACILITIES - FOOD,STAFF EXPENSES CONTROL,0000216177,2.04
DEPARTMENT OF ENERGY AND CLIMATE CHANGE,THE COAL AUTHORITY,04/12/2014,CONSULTANTS-INVESTIGATIONS,NON-COAL MINEWATER (DEFRA),PROF SER TECH-ENGINEERING SER,HOLYMOOR CONSULTANCY LTD,0000216221,837.50
DEPARTMENT OF ENERGY AND CLIMATE CHANGE,THE COAL AUTHORITY,08/12/2014,M/W CHEMICAL OPERATIONAL,NON-COAL MINEWATER (DEFRA),ENGRNG GOODS-NON-MDICL CHMCLS,BIOCHEMICA UK LIMITED,0000216239,262.00
DEPARTMENT OF ENERGY AND CLIMATE CHANGE,THE COAL AUTHORITY,08/12/2014,CURR YR ADDNS NON COAL MINES,NON-COAL MINEWATER (DEFRA),PROF SER TECH-ENGINEERING SER,ATKINS LIMITED,0000216276,3024.25
DEPARTMENT OF ENERGY AND CLIMATE CHANGE,THE COAL AUTHORITY,05/12/2014,M/W PUMPING TESTS,NON-COAL MINEWATER (DEFRA),CONSTRUCTION-MAIN CONTRACTORS,INTEGRATED WATER SERVICES,0000216318,6607.92
DEPARTMENT OF ENERGY AND CLIMATE CHANGE,THE COAL AUTHORITY,10/12/2014,MONITORING & FLOW MEASUREMENT,NON-COAL MINEWATER (DEFRA),CONSTRUCTION-MAIN CONTRACTORS,INTEGRATED WATER SERVICES,0000216321,3863.17
DEPARTMENT OF ENERGY AND CLIMATE CHANGE,THE COAL AUTHORITY,08/12/2014,INCIDENTALS,NON-COAL MINEWATER (DEFRA),VEHICLES-FLEET MANAGEMENT,COMPANY BARCLAYCARD,0000216354,8.34
DEPARTMENT OF ENERGY AND CLIMATE CHANGE,THE COAL AUTHORITY,08/12/2014,SUBSISTENCE ALLOWANCES,NON-COAL MINEWATER (DEFRA),FACILITIES - FOOD,COMPANY BARCLAYCARD,0000216354,6.35
DEPARTMENT OF ENERGY AND CLIMATE CHANGE,THE COAL AUTHORITY,08/12/2014,SUBSISTENCE ALLOWANCES,NON-COAL MINEWATER (DEFRA),FACILITIES - FOOD,COMPANY BARCLAYCARD,0000216356,7.81
DEPARTMENT OF ENERGY AND CLIMATE CHANGE,THE COAL AUTHORITY,08/12/2014,SUBSISTENCE ALLOWANCES,NON-COAL MINEWATER (DEFRA),FACILITIES - FOOD,COMPANY BARCLAYCARD,0000216356,3.60
DEPARTMENT OF ENERGY AND CLIMATE CHANGE,THE COAL AUTHORITY,08/12/2014,SUBSISTENCE ALLOWANCES,NON-COAL MINEWATER (DEFRA),FACILITIES - FOOD,COMPANY BARCLAYCARD,0000216356,4.70
DEPARTMENT OF ENERGY AND CLIMATE CHANGE,THE COAL AUTHORITY,08/12/2014,FUEL (VEHICLE),NON-COAL MINEWATER (DEFRA),FUELS/LUBRCNT/GAS-FUELS,COMPANY BARCLAYCARD,0000216485,41.39
DEPARTMENT OF ENERGY AND CLIMATE CHANGE,THE COAL AUTHORITY,08/12/2014,SUBSISTENCE ALLOWANCES,NON-COAL MINEWATER (DEFRA),FACILITIES - FOOD,COMPANY BARCLAYCARD,0000216485,6.80
DEPARTMENT OF ENERGY AND CLIMATE CHANGE,THE COAL AUTHORITY,08/12/2014,SUBSISTENCE ALLOWANCES,NON-COAL MINEWATER (DEFRA),FACILITIES - FOOD,COMPANY BARCLAYCARD,0000216485,5.40
DEPARTMENT OF ENERGY AND CLIMATE CHANGE,THE COAL AUTHORITY,08/12/2014,SUBSISTENCE ALLOWANCES,NON-COAL MINEWATER (DEFRA),FACILITIES - FOOD,COMPANY BARCLAYCARD,0000216485,73.20
DEPARTMENT OF ENERGY AND CLIMATE CHANGE,THE COAL AUTHORITY,08/12/2014,SUBSISTENCE ALLOWANCES,NON-COAL MINEWATER (DEFRA),FACILITIES - FOOD,COMPANY BARCLAYCARD,0000216487,2.00
DEPARTMENT OF ENERGY AND CLIMATE CHANGE,THE COAL AUTHORITY,08/12/2014,SUBSISTENCE ALLOWANCES,NON-COAL MINEWATER (DEFRA),FACILITIES - FOOD,COMPANY BARCLAYCARD,0000216487,3.80
DEPARTMENT OF ENERGY AND CLIMATE CHANGE,THE COAL AUTHORITY,08/12/2014,SUBSISTENCE ALLOWANCES,NON-COAL MINEWATER (DEFRA),FACILITIES - FOOD,COMPANY BARCLAYCARD,0000216487,120.90
DEPARTMENT OF ENERGY AND CLIMATE CHANGE,THE COAL AUTHORITY,08/12/2014,SUBSISTENCE ALLOWANCES,NON-COAL MINEWATER (DEFRA),FACILITIES - FOOD,COMPANY BARCLAYCARD,0000216487,15.61
DEPARTMENT OF ENERGY AND CLIMATE CHANGE,THE COAL AUTHORITY,08/10/2014,PAYMENTS TO AGENCIES FOR TEMPS,PERMISSIONS,PROF SER TMP STFF-TEMP WRKERS,STAFFORCE RECRUITMENT,0000214750,456.21
DEPARTMENT OF ENERGY AND CLIMATE CHANGE,THE COAL AUTHORITY,20/11/2014,CHILDCARE VOUCHERS,PERMISSIONS,PERSONNEL RLTD-STAFF CHILDCARE,FIDELITI LIMITED,0000215838,243.00
DEPARTMENT OF ENERGY AND CLIMATE CHANGE,THE COAL AUTHORITY,28/11/2014,PAYMENTS TO AGENCIES FOR TEMPS,PERMISSIONS,PROF SER TMP STFF-TEMP WRKERS,STAFFORCE RECRUITMENT,0000216161,-271.26
DEPARTMENT OF ENERGY AND CLIMATE CHANGE,THE COAL AUTHORITY,30/11/2014,HOTEL ACCOMMODATION,PERMISSIONS,TRAVEL&EVENTS-HOTELS,REDFERN TRAVEL LTD,0000216228,223.35
DEPARTMENT OF ENERGY AND CLIMATE CHANGE,THE COAL AUTHORITY,10/12/2014,MILEAGE PAYMENTS,PERMISSIONS,FUELS/LUBRCNT/GAS-FUELS,STAFF EXPENSES CONTROL,0000216246,9.90
DEPARTMENT OF ENERGY AND CLIMATE CHANGE,THE COAL AUTHORITY,10/12/2014,MILEAGE PAYMENTS,PERMISSIONS,FUELS/LUBRCNT/GAS-FUELS,STAFF EXPENSES CONTROL,0000216249,21.00
DEPARTMENT OF ENERGY AND CLIMATE CHANGE,THE COAL AUTHORITY,08/12/2014,SUBSISTENCE ALLOWANCES,PERMISSIONS,FACILITIES - FOOD,COMPANY BARCLAYCARD,0000216427,190.22
DEPARTMENT OF ENERGY AND CLIMATE CHANGE,THE COAL AUTHORITY,08/12/2014,SUBSISTENCE ALLOWANCES,PERMISSIONS,FACILITIES - FOOD,COMPANY BARCLAYCARD,0000216472,3.50
DEPARTMENT OF ENERGY AND CLIMATE CHANGE,THE COAL AUTHORITY,08/12/2014,INCIDENTALS,PERMISSIONS,VEHICLES-FLEET MANAGEMENT,COMPANY BARCLAYCARD,0000216479,28.32
DEPARTMENT OF ENERGY AND CLIMATE CHANGE,THE COAL AUTHORITY,08/12/2014,STAFF EVENTS,PERMISSIONS,FACILITIES - FOOD,COMPANY BARCLAYCARD,0000216479,128.75
DEPARTMENT OF ENERGY AND CLIMATE CHANGE,THE COAL AUTHORITY,08/12/2014,SUBSISTENCE ALLOWANCES,PERMISSIONS,FACILITIES - FOOD,COMPANY BARCLAYCARD,0000216479,88.42
DEPARTMENT OF ENERGY AND CLIMATE CHANGE,THE COAL AUTHORITY,17/12/2014,CHILDCARE VOUCHERS,PERMISSIONS,PERSONNEL RLTD-STAFF CHILDCARE,FIDELITI LIMITED,0000216513,243.00
DEPARTMENT OF ENERGY AND CLIMATE CHANGE,THE COAL AUTHORITY,26/11/2014,IT-APPLICATIONS MANAGEMENT,PLANNING & LOCAL AUTH LIAISON,ICT-SYSTEMS DELIVERY,SCISYS UK LTD,0000215901,1598.01
DEPARTMENT OF ENERGY AND CLIMATE CHANGE,THE COAL AUTHORITY,26/11/2014,CURR YR ADD-INTNGBLE INFO TECH,PLANNING & LOCAL AUTH LIAISON,ICT-SYSTEMS DELIVERY,SCISYS UK LTD,0000215936,5171.33
DEPARTMENT OF ENERGY AND CLIMATE CHANGE,THE COAL AUTHORITY,01/12/2014,CONSULTANCY,PLANNING & LOCAL AUTH LIAISON,PROF SER CNSLTNCY-PROP/CNSTRCN,ANTHONY NORTHCOTE PLANNIN,0000215982,6018.30
DEPARTMENT OF ENERGY AND CLIMATE CHANGE,THE COAL AUTHORITY,02/12/2014,MEMBERSHIP SUBSCRIPTIONS,PLANNING & LOCAL AUTH LIAISON,PERSONNEL RLTD-STAFF SUBSCRPTN,THOMSON REUTERS (PROFESSI,0000216091,673.00
DEPARTMENT OF ENERGY AND CLIMATE CHANGE,THE COAL AUTHORITY,28/11/2014,IT-APPLICATIONS MANAGEMENT,PLANNING & LOCAL AUTH LIAISON,ICT-SOFTWARE,NERC,0000216164,4878.55
DEPARTMENT OF ENERGY AND CLIMATE CHANGE,THE COAL AUTHORITY,30/11/2014,FARES - RAIL,PLANNING & LOCAL AUTH LIAISON,TRAVEL&EVENTS-RAIL,REDFERN TRAVEL LTD,0000216227,32.68
DEPARTMENT OF ENERGY AND CLIMATE CHANGE,THE COAL AUTHORITY,30/11/2014,HOTEL ACCOMMODATION,PLANNING & LOCAL AUTH LIAISON,TRAVEL&EVENTS-HOTELS,REDFERN TRAVEL LTD,0000216228,399.75
DEPARTMENT OF ENERGY AND CLIMATE CHANGE,THE COAL AUTHORITY,10/12/2014,CURR YR ADD-INTNGBLE INFO TECH,PLANNING & LOCAL AUTH LIAISON,ICT-SYSTEMS DELIVERY,SCISYS UK LTD,0000216399,5171.33
DEPARTMENT OF ENERGY AND CLIMATE CHANGE,THE COAL AUTHORITY,15/12/2014,MILEAGE PAYMENTS,PLANNING & LOCAL AUTH LIAISON,FUELS/LUBRCNT/GAS-FUELS,STAFF EXPENSES CONTROL,0000216420,483.21
DEPARTMENT OF ENERGY AND CLIMATE CHANGE,THE COAL AUTHORITY,15/12/2014,SUBSISTENCE ALLOWANCES,PLANNING & LOCAL AUTH LIAISON,FACILITIES - FOOD,STAFF EXPENSES CONTROL,0000216420,63.55
DEPARTMENT OF ENERGY AND CLIMATE CHANGE,THE COAL AUTHORITY,08/12/2014,FARES - RAIL,PLANNING & LOCAL AUTH LIAISON,TRAVEL&EVENTS-RAIL,COMPANY BARCLAYCARD,0000216472,4.40
DEPARTMENT OF ENERGY AND CLIMATE CHANGE,THE COAL AUTHORITY,08/12/2014,INCIDENTALS,PLANNING & LOCAL AUTH LIAISON,VEHICLES-FLEET MANAGEMENT,COMPANY BARCLAYCARD,0000216472,32.70
DEPARTMENT OF ENERGY AND CLIMATE CHANGE,THE COAL AUTHORITY,08/12/2014,SUBSISTENCE ALLOWANCES,PLANNING & LOCAL AUTH LIAISON,FACILITIES - FOOD,COMPANY BARCLAYCARD,0000216472,18.48
DEPARTMENT OF ENERGY AND CLIMATE CHANGE,THE COAL AUTHORITY,08/12/2014,INCIDENTALS,PLANNING & LOCAL AUTH LIAISON,VEHICLES-FLEET MANAGEMENT,COMPANY BARCLAYCARD,0000216474,9.17
DEPARTMENT OF ENERGY AND CLIMATE CHANGE,THE COAL AUTHORITY,08/12/2014,SUBSISTENCE ALLOWANCES,PLANNING & LOCAL AUTH LIAISON,FACILITIES - FOOD,COMPANY BARCLAYCARD,0000216474,3.33
DEPARTMENT OF ENERGY AND CLIMATE CHANGE,THE COAL AUTHORITY,08/12/2014,SUBSISTENCE ALLOWANCES,PLANNING & LOCAL AUTH LIAISON,FACILITIES - FOOD,COMPANY BARCLAYCARD,0000216479,22.14
DEPARTMENT OF ENERGY AND CLIMATE CHANGE,THE COAL AUTHORITY,19/11/2014,PAYMENTS TO AGENCIES FOR TEMPS,PROCUREMENT,PROF SER TMP STFF-SPCLST CNTRT,HAYS,0000215857,1440.00
DEPARTMENT OF ENERGY AND CLIMATE CHANGE,THE COAL AUTHORITY,21/11/2014,TRAINING AND EDUCATION,PROCUREMENT,PROF SER LRNG&DEV-STAFF TRNING,EASTWOOD HALL,0000215942,180.00
DEPARTMENT OF ENERGY AND CLIMATE CHANGE,THE COAL AUTHORITY,26/11/2014,PAYMENTS TO AGENCIES FOR TEMPS,PROCUREMENT,PROF SER TMP STFF-SPCLST CNTRT,HAYS,0000216008,1440.00
DEPARTMENT OF ENERGY AND CLIMATE CHANGE,THE COAL AUTHORITY,03/12/2014,LEGAL COSTS,PROCUREMENT,PROF SER-LEGAL SERVICES,DLA PIPER UK LLP,0000216120,607.50
DEPARTMENT OF ENERGY AND CLIMATE CHANGE,THE COAL AUTHORITY,03/12/2014,SALARIES,PROCUREMENT,PROF SER TMP STFF-SPCLST CNTRT,HAYS,0000216224,1296.00
DEPARTMENT OF ENERGY AND CLIMATE CHANGE,THE COAL AUTHORITY,30/11/2014,FARES - RAIL,PROCUREMENT,TRAVEL&EVENTS-RAIL,REDFERN TRAVEL LTD,0000216227,153.50
DEPARTMENT OF ENERGY AND CLIMATE CHANGE,THE COAL AUTHORITY,11/12/2014,INCIDENTALS,PROCUREMENT,VEHICLES-FLEET MANAGEMENT,STAFF EXPENSES CONTROL,0000216327,9.17
DEPARTMENT OF ENERGY AND CLIMATE CHANGE,THE COAL AUTHORITY,11/12/2014,MILEAGE PAYMENTS,PROCUREMENT,FUELS/LUBRCNT/GAS-FUELS,STAFF EXPENSES CONTROL,0000216327,30.60
DEPARTMENT OF ENERGY AND CLIMATE CHANGE,THE COAL AUTHORITY,11/12/2014,SUBSISTENCE ALLOWANCES,PROCUREMENT,FACILITIES - FOOD,STAFF EXPENSES CONTROL,0000216327,3.08
DEPARTMENT OF ENERGY AND CLIMATE CHANGE,THE COAL AUTHORITY,10/12/2014,PAYMENTS TO AGENCIES FOR TEMPS,PROCUREMENT,PROF SER TMP STFF-SPCLST CNTRT,HAYS,0000216404,1440.00
DEPARTMENT OF ENERGY AND CLIMATE CHANGE,THE COAL AUTHORITY,23/10/2014,M/W RATES PAYABLE,PROPERTY MANAGEMENT & SALES,ENERGY&UTILITIES-ELECTRICITY,METHLEY ESTATES (HOLDINGS,0000215321,155.80
DEPARTMENT OF ENERGY AND CLIMATE CHANGE,THE COAL AUTHORITY,05/11/2014,PROPERTY /TIP MAINTENANCE,PROPERTY MANAGEMENT & SALES,PROF SER CNSLTNCY-PPM CNSLTNCY,INTEGRATED WATER SERVICES,0000215354,209.71
DEPARTMENT OF ENERGY AND CLIMATE CHANGE,THE COAL AUTHORITY,27/11/2014,PROPERTY /TIP MAINTENANCE,PROPERTY MANAGEMENT & SALES,PROF SER CNSLTNCY-PPM CNSLTNCY,INTEGRATED WATER SERVICES,0000215962,209.71
DEPARTMENT OF ENERGY AND CLIMATE CHANGE,THE COAL AUTHORITY,24/11/2014,M/W RATES PAYABLE,PROPERTY MANAGEMENT & SALES,ENERGY&UTILITIES-ELECTRICITY,METHLEY ESTATES (HOLDINGS,0000216002,175.56
DEPARTMENT OF ENERGY AND CLIMATE CHANGE,THE COAL AUTHORITY,30/11/2014,OTHER CONTRACTOR COSTS,PROPERTY MANAGEMENT & SALES,PROF SER CNSLTNCY-PPM CNSLTNCY,JMC ENGINEERING (UK) LTD,0000216060,1183.60
DEPARTMENT OF ENERGY AND CLIMATE CHANGE,THE COAL AUTHORITY,30/11/2014,PROFESSIONAL SERVICES (WRA),PROPERTY MANAGEMENT & SALES,PROF SER TECH-ENGINEERING SER,JMC ENGINEERING (UK) LTD,0000216068,560.90
DEPARTMENT OF ENERGY AND CLIMATE CHANGE,THE COAL AUTHORITY,30/11/2014,PROPERTY MANAGEMENT CONSTLNTS,PROPERTY MANAGEMENT & SALES,PROF SER CNSLTNCY-PPM CNSLTNCY,JMC ENGINEERING (UK) LTD,0000216069,266.40
DEPARTMENT OF ENERGY AND CLIMATE CHANGE,THE COAL AUTHORITY,02/12/2014,PROPERTY /TIP MAINTENANCE,PROPERTY MANAGEMENT & SALES,CONSTRUCTION-MAIN CONTRACTORS,INTEGRATED WATER SERVICES,0000216080,105.42
DEPARTMENT OF ENERGY AND CLIMATE CHANGE,THE COAL AUTHORITY,02/12/2014,PROPERTY /TIP MAINTENANCE,PROPERTY MANAGEMENT & SALES,PROF SER-ENVIRONMENTAL SRVICES,INTEGRATED WATER SERVICES,0000216080,328.83
DEPARTMENT OF ENERGY AND CLIMATE CHANGE,THE COAL AUTHORITY,28/11/2014,RESTRTN CLSED CLLRY STE-PROP,PROPERTY MANAGEMENT & SALES,FACILITIES - SECURITY,CRIMEFIGHTER ALARMS LTD,0000216163,1103.40
DEPARTMENT OF ENERGY AND CLIMATE CHANGE,THE COAL AUTHORITY,01/11/2014,PROPERTY /TIP MAINTENANCE,PROPERTY MANAGEMENT & SALES,PROF SER-ENVIRONMENTAL SRVICES,GARDEN BEAUTY MAINT SERV,0000216188,580.00
DEPARTMENT OF ENERGY AND CLIMATE CHANGE,THE COAL AUTHORITY,25/11/2014,RESTRTN CLSED CLLRY STE-PROP,PROPERTY MANAGEMENT & SALES,WASTE MANAGEMENT-WSTE MNGT SER,M T S CLEANSING SERVICES,0000216205,381.69
DEPARTMENT OF ENERGY AND CLIMATE CHANGE,THE COAL AUTHORITY,08/12/2014,PROPERTY RENTS PAYABLE,PROPERTY MANAGEMENT & SALES,FACILITIES-BUILDING MANAGEMENT,NETWORK RAIL,0000216283,415.00
DEPARTMENT OF ENERGY AND CLIMATE CHANGE,THE COAL AUTHORITY,08/12/2014,PROPERTY RENTS PAYABLE,PROPERTY MANAGEMENT & SALES,FACILITIES-BUILDING MANAGEMENT,NETWORK RAIL,0000216284,25.38
DEPARTMENT OF ENERGY AND CLIMATE CHANGE,THE COAL AUTHORITY,08/12/2014,PROPERTY RENTS PAYABLE,PROPERTY MANAGEMENT & SALES,FACILITIES-BUILDING MANAGEMENT,NETWORK RAIL,0000216285,934.04
DEPARTMENT OF ENERGY AND CLIMATE CHANGE,THE COAL AUTHORITY,08/12/2014,PROPERTY RENTS PAYABLE,PROPERTY MANAGEMENT & SALES,FACILITIES-BUILDING MANAGEMENT,NETWORK RAIL,0000216286,2.00
DEPARTMENT OF ENERGY AND CLIMATE CHANGE,THE COAL AUTHORITY,08/12/2014,PROPERTY RENTS PAYABLE,PROPERTY MANAGEMENT & SALES,FACILITIES-BUILDING MANAGEMENT,JAMES DONALDSON & SONS LT,0000216287,7000.00
DEPARTMENT OF ENERGY AND CLIMATE CHANGE,THE COAL AUTHORITY,08/12/2014,PROPERTY /TIP MAINTENANCE,PROPERTY MANAGEMENT & SALES,PROF SER-ENVIRONMENTAL SRVICES,GARDEN BEAUTY MAINT SERV,0000216291,2900.00
DEPARTMENT OF ENERGY AND CLIMATE CHANGE,THE COAL AUTHORITY,08/12/2014,PROPERTY RATES PAYABLE,PROPERTY MANAGEMENT & SALES,ENERGY&UTILITIES-ELECTRICITY,BRITISH GAS BUSINESS,0000216300,86.65
DEPARTMENT OF ENERGY AND CLIMATE CHANGE,THE COAL AUTHORITY,11/12/2014,OUTSOURCED MGT- PROP SALES,PROPERTY MANAGEMENT & SALES,PROF SER CNSLTNCY-PROP/CNSTRCN,SMITHS GORE,0000216396,4250.00
DEPARTMENT OF ENERGY AND CLIMATE CHANGE,THE COAL AUTHORITY,01/12/2014,COMMISSION CHARGES-E-COMMERCE,RECORDS STORAGE,PROF SER FNCL-BANKING&INVSTMNT,WORLDPAY LIMITED,0000216204,17.72
DEPARTMENT OF ENERGY AND CLIMATE CHANGE,THE COAL AUTHORITY,01/12/2014,IT-APPLICATIONS MANAGEMENT,RECORDS STORAGE,ICT-MAINTENANCE & SUPPORT,DAISY COMMUNICATIONS LTD,0000216290,6254.95
DEPARTMENT OF ENERGY AND CLIMATE CHANGE,THE COAL AUTHORITY,28/11/2014,CONSULTANCY,RESEARCH & DEVELOPMENT,PROF SER CNSLTNCY-PROP/CNSTRCN,MINES RESCUE SERVICE LIMI,0000216001,2800.00
DEPARTMENT OF ENERGY AND CLIMATE CHANGE,THE COAL AUTHORITY,16/11/2014,CAR HIRE,RESEARCH & DEVELOPMENT,TRAVEL&EVENTS-VEHICLE HIRE,ENTERPRISE RENT A CAR,0000216044,160.96
DEPARTMENT OF ENERGY AND CLIMATE CHANGE,THE COAL AUTHORITY,30/11/2014,FARES - RAIL,RESEARCH & DEVELOPMENT,TRAVEL&EVENTS-RAIL,REDFERN TRAVEL LTD,0000216227,275.47
DEPARTMENT OF ENERGY AND CLIMATE CHANGE,THE COAL AUTHORITY,08/12/2014,SUBSISTENCE ALLOWANCES,RESEARCH & DEVELOPMENT,FACILITIES - FOOD,COMPANY BARCLAYCARD,0000216354,6.13
DEPARTMENT OF ENERGY AND CLIMATE CHANGE,THE COAL AUTHORITY,08/12/2014,SUBSISTENCE ALLOWANCES,RESEARCH & DEVELOPMENT,FACILITIES - FOOD,COMPANY BARCLAYCARD,0000216355,23.71
DEPARTMENT OF ENERGY AND CLIMATE CHANGE,THE COAL AUTHORITY,07/11/2014,CAR HIRE,SHE/CDM,TRAVEL&EVENTS-VEHICLE HIRE,ENTERPRISE RENT A CAR,0000216040,65.72
DEPARTMENT OF ENERGY AND CLIMATE CHANGE,THE COAL AUTHORITY,15/11/2014,CAR HIRE,SHE/CDM,TRAVEL&EVENTS-VEHICLE HIRE,ENTERPRISE RENT A CAR,0000216045,85.96
DEPARTMENT OF ENERGY AND CLIMATE CHANGE,THE COAL AUTHORITY,25/11/2014,CAR HIRE,SHE/CDM,TRAVEL&EVENTS-VEHICLE HIRE,ENTERPRISE RENT A CAR,0000216048,124.08
DEPARTMENT OF ENERGY AND CLIMATE CHANGE,THE COAL AUTHORITY,05/12/2014,CENTRAL TRAINING BUDGET,SHE/CDM,PROF SER LRNG&DEV-STAFF TRNING,MINES RESCUE SERVICE LIMI,0000216199,335.00
DEPARTMENT OF ENERGY AND CLIMATE CHANGE,THE COAL AUTHORITY,01/12/2014,SAFETY CLOTHING,SHE/CDM,OPRTNL GOODS&SERV-CLOTHING,ARCO LIMITED,0000216207,50.25
DEPARTMENT OF ENERGY AND CLIMATE CHANGE,THE COAL AUTHORITY,30/11/2014,FARES - RAIL,SHE/CDM,TRAVEL&EVENTS-RAIL,REDFERN TRAVEL LTD,0000216227,238.86
DEPARTMENT OF ENERGY AND CLIMATE CHANGE,THE COAL AUTHORITY,30/11/2014,HOTEL ACCOMMODATION,SHE/CDM,TRAVEL&EVENTS-HOTELS,REDFERN TRAVEL LTD,0000216228,564.40
DEPARTMENT OF ENERGY AND CLIMATE CHANGE,THE COAL AUTHORITY,09/12/2014,CENTRAL TRAINING BUDGET,SHE/CDM,PROF SER LRNG&DEV-STAFF TRNING,MINES RESCUE SERVICE LIMI,0000216240,344.00
DEPARTMENT OF ENERGY AND CLIMATE CHANGE,THE COAL AUTHORITY,09/12/2014,CENTRAL TRAINING BUDGET,SHE/CDM,PROF SER LRNG&DEV-STAFF TRNING,MINES RESCUE SERVICE LIMI,0000216241,344.00
DEPARTMENT OF ENERGY AND CLIMATE CHANGE,THE COAL AUTHORITY,10/12/2014,MILEAGE PAYMENTS,SHE/CDM,FUELS/LUBRCNT/GAS-FUELS,STAFF EXPENSES CONTROL,0000216251,94.50
DEPARTMENT OF ENERGY AND CLIMATE CHANGE,THE COAL AUTHORITY,10/12/2014,SUBSISTENCE ALLOWANCES,SHE/CDM,FACILITIES - FOOD,STAFF EXPENSES CONTROL,0000216251,40.46
DEPARTMENT OF ENERGY AND CLIMATE CHANGE,THE COAL AUTHORITY,10/12/2014,MILEAGE PAYMENTS,SHE/CDM,FUELS/LUBRCNT/GAS-FUELS,STAFF EXPENSES CONTROL,0000216292,57.60
DEPARTMENT OF ENERGY AND CLIMATE CHANGE,THE COAL AUTHORITY,08/12/2014,CENTRAL TRAINING BUDGET,SHE/CDM,PROF SER LRNG&DEV-STAFF TRNING,COMPANY BARCLAYCARD,0000216294,436.00
DEPARTMENT OF ENERGY AND CLIMATE CHANGE,THE COAL AUTHORITY,08/12/2014,CENTRAL TRAINING BUDGET,SHE/CDM,PROF SER LRNG&DEV-STAFF TRNING,COMPANY BARCLAYCARD,0000216295,350.00
DEPARTMENT OF ENERGY AND CLIMATE CHANGE,THE COAL AUTHORITY,08/12/2014,SAFETY CLOTHING,SHE/CDM,OPRTNL GOODS&SERV-CLOTHING,COMPANY BARCLAYCARD,0000216295,14.62
DEPARTMENT OF ENERGY AND CLIMATE CHANGE,THE COAL AUTHORITY,08/12/2014,TRAINING AND EDUCATION,SHE/CDM,PROF SER LRNG&DEV-STAFF TRNING,COMPANY BARCLAYCARD,0000216295,141.66
DEPARTMENT OF ENERGY AND CLIMATE CHANGE,THE COAL AUTHORITY,02/12/2014,SAFETY CLOTHING,SHE/CDM,OPRTNL GOODS&SERV-CLOTHING,ARCO LIMITED,0000216310,29.74
DEPARTMENT OF ENERGY AND CLIMATE CHANGE,THE COAL AUTHORITY,08/12/2014,FUEL (VEHICLE),SHE/CDM,FUELS/LUBRCNT/GAS-FUELS,COMPANY BARCLAYCARD,0000216345,66.60
DEPARTMENT OF ENERGY AND CLIMATE CHANGE,THE COAL AUTHORITY,08/12/2014,INCIDENTALS,SHE/CDM,VEHICLES-FLEET MANAGEMENT,COMPANY BARCLAYCARD,0000216345,20.00
DEPARTMENT OF ENERGY AND CLIMATE CHANGE,THE COAL AUTHORITY,08/12/2014,SUBSISTENCE ALLOWANCES,SHE/CDM,FACILITIES - FOOD,COMPANY BARCLAYCARD,0000216345,75.11
DEPARTMENT OF ENERGY AND CLIMATE CHANGE,THE COAL AUTHORITY,08/10/2014,FUEL (VEHICLE),SHE/CDM,FUELS/LUBRCNT/GAS-FUELS,COMPANY BARCLAYCARD,0000216346,83.25
DEPARTMENT OF ENERGY AND CLIMATE CHANGE,THE COAL AUTHORITY,08/10/2014,INCIDENTALS,SHE/CDM,VEHICLES-FLEET MANAGEMENT,COMPANY BARCLAYCARD,0000216346,16.67
DEPARTMENT OF ENERGY AND CLIMATE CHANGE,THE COAL AUTHORITY,08/10/2014,SUBSISTENCE ALLOWANCES,SHE/CDM,FACILITIES - FOOD,COMPANY BARCLAYCARD,0000216346,106.21
DEPARTMENT OF ENERGY AND CLIMATE CHANGE,THE COAL AUTHORITY,08/10/2014,TRAINING AND EDUCATION,SHE/CDM,PROF SER LRNG&DEV-STAFF TRNING,COMPANY BARCLAYCARD,0000216346,17.50
DEPARTMENT OF ENERGY AND CLIMATE CHANGE,THE COAL AUTHORITY,08/12/2014,CENTRAL TRAINING BUDGET,SHE/CDM,PROF SER LRNG&DEV-STAFF TRNING,COMPANY BARCLAYCARD,0000216352,17.50
DEPARTMENT OF ENERGY AND CLIMATE CHANGE,THE COAL AUTHORITY,08/12/2014,CENTRAL TRAINING BUDGET,SHE/CDM,PROF SER LRNG&DEV-STAFF TRNING,COMPANY BARCLAYCARD,0000216353,124.50
DEPARTMENT OF ENERGY AND CLIMATE CHANGE,THE COAL AUTHORITY,08/12/2014,TRAINING AND EDUCATION,SHE/CDM,PROF SER LRNG&DEV-STAFF TRNING,COMPANY BARCLAYCARD,0000216353,130.98
DEPARTMENT OF ENERGY AND CLIMATE CHANGE,THE COAL AUTHORITY,04/12/2014,SAFETY CLOTHING,SHE/CDM,OPRTNL GOODS&SERV-CLOTHING,ARCO LIMITED,0000216368,101.45
DEPARTMENT OF ENERGY AND CLIMATE CHANGE,THE COAL AUTHORITY,04/12/2014,SAFETY CLOTHING,SHE/CDM,OPRTNL GOODS&SERV-CLOTHING,ARCO LIMITED,0000216369,16.00
DEPARTMENT OF ENERGY AND CLIMATE CHANGE,THE COAL AUTHORITY,04/12/2014,SAFETY CLOTHING,SHE/CDM,OPRTNL GOODS&SERV-CLOTHING,ARCO LIMITED,0000216370,129.67
DEPARTMENT OF ENERGY AND CLIMATE CHANGE,THE COAL AUTHORITY,08/12/2014,CENTRAL TRAINING BUDGET,SHE/CDM,PROF SER LRNG&DEV-STAFF TRNING,COMPANY BARCLAYCARD,0000216476,138.00
DEPARTMENT OF ENERGY AND CLIMATE CHANGE,THE COAL AUTHORITY,08/12/2014,CENTRAL TRAINING BUDGET,SHE/CDM,PROF SER LRNG&DEV-STAFF TRNING,COMPANY BARCLAYCARD,0000216484,25.00
DEPARTMENT OF ENERGY AND CLIMATE CHANGE,THE COAL AUTHORITY,17/11/2014,CONTRACTORS AND CLAIM COSTS,SUBSIDENCE,ENERGY&UTILITIES-WATER,NORTHUMBRIAN WATER LIMITE,0000215885,473.41
DEPARTMENT OF ENERGY AND CLIMATE CHANGE,THE COAL AUTHORITY,26/11/2014,CONTRACTORS AND CLAIM COSTS,SUBSIDENCE,CONSTRUCTION-CNSTRN SER PROVDR,INTERLOCK SURVEYS,0000215890,700.00
DEPARTMENT OF ENERGY AND CLIMATE CHANGE,THE COAL AUTHORITY,25/11/2014,CONTRACTORS AND CLAIM COSTS,SUBSIDENCE,CONSTRUCTION-MAIN CONTRACTORS,BALFOUR BEATTY CIVIL ENG,0000215923,1091.71
DEPARTMENT OF ENERGY AND CLIMATE CHANGE,THE COAL AUTHORITY,27/11/2014,CONTRACTORS AND CLAIM COSTS,SUBSIDENCE,CONSTRUCTION-MAIN CONTRACTORS,BALFOUR BEATTY CIVIL ENG,0000215929,221.28
DEPARTMENT OF ENERGY AND CLIMATE CHANGE,THE COAL AUTHORITY,28/11/2014,CONTRACTORS AND CLAIM COSTS,SUBSIDENCE,CONSTRUCTION-CNSTRN SER PROVDR,CORNERSTONE  PROJECTS LTD,0000215975,58.00
DEPARTMENT OF ENERGY AND CLIMATE CHANGE,THE COAL AUTHORITY,24/11/2014,CONTRACTORS AND CLAIM COSTS,SUBSIDENCE,CONSTRUCTION-MAIN CONTRACTORS,NAL PLANT LIMITED,0000216005,764.13
DEPARTMENT OF ENERGY AND CLIMATE CHANGE,THE COAL AUTHORITY,02/12/2014,CONTRACTORS AND CLAIM COSTS,SUBSIDENCE,"CONSTRUCTION-BLD,REPR&MAINTNCE",REPLAE SHED & TURF LAWN,0000216020,600.00
DEPARTMENT OF ENERGY AND CLIMATE CHANGE,THE COAL AUTHORITY,02/12/2014,CONTRACTORS AND CLAIM COSTS,SUBSIDENCE,"CONSTRUCTION-BLD,REPR&MAINTNCE",SUPPLY & FIT BATHROOM WIN,0000216023,380.00
DEPARTMENT OF ENERGY AND CLIMATE CHANGE,THE COAL AUTHORITY,02/12/2014,CNTRCTR & CLAIM CSTS-BRDGEWATR,SUBSIDENCE,CONSTRUCTION-CNSTRN SER PROVDR,THE BRIDGEWATER CANAL CO,0000216036,706.03
DEPARTMENT OF ENERGY AND CLIMATE CHANGE,THE COAL AUTHORITY,02/12/2014,CONTRACTORS AND CLAIM COSTS,SUBSIDENCE,CONSTRUCTION-MAIN CONTRACTORS,LLETTYSHENKIN CONS CO LTD,0000216054,76.00
DEPARTMENT OF ENERGY AND CLIMATE CHANGE,THE COAL AUTHORITY,03/12/2014,CONTRACTORS AND CLAIM COSTS,SUBSIDENCE,"CONSTRUCTION-BLD,REPR&MAINTNCE",PAYMENT TO COVER VARIOUS,0000216097,462.00
DEPARTMENT OF ENERGY AND CLIMATE CHANGE,THE COAL AUTHORITY,28/11/2014,CONTRACTORS AND CLAIM COSTS,SUBSIDENCE,CONSTRUCTION-MAIN CONTRACTORS,HARDYMAN & CO LTD,0000216100,293.33
DEPARTMENT OF ENERGY AND CLIMATE CHANGE,THE COAL AUTHORITY,30/11/2014,CONTRACTORS AND CLAIM COSTS,SUBSIDENCE,PROF SER-ENVIRONMENTAL SRVICES,NAL PLANT LIMITED,0000216101,1481.45
DEPARTMENT OF ENERGY AND CLIMATE CHANGE,THE COAL AUTHORITY,30/11/2014,CONTRACTORS AND CLAIM COSTS,SUBSIDENCE,CONSTRUCTION-MAIN CONTRACTORS,NAL PLANT LIMITED,0000216102,4942.48
DEPARTMENT OF ENERGY AND CLIMATE CHANGE,THE COAL AUTHORITY,03/12/2014,CNTRCTR & CLAIM CSTS-BRDGEWATR,SUBSIDENCE,PROF SER-ENVIRONMENTAL SRVICES,THE BRIDGEWATER CANAL CO,0000216108,493.31
DEPARTMENT OF ENERGY AND CLIMATE CHANGE,THE COAL AUTHORITY,03/12/2014,LEGAL COSTS,SUBSIDENCE,PROF SER-LEGAL SERVICES,DLA PIPER UK LLP,0000216120,9096.90
DEPARTMENT OF ENERGY AND CLIMATE CHANGE,THE COAL AUTHORITY,28/11/2014,CONTRACTORS AND CLAIM COSTS,SUBSIDENCE,FACILITIES-BUILDING MANAGEMENT,NORTHUMBERLAND COUNTY COU,0000216151,190.66
DEPARTMENT OF ENERGY AND CLIMATE CHANGE,THE COAL AUTHORITY,08/12/2014,CONTRACTORS AND CLAIM COSTS,SUBSIDENCE,PROF SER-OPERATIONAL SERVICES,50% COSTS OF ARBITRATION,0000216200,900.00
DEPARTMENT OF ENERGY AND CLIMATE CHANGE,THE COAL AUTHORITY,03/12/2014,CONTRACTORS AND CLAIM COSTS,SUBSIDENCE,CONSTRUCTION-MAIN CONTRACTORS,NAL PLANT LIMITED,0000216213,2015.65
DEPARTMENT OF ENERGY AND CLIMATE CHANGE,THE COAL AUTHORITY,08/12/2014,CNTRCTR & CLAIM CSTS-BRDGEWATR,SUBSIDENCE,CONSTRUCTION-MAIN CONTRACTORS,THE BRIDGEWATER CANAL CO,0000216225,89512.47
DEPARTMENT OF ENERGY AND CLIMATE CHANGE,THE COAL AUTHORITY,30/11/2014,HOTEL ACCOMMODATION,SUBSIDENCE,TRAVEL&EVENTS-HOTELS,REDFERN TRAVEL LTD,0000216228,151.33
DEPARTMENT OF ENERGY AND CLIMATE CHANGE,THE COAL AUTHORITY,10/12/2014,CONTRACTORS AND CLAIM COSTS,SUBSIDENCE,CONSTRUCTION-MAIN CONTRACTORS,GEOL-CONSULTANTS LTD,0000216256,1605.30
DEPARTMENT OF ENERGY AND CLIMATE CHANGE,THE COAL AUTHORITY,10/12/2014,CONTRACTORS AND CLAIM COSTS,SUBSIDENCE,CONSTRUCTION-MAIN CONTRACTORS,GEOL-CONSULTANTS LTD,0000216260,1281.00
DEPARTMENT OF ENERGY AND CLIMATE CHANGE,THE COAL AUTHORITY,10/12/2014,CONTRACTORS AND CLAIM COSTS,SUBSIDENCE,CONSTRUCTION-MAIN CONTRACTORS,GEOL-CONSULTANTS LTD,0000216263,1411.00
DEPARTMENT OF ENERGY AND CLIMATE CHANGE,THE COAL AUTHORITY,10/12/2014,CONTRACTORS AND CLAIM COSTS,SUBSIDENCE,CONSTRUCTION-MAIN CONTRACTORS,GEOL-CONSULTANTS LTD,0000216273,3516.26
DEPARTMENT OF ENERGY AND CLIMATE CHANGE,THE COAL AUTHORITY,10/12/2014,CONTRACTORS AND CLAIM COSTS,SUBSIDENCE,CONSTRUCTION-MAIN CONTRACTORS,GEOL-CONSULTANTS LTD,0000216274,350.00
DEPARTMENT OF ENERGY AND CLIMATE CHANGE,THE COAL AUTHORITY,12/12/2014,CONTRACTORS AND CLAIM COSTS,SUBSIDENCE,PROF SER-OPERATIONAL SERVICES,VALUATION OFFICE AGENCY,0000216388,296.55
DEPARTMENT OF ENERGY AND CLIMATE CHANGE,THE COAL AUTHORITY,12/12/2014,CONTRACTORS AND CLAIM COSTS,SUBSIDENCE,PROF SER-OPERATIONAL SERVICES,VALUATION OFFICE AGENCY,0000216417,296.55
DEPARTMENT OF ENERGY AND CLIMATE CHANGE,THE COAL AUTHORITY,16/12/2014,CONTRACTORS AND CLAIM COSTS,SUBSIDENCE,CONSTRUCTION-MAIN CONTRACTORS,ALLIANCE CONSTRUCTION SOL,0000216434,726.58
DEPARTMENT OF ENERGY AND CLIMATE CHANGE,THE COAL AUTHORITY,16/12/2014,CNTRCTR & CLAIM CSTS-BRDGEWATR,SUBSIDENCE,CONSTRUCTION-CNSTRN SER PROVDR,THE BRIDGEWATER CANAL CO,0000216458,368.56
DEPARTMENT OF ENERGY AND CLIMATE CHANGE,THE COAL AUTHORITY,18/12/2014,CONTRACTORS AND CLAIM COSTS,SUBSIDENCE,PROF SER-LEGAL SERVICES,PURCHASE OF SAN DIEGO  ST,0000216509,143686.00
DEPARTMENT OF ENERGY AND CLIMATE CHANGE,THE COAL AUTHORITY,17/12/2014,M/W TELECOMS & TELEMETRY,SUBSIDENCE,CONSTRUCTION-CNSTRN SER PROVDR,THE BRIDGEWATER CANAL CO,0000216510,1150.90
DEPARTMENT OF ENERGY AND CLIMATE CHANGE,THE COAL AUTHORITY,15/12/2014,CONTRACTORS AND CLAIM COSTS,SUBSIDENCE,PROF SER-OPERATIONAL SERVICES,RMVE 216388 SCAN IMG ERR,35001902,-296.55
DEPARTMENT OF ENERGY AND CLIMATE CHANGE,THE COAL AUTHORITY,31/10/2014,CURR YR ADDNS SUBS PMPNG STNS,SUBSIDENCE PUMPING STATIONS,LOGISTICS-WAREHOUSE&STORAGE,BEDFORD PUMPS LTD,0000215267,4624.80
DEPARTMENT OF ENERGY AND CLIMATE CHANGE,THE COAL AUTHORITY,05/11/2014,SUB PUMP STTN MAINTENANCE-PWER,SUBSIDENCE PUMPING STATIONS,ENERGY&UTILITIES-ELECTRICITY,BLACK DRAIN DRAINAGE BOAR,0000215368,209.66
DEPARTMENT OF ENERGY AND CLIMATE CHANGE,THE COAL AUTHORITY,28/10/2014,CURR YR ADDNS SUBS PMPNG STNS,SUBSIDENCE PUMPING STATIONS,CONSTRUCTION-MAIN CONTRACTORS,INTEGRATED WATER SERVICES,0000215398,57884.44
DEPARTMENT OF ENERGY AND CLIMATE CHANGE,THE COAL AUTHORITY,28/10/2014,CURR YR ADDNS SUBS PMPNG STNS,SUBSIDENCE PUMPING STATIONS,CONSTRUCTION-MAIN CONTRACTORS,INTEGRATED WATER SERVICES,0000215398,22140.70
DEPARTMENT OF ENERGY AND CLIMATE CHANGE,THE COAL AUTHORITY,28/10/2014,CURR YR ADDNS SUBS PMPNG STNS,SUBSIDENCE PUMPING STATIONS,CONSTRUCTION-MAIN CONTRACTORS,INTEGRATED WATER SERVICES,0000215398,28063.95
DEPARTMENT OF ENERGY AND CLIMATE CHANGE,THE COAL AUTHORITY,28/10/2014,CURR YR ADDNS SUBS PMPNG STNS,SUBSIDENCE PUMPING STATIONS,CONSTRUCTION-MAIN CONTRACTORS,INTEGRATED WATER SERVICES,0000215398,33782.95
DEPARTMENT OF ENERGY AND CLIMATE CHANGE,THE COAL AUTHORITY,04/11/2014,SUB PUMP STTN MAINTENANCE-OTHR,SUBSIDENCE PUMPING STATIONS,PSPES NOT APPLICABLE,JEREMY BENN ASSOCIATES LT,0000215549,1139.29
DEPARTMENT OF ENERGY AND CLIMATE CHANGE,THE COAL AUTHORITY,07/11/2014,SUB PUMP STTN MAINTENANCE-OTHR,SUBSIDENCE PUMPING STATIONS,PSPES NOT APPLICABLE,JEREMY BENN ASSOCIATES LT,0000215550,1025.00
DEPARTMENT OF ENERGY AND CLIMATE CHANGE,THE COAL AUTHORITY,04/10/2014,SUB PUMP STTN MAINTENANCE-OTHR,SUBSIDENCE PUMPING STATIONS,"CONSTRUCTION-BLD,REPR&MAINTNCE",SELBY AREA INTERNAL DRAIN,0000215552,1519.18
DEPARTMENT OF ENERGY AND CLIMATE CHANGE,THE COAL AUTHORITY,04/10/2014,SUB PUMP STTN MAINTENANCE-PWER,SUBSIDENCE PUMPING STATIONS,ENERGY&UTILITIES-ELECTRICITY,SELBY AREA INTERNAL DRAIN,0000215552,429.12
DEPARTMENT OF ENERGY AND CLIMATE CHANGE,THE COAL AUTHORITY,04/10/2014,SUB PUMP STTN MAINTENANCE-OTHR,SUBSIDENCE PUMPING STATIONS,"CONSTRUCTION-BLD,REPR&MAINTNCE",SELBY AREA INTERNAL DRAIN,0000215553,2434.34
DEPARTMENT OF ENERGY AND CLIMATE CHANGE,THE COAL AUTHORITY,04/10/2014,SUB PUMP STTN MAINTENANCE-OTHR,SUBSIDENCE PUMPING STATIONS,ICT-TELECOMS,SELBY AREA INTERNAL DRAIN,0000215553,22.50
DEPARTMENT OF ENERGY AND CLIMATE CHANGE,THE COAL AUTHORITY,04/10/2014,SUB PUMP STTN MAINTENANCE-PWER,SUBSIDENCE PUMPING STATIONS,ENERGY&UTILITIES-ELECTRICITY,SELBY AREA INTERNAL DRAIN,0000215553,1368.12
DEPARTMENT OF ENERGY AND CLIMATE CHANGE,THE COAL AUTHORITY,04/10/2014,SUB PUMP STTN MAINTENANCE-PWER,SUBSIDENCE PUMPING STATIONS,"CONSTRUCTION-BLD,REPR&MAINTNCE",SELBY AREA INTERNAL DRAIN,0000215554,666.57
DEPARTMENT OF ENERGY AND CLIMATE CHANGE,THE COAL AUTHORITY,04/10/2014,SUB PUMP STTN MAINTENANCE-OTHR,SUBSIDENCE PUMPING STATIONS,"CONSTRUCTION-BLD,REPR&MAINTNCE",SELBY AREA INTERNAL DRAIN,0000215555,267.50
DEPARTMENT OF ENERGY AND CLIMATE CHANGE,THE COAL AUTHORITY,04/10/2014,SUB PUMP STTN MAINTENANCE-PWER,SUBSIDENCE PUMPING STATIONS,ENERGY&UTILITIES-ELECTRICITY,SELBY AREA INTERNAL DRAIN,0000215555,21.68
DEPARTMENT OF ENERGY AND CLIMATE CHANGE,THE COAL AUTHORITY,04/10/2014,SUB PUMP STTN MAINTENANCE-OTHR,SUBSIDENCE PUMPING STATIONS,"CONSTRUCTION-BLD,REPR&MAINTNCE",SELBY AREA INTERNAL DRAIN,0000215556,1666.30
DEPARTMENT OF ENERGY AND CLIMATE CHANGE,THE COAL AUTHORITY,04/10/2014,SUB PUMP STTN MAINTENANCE-PWER,SUBSIDENCE PUMPING STATIONS,ENERGY&UTILITIES-ELECTRICITY,SELBY AREA INTERNAL DRAIN,0000215556,1601.77
DEPARTMENT OF ENERGY AND CLIMATE CHANGE,THE COAL AUTHORITY,12/11/2014,SUB PUMP STTN MAINTENANCE-OTHR,SUBSIDENCE PUMPING STATIONS,ENERGY&UTILITIES-ELECTRICITY,DANVM DRAINAGE COMMISSION,0000215871,291.15
DEPARTMENT OF ENERGY AND CLIMATE CHANGE,THE COAL AUTHORITY,12/11/2014,SUB PUMP STTN MAINTENANCE-OTHR,SUBSIDENCE PUMPING STATIONS,ENERGY&UTILITIES-WATER,DANVM DRAINAGE COMMISSION,0000215871,1081.00
DEPARTMENT OF ENERGY AND CLIMATE CHANGE,THE COAL AUTHORITY,12/11/2014,SUB PUMP STTN MAINTENANCE-OTHR,SUBSIDENCE PUMPING STATIONS,ICT-TELECOMS,DANVM DRAINAGE COMMISSION,0000215871,151.44
DEPARTMENT OF ENERGY AND CLIMATE CHANGE,THE COAL AUTHORITY,12/11/2014,SUB PUMP STTN MAINTENANCE-OTHR,SUBSIDENCE PUMPING STATIONS,ICT-TELECOMS,DANVM DRAINAGE COMMISSION,0000215871,201.01
DEPARTMENT OF ENERGY AND CLIMATE CHANGE,THE COAL AUTHORITY,12/11/2014,SUB PUMP STTN MAINTENANCE-OTHR,SUBSIDENCE PUMPING STATIONS,ICT-TELECOMS,DANVM DRAINAGE COMMISSION,0000215871,201.52
DEPARTMENT OF ENERGY AND CLIMATE CHANGE,THE COAL AUTHORITY,12/11/2014,SUB PUMP STTN MAINTENANCE-OTHR,SUBSIDENCE PUMPING STATIONS,ICT-TELECOMS,DANVM DRAINAGE COMMISSION,0000215871,200.77
DEPARTMENT OF ENERGY AND CLIMATE CHANGE,THE COAL AUTHORITY,12/11/2014,SUB PUMP STTN MAINTENANCE-OTHR,SUBSIDENCE PUMPING STATIONS,ICT-TELECOMS,DANVM DRAINAGE COMMISSION,0000215871,207.04
DEPARTMENT OF ENERGY AND CLIMATE CHANGE,THE COAL AUTHORITY,12/11/2014,SUB PUMP STTN MAINTENANCE-OTHR,SUBSIDENCE PUMPING STATIONS,ICT-TELECOMS,DANVM DRAINAGE COMMISSION,0000215871,200.41
DEPARTMENT OF ENERGY AND CLIMATE CHANGE,THE COAL AUTHORITY,12/11/2014,SUB PUMP STTN MAINTENANCE-OTHR,SUBSIDENCE PUMPING STATIONS,ICT-TELECOMS,DANVM DRAINAGE COMMISSION,0000215871,149.64
DEPARTMENT OF ENERGY AND CLIMATE CHANGE,THE COAL AUTHORITY,12/11/2014,SUB PUMP STTN MAINTENANCE-OTHR,SUBSIDENCE PUMPING STATIONS,ICT-TELECOMS,DANVM DRAINAGE COMMISSION,0000215871,177.27
DEPARTMENT OF ENERGY AND CLIMATE CHANGE,THE COAL AUTHORITY,12/11/2014,SUB PUMP STTN MAINTENANCE-OTHR,SUBSIDENCE PUMPING STATIONS,ICT-TELECOMS,DANVM DRAINAGE COMMISSION,0000215871,199.50
DEPARTMENT OF ENERGY AND CLIMATE CHANGE,THE COAL AUTHORITY,12/11/2014,SUB PUMP STTN MAINTENANCE-OTHR,SUBSIDENCE PUMPING STATIONS,ICT-TELECOMS,DANVM DRAINAGE COMMISSION,0000215871,201.06
DEPARTMENT OF ENERGY AND CLIMATE CHANGE,THE COAL AUTHORITY,12/11/2014,SUB PUMP STTN MAINTENANCE-OTHR,SUBSIDENCE PUMPING STATIONS,ICT-TELECOMS,DANVM DRAINAGE COMMISSION,0000215871,200.31
DEPARTMENT OF ENERGY AND CLIMATE CHANGE,THE COAL AUTHORITY,12/11/2014,SUB PUMP STTN MAINTENANCE-OTHR,SUBSIDENCE PUMPING STATIONS,ICT-TELECOMS,DANVM DRAINAGE COMMISSION,0000215871,201.46
DEPARTMENT OF ENERGY AND CLIMATE CHANGE,THE COAL AUTHORITY,12/11/2014,SUB PUMP STTN MAINTENANCE-OTHR,SUBSIDENCE PUMPING STATIONS,ICT-TELECOMS,DANVM DRAINAGE COMMISSION,0000215871,89.89
DEPARTMENT OF ENERGY AND CLIMATE CHANGE,THE COAL AUTHORITY,12/11/2014,SUB PUMP STTN MAINTENANCE-OTHR,SUBSIDENCE PUMPING STATIONS,ICT-TELECOMS,DANVM DRAINAGE COMMISSION,0000215871,66.70
DEPARTMENT OF ENERGY AND CLIMATE CHANGE,THE COAL AUTHORITY,12/11/2014,SUB PUMP STTN MAINTENANCE-OTHR,SUBSIDENCE PUMPING STATIONS,ICT-TELECOMS,DANVM DRAINAGE COMMISSION,0000215871,205.55
DEPARTMENT OF ENERGY AND CLIMATE CHANGE,THE COAL AUTHORITY,12/11/2014,SUB PUMP STTN MAINTENANCE-OTHR,SUBSIDENCE PUMPING STATIONS,ICT-TELECOMS,DANVM DRAINAGE COMMISSION,0000215871,199.60
DEPARTMENT OF ENERGY AND CLIMATE CHANGE,THE COAL AUTHORITY,12/11/2014,SUB PUMP STTN MAINTENANCE-OTHR,SUBSIDENCE PUMPING STATIONS,ICT-TELECOMS,DANVM DRAINAGE COMMISSION,0000215871,206.55
DEPARTMENT OF ENERGY AND CLIMATE CHANGE,THE COAL AUTHORITY,12/11/2014,SUB PUMP STTN MAINTENANCE-OTHR,SUBSIDENCE PUMPING STATIONS,ICT-TELECOMS,DANVM DRAINAGE COMMISSION,0000215871,200.81
DEPARTMENT OF ENERGY AND CLIMATE CHANGE,THE COAL AUTHORITY,12/11/2014,SUB PUMP STTN MAINTENANCE-OTHR,SUBSIDENCE PUMPING STATIONS,ICT-TELECOMS,DANVM DRAINAGE COMMISSION,0000215871,149.64
DEPARTMENT OF ENERGY AND CLIMATE CHANGE,THE COAL AUTHORITY,12/11/2014,SUB PUMP STTN MAINTENANCE-OTHR,SUBSIDENCE PUMPING STATIONS,ICT-TELECOMS,DANVM DRAINAGE COMMISSION,0000215871,199.50
DEPARTMENT OF ENERGY AND CLIMATE CHANGE,THE COAL AUTHORITY,12/11/2014,SUB PUMP STTN MAINTENANCE-OTHR,SUBSIDENCE PUMPING STATIONS,ICT-TELECOMS,DANVM DRAINAGE COMMISSION,0000215871,102.71
DEPARTMENT OF ENERGY AND CLIMATE CHANGE,THE COAL AUTHORITY,12/11/2014,SUB PUMP STTN MAINTENANCE-OTHR,SUBSIDENCE PUMPING STATIONS,ICT-TELECOMS,DANVM DRAINAGE COMMISSION,0000215871,100.00
DEPARTMENT OF ENERGY AND CLIMATE CHANGE,THE COAL AUTHORITY,12/11/2014,SUB PUMP STTN MAINTENANCE-OTHR,SUBSIDENCE PUMPING STATIONS,ICT-TELECOMS,DANVM DRAINAGE COMMISSION,0000215871,200.40
DEPARTMENT OF ENERGY AND CLIMATE CHANGE,THE COAL AUTHORITY,12/11/2014,SUB PUMP STTN MAINTENANCE-OTHR,SUBSIDENCE PUMPING STATIONS,ICT-TELECOMS,DANVM DRAINAGE COMMISSION,0000215871,199.50
DEPARTMENT OF ENERGY AND CLIMATE CHANGE,THE COAL AUTHORITY,12/11/2014,SUB PUMP STTN MAINTENANCE-OTHR,SUBSIDENCE PUMPING STATIONS,"CONSTRUCTION-BLD,REPR&MAINTNCE",DANVM DRAINAGE COMMISSION,0000215871,3205.00
DEPARTMENT OF ENERGY AND CLIMATE CHANGE,THE COAL AUTHORITY,12/11/2014,SUB PUMP STTN MAINTENANCE-OTHR,SUBSIDENCE PUMPING STATIONS,"CONSTRUCTION-BLD,REPR&MAINTNCE",DANVM DRAINAGE COMMISSION,0000215871,1146.34
DEPARTMENT OF ENERGY AND CLIMATE CHANGE,THE COAL AUTHORITY,12/11/2014,SUB PUMP STTN MAINTENANCE-OTHR,SUBSIDENCE PUMPING STATIONS,"CONSTRUCTION-BLD,REPR&MAINTNCE",DANVM DRAINAGE COMMISSION,0000215871,4781.00
DEPARTMENT OF ENERGY AND CLIMATE CHANGE,THE COAL AUTHORITY,12/11/2014,SUB PUMP STTN MAINTENANCE-OTHR,SUBSIDENCE PUMPING STATIONS,"CONSTRUCTION-BLD,REPR&MAINTNCE",DANVM DRAINAGE COMMISSION,0000215871,2565.75
DEPARTMENT OF ENERGY AND CLIMATE CHANGE,THE COAL AUTHORITY,12/11/2014,SUB PUMP STTN MAINTENANCE-OTHR,SUBSIDENCE PUMPING STATIONS,"CONSTRUCTION-BLD,REPR&MAINTNCE",DANVM DRAINAGE COMMISSION,0000215871,365.00
DEPARTMENT OF ENERGY AND CLIMATE CHANGE,THE COAL AUTHORITY,12/11/2014,SUB PUMP STTN MAINTENANCE-PWER,SUBSIDENCE PUMPING STATIONS,ENERGY&UTILITIES-ELECTRICITY,DANVM DRAINAGE COMMISSION,0000215871,200.72
DEPARTMENT OF ENERGY AND CLIMATE CHANGE,THE COAL AUTHORITY,12/11/2014,SUB PUMP STTN MAINTENANCE-PWER,SUBSIDENCE PUMPING STATIONS,ENERGY&UTILITIES-ELECTRICITY,DANVM DRAINAGE COMMISSION,0000215871,231.32
DEPARTMENT OF ENERGY AND CLIMATE CHANGE,THE COAL AUTHORITY,12/11/2014,SUB PUMP STTN MAINTENANCE-PWER,SUBSIDENCE PUMPING STATIONS,ENERGY&UTILITIES-ELECTRICITY,DANVM DRAINAGE COMMISSION,0000215871,170.53
DEPARTMENT OF ENERGY AND CLIMATE CHANGE,THE COAL AUTHORITY,12/11/2014,SUB PUMP STTN MAINTENANCE-PWER,SUBSIDENCE PUMPING STATIONS,ENERGY&UTILITIES-ELECTRICITY,DANVM DRAINAGE COMMISSION,0000215871,74.94
DEPARTMENT OF ENERGY AND CLIMATE CHANGE,THE COAL AUTHORITY,12/11/2014,SUB PUMP STTN MAINTENANCE-PWER,SUBSIDENCE PUMPING STATIONS,ENERGY&UTILITIES-ELECTRICITY,DANVM DRAINAGE COMMISSION,0000215871,84.77
DEPARTMENT OF ENERGY AND CLIMATE CHANGE,THE COAL AUTHORITY,12/11/2014,SUB PUMP STTN MAINTENANCE-PWER,SUBSIDENCE PUMPING STATIONS,ENERGY&UTILITIES-ELECTRICITY,DANVM DRAINAGE COMMISSION,0000215871,1010.78
DEPARTMENT OF ENERGY AND CLIMATE CHANGE,THE COAL AUTHORITY,12/11/2014,SUB PUMP STTN MAINTENANCE-PWER,SUBSIDENCE PUMPING STATIONS,ENERGY&UTILITIES-ELECTRICITY,DANVM DRAINAGE COMMISSION,0000215871,190.38
DEPARTMENT OF ENERGY AND CLIMATE CHANGE,THE COAL AUTHORITY,12/11/2014,SUB PUMP STTN MAINTENANCE-PWER,SUBSIDENCE PUMPING STATIONS,ENERGY&UTILITIES-ELECTRICITY,DANVM DRAINAGE COMMISSION,0000215871,120.41
DEPARTMENT OF ENERGY AND CLIMATE CHANGE,THE COAL AUTHORITY,12/11/2014,SUB PUMP STTN MAINTENANCE-PWER,SUBSIDENCE PUMPING STATIONS,ENERGY&UTILITIES-ELECTRICITY,DANVM DRAINAGE COMMISSION,0000215871,533.26
DEPARTMENT OF ENERGY AND CLIMATE CHANGE,THE COAL AUTHORITY,12/11/2014,SUB PUMP STTN MAINTENANCE-PWER,SUBSIDENCE PUMPING STATIONS,ENERGY&UTILITIES-ELECTRICITY,DANVM DRAINAGE COMMISSION,0000215871,222.52
DEPARTMENT OF ENERGY AND CLIMATE CHANGE,THE COAL AUTHORITY,12/11/2014,SUB PUMP STTN MAINTENANCE-PWER,SUBSIDENCE PUMPING STATIONS,ENERGY&UTILITIES-ELECTRICITY,DANVM DRAINAGE COMMISSION,0000215871,1931.09
DEPARTMENT OF ENERGY AND CLIMATE CHANGE,THE COAL AUTHORITY,12/11/2014,SUB PUMP STTN MAINTENANCE-PWER,SUBSIDENCE PUMPING STATIONS,ENERGY&UTILITIES-ELECTRICITY,DANVM DRAINAGE COMMISSION,0000215871,563.56
DEPARTMENT OF ENERGY AND CLIMATE CHANGE,THE COAL AUTHORITY,12/11/2014,SUB PUMP STTN MAINTENANCE-OTHR,SUBSIDENCE PUMPING STATIONS,ICT-TELECOMS,DANVM DRAINAGE COMMISSION,0000215872,200.91
DEPARTMENT OF ENERGY AND CLIMATE CHANGE,THE COAL AUTHORITY,12/11/2014,SUB PUMP STTN MAINTENANCE-PWER,SUBSIDENCE PUMPING STATIONS,ENERGY&UTILITIES-ELECTRICITY,DANVM DRAINAGE COMMISSION,0000215872,201.48
DEPARTMENT OF ENERGY AND CLIMATE CHANGE,THE COAL AUTHORITY,12/11/2014,SUB PUMP STTN MAINTENANCE-PWER,SUBSIDENCE PUMPING STATIONS,ENERGY&UTILITIES-ELECTRICITY,DANVM DRAINAGE COMMISSION,0000215873,-879.20
DEPARTMENT OF ENERGY AND CLIMATE CHANGE,THE COAL AUTHORITY,12/11/2014,SUB PUMP STTN MAINTENANCE-OTHR,SUBSIDENCE PUMPING STATIONS,ICT-TELECOMS,DANVM DRAINAGE COMMISSION,0000215874,199.60
DEPARTMENT OF ENERGY AND CLIMATE CHANGE,THE COAL AUTHORITY,12/11/2014,SUB PUMP STTN MAINTENANCE-PWER,SUBSIDENCE PUMPING STATIONS,ENERGY&UTILITIES-ELECTRICITY,DANVM DRAINAGE COMMISSION,0000215874,216.19
DEPARTMENT OF ENERGY AND CLIMATE CHANGE,THE COAL AUTHORITY,12/11/2014,SUB PUMP STTN MAINTENANCE-PWER,SUBSIDENCE PUMPING STATIONS,ENERGY&UTILITIES-ELECTRICITY,DANVM DRAINAGE COMMISSION,0000215875,-883.08
DEPARTMENT OF ENERGY AND CLIMATE CHANGE,THE COAL AUTHORITY,18/11/2014,SUB PUMP STTN MAINTENANCE-OTHR,SUBSIDENCE PUMPING STATIONS,FUELS/LUBRCNT/GAS-FUELS,DANVM DRAINAGE COMMISSION,0000216028,504.29
DEPARTMENT OF ENERGY AND CLIMATE CHANGE,THE COAL AUTHORITY,18/11/2014,SUB PUMP STTN MAINTENANCE-OTHR,SUBSIDENCE PUMPING STATIONS,PROF SER FNCL-CREDIT SERVICES,DANVM DRAINAGE COMMISSION,0000216028,668.96
DEPARTMENT OF ENERGY AND CLIMATE CHANGE,THE COAL AUTHORITY,18/11/2014,SUB PUMP STTN MAINTENANCE-OTHR,SUBSIDENCE PUMPING STATIONS,TRAVEL&EVENTS-VEHICLE HIRE,DANVM DRAINAGE COMMISSION,0000216028,2323.32
DEPARTMENT OF ENERGY AND CLIMATE CHANGE,THE COAL AUTHORITY,18/11/2014,SUB PUMP STTN MAINTENANCE-OTHR,SUBSIDENCE PUMPING STATIONS,VEHICLES-VEHICLE MAINTENANCE,DANVM DRAINAGE COMMISSION,0000216028,176.80
DEPARTMENT OF ENERGY AND CLIMATE CHANGE,THE COAL AUTHORITY,19/11/2014,SUB PUMP STTN MAINTENANCE-OTHR,SUBSIDENCE PUMPING STATIONS,"CONSTRUCTION-BLD,REPR&MAINTNCE",DANVM DRAINAGE COMMISSION,0000216029,300.00
DEPARTMENT OF ENERGY AND CLIMATE CHANGE,THE COAL AUTHORITY,19/11/2014,SUB PUMP STTN MAINTENANCE-OTHR,SUBSIDENCE PUMPING STATIONS,"CONSTRUCTION-BLD,REPR&MAINTNCE",DANVM DRAINAGE COMMISSION,0000216030,1716.00
DEPARTMENT OF ENERGY AND CLIMATE CHANGE,THE COAL AUTHORITY,19/11/2014,SUB PUMP STTN MAINTENANCE-OTHR,SUBSIDENCE PUMPING STATIONS,"CONSTRUCTION-BLD,REPR&MAINTNCE",DANVM DRAINAGE COMMISSION,0000216030,442.00
DEPARTMENT OF ENERGY AND CLIMATE CHANGE,THE COAL AUTHORITY,19/11/2014,SUB PUMP STTN MAINTENANCE-OTHR,SUBSIDENCE PUMPING STATIONS,"CONSTRUCTION-BLD,REPR&MAINTNCE",DANVM DRAINAGE COMMISSION,0000216030,442.00
DEPARTMENT OF ENERGY AND CLIMATE CHANGE,THE COAL AUTHORITY,19/11/2014,SUB PUMP STTN MAINTENANCE-OTHR,SUBSIDENCE PUMPING STATIONS,"CONSTRUCTION-BLD,REPR&MAINTNCE",DANVM DRAINAGE COMMISSION,0000216030,442.00
DEPARTMENT OF ENERGY AND CLIMATE CHANGE,THE COAL AUTHORITY,19/11/2014,SUB PUMP STTN MAINTENANCE-OTHR,SUBSIDENCE PUMPING STATIONS,"CONSTRUCTION-BLD,REPR&MAINTNCE",DANVM DRAINAGE COMMISSION,0000216030,442.00
DEPARTMENT OF ENERGY AND CLIMATE CHANGE,THE COAL AUTHORITY,19/11/2014,SUB PUMP STTN MAINTENANCE-OTHR,SUBSIDENCE PUMPING STATIONS,"CONSTRUCTION-BLD,REPR&MAINTNCE",DANVM DRAINAGE COMMISSION,0000216030,442.00
DEPARTMENT OF ENERGY AND CLIMATE CHANGE,THE COAL AUTHORITY,19/11/2014,SUB PUMP STTN MAINTENANCE-OTHR,SUBSIDENCE PUMPING STATIONS,"CONSTRUCTION-BLD,REPR&MAINTNCE",DANVM DRAINAGE COMMISSION,0000216030,780.00
DEPARTMENT OF ENERGY AND CLIMATE CHANGE,THE COAL AUTHORITY,19/11/2014,SUB PUMP STTN MAINTENANCE-OTHR,SUBSIDENCE PUMPING STATIONS,"CONSTRUCTION-BLD,REPR&MAINTNCE",DANVM DRAINAGE COMMISSION,0000216030,442.00
DEPARTMENT OF ENERGY AND CLIMATE CHANGE,THE COAL AUTHORITY,19/11/2014,SUB PUMP STTN MAINTENANCE-OTHR,SUBSIDENCE PUMPING STATIONS,"CONSTRUCTION-BLD,REPR&MAINTNCE",DANVM DRAINAGE COMMISSION,0000216030,442.00
DEPARTMENT OF ENERGY AND CLIMATE CHANGE,THE COAL AUTHORITY,18/11/2014,SUB PUMP STTN MAINTENANCE-OTHR,SUBSIDENCE PUMPING STATIONS,PROF SER TMP STFF-TEMP WRKERS,DANVM DRAINAGE COMMISSION,0000216031,12706.20
DEPARTMENT OF ENERGY AND CLIMATE CHANGE,THE COAL AUTHORITY,27/11/2014,SUB PUMP STTN MAINTENANCE-OTHR,SUBSIDENCE PUMPING STATIONS,"CONSTRUCTION-BLD,REPR&MAINTNCE",DONCASTER EAST I D B,0000216032,1279.00
DEPARTMENT OF ENERGY AND CLIMATE CHANGE,THE COAL AUTHORITY,03/12/2014,SUB PUMP STTN MAINTENANCE-OTHR,SUBSIDENCE PUMPING STATIONS,CONSTRUCTION-MAIN CONTRACTORS,INTEGRATED WATER SERVICES,0000216117,365.01
DEPARTMENT OF ENERGY AND CLIMATE CHANGE,THE COAL AUTHORITY,03/12/2014,CURR YR ADDNS SUBS PMPNG STNS,SUBSIDENCE PUMPING STATIONS,CONSTRUCTION-MAIN CONTRACTORS,INTEGRATED WATER SERVICES,0000216121,5575.66
DEPARTMENT OF ENERGY AND CLIMATE CHANGE,THE COAL AUTHORITY,03/12/2014,CURR YR ADDNS SUBS PMPNG STNS,SUBSIDENCE PUMPING STATIONS,CONSTRUCTION-MAIN CONTRACTORS,INTEGRATED WATER SERVICES,0000216121,15804.27
DEPARTMENT OF ENERGY AND CLIMATE CHANGE,THE COAL AUTHORITY,03/12/2014,CURR YR ADDNS SUBS PMPNG STNS,SUBSIDENCE PUMPING STATIONS,CONSTRUCTION-MAIN CONTRACTORS,INTEGRATED WATER SERVICES,0000216121,13664.99
DEPARTMENT OF ENERGY AND CLIMATE CHANGE,THE COAL AUTHORITY,03/12/2014,CURR YR ADDNS SUBS PMPNG STNS,SUBSIDENCE PUMPING STATIONS,CONSTRUCTION-MAIN CONTRACTORS,INTEGRATED WATER SERVICES,0000216121,10400.62
DEPARTMENT OF ENERGY AND CLIMATE CHANGE,THE COAL AUTHORITY,02/12/2014,SUB PUMP STTN MAINTENANCE-OTHR,SUBSIDENCE PUMPING STATIONS,PSPES NOT APPLICABLE,JEREMY BENN ASSOCIATES LT,0000216159,996.95
DEPARTMENT OF ENERGY AND CLIMATE CHANGE,THE COAL AUTHORITY,05/12/2014,SUB PUMP STTN MAINTENANCE-PWER,SUBSIDENCE PUMPING STATIONS,ENERGY&UTILITIES-ELECTRICITY,EDF ENERGY,0000216275,1855.89
DEPARTMENT OF ENERGY AND CLIMATE CHANGE,THE COAL AUTHORITY,05/12/2014,SUB PUMP STTN MAINTENANCE-PWER,SUBSIDENCE PUMPING STATIONS,ENERGY&UTILITIES-ELECTRICITY,EDF ENERGY,0000216275,983.39
DEPARTMENT OF ENERGY AND CLIMATE CHANGE,THE COAL AUTHORITY,05/12/2014,SUB PUMP STTN MAINTENANCE-PWER,SUBSIDENCE PUMPING STATIONS,ENERGY&UTILITIES-ELECTRICITY,EDF ENERGY,0000216275,512.64
DEPARTMENT OF ENERGY AND CLIMATE CHANGE,THE COAL AUTHORITY,05/12/2014,SUB PUMP STTN MAINTENANCE-PWER,SUBSIDENCE PUMPING STATIONS,ENERGY&UTILITIES-ELECTRICITY,EDF ENERGY,0000216275,1194.14
DEPARTMENT OF ENERGY AND CLIMATE CHANGE,THE COAL AUTHORITY,12/12/2014,CURR YR ADDNS SUBS PMPNG STNS,SUBSIDENCE PUMPING STATIONS,CONSTRUCTION-MAIN CONTRACTORS,INTEGRATED WATER SERVICES,0000216397,16995.26
DEPARTMENT OF ENERGY AND CLIMATE CHANGE,THE COAL AUTHORITY,12/12/2014,CURR YR ADDNS SUBS PMPNG STNS,SUBSIDENCE PUMPING STATIONS,CONSTRUCTION-MAIN CONTRACTORS,INTEGRATED WATER SERVICES,0000216397,1779.97
DEPARTMENT OF ENERGY AND CLIMATE CHANGE,THE COAL AUTHORITY,12/12/2014,CURR YR ADDNS SUBS PMPNG STNS,SUBSIDENCE PUMPING STATIONS,CONSTRUCTION-MAIN CONTRACTORS,INTEGRATED WATER SERVICES,0000216397,19436.81
DEPARTMENT OF ENERGY AND CLIMATE CHANGE,THE COAL AUTHORITY,11/12/2014,SUB PUMP STTN MAINTENANCE-PWER,SUBSIDENCE PUMPING STATIONS,ENERGY&UTILITIES-ELECTRICITY,BRITISH GAS BUSINESS,0000216407,33.14
DEPARTMENT OF ENERGY AND CLIMATE CHANGE,THE COAL AUTHORITY,11/12/2014,SUB PUMP STTN MAINTENANCE-PWER,SUBSIDENCE PUMPING STATIONS,ENERGY&UTILITIES-ELECTRICITY,BRITISH GAS BUSINESS,0000216407,32.26
DEPARTMENT OF ENERGY AND CLIMATE CHANGE,THE COAL AUTHORITY,11/12/2014,SUB PUMP STTN MAINTENANCE-PWER,SUBSIDENCE PUMPING STATIONS,ENERGY&UTILITIES-ELECTRICITY,BRITISH GAS BUSINESS,0000216407,67.39
DEPARTMENT OF ENERGY AND CLIMATE CHANGE,THE COAL AUTHORITY,11/12/2014,SUB PUMP STTN MAINTENANCE-PWER,SUBSIDENCE PUMPING STATIONS,ENERGY&UTILITIES-ELECTRICITY,BRITISH GAS BUSINESS,0000216407,14.03
DEPARTMENT OF ENERGY AND CLIMATE CHANGE,THE COAL AUTHORITY,11/12/2014,SUB PUMP STTN MAINTENANCE-PWER,SUBSIDENCE PUMPING STATIONS,ENERGY&UTILITIES-ELECTRICITY,BRITISH GAS BUSINESS,0000216432,213.39
DEPARTMENT OF ENERGY AND CLIMATE CHANGE,THE COAL AUTHORITY,11/12/2014,SUB PUMP STTN MAINTENANCE-PWER,SUBSIDENCE PUMPING STATIONS,ENERGY&UTILITIES-ELECTRICITY,BRITISH GAS BUSINESS,0000216432,11.73
DEPARTMENT OF ENERGY AND CLIMATE CHANGE,THE COAL AUTHORITY,11/12/2014,SUB PUMP STTN MAINTENANCE-PWER,SUBSIDENCE PUMPING STATIONS,ENERGY&UTILITIES-ELECTRICITY,BRITISH GAS BUSINESS,0000216432,52.25
DEPARTMENT OF ENERGY AND CLIMATE CHANGE,THE COAL AUTHORITY,11/12/2014,SUB PUMP STTN MAINTENANCE-PWER,SUBSIDENCE PUMPING STATIONS,ENERGY&UTILITIES-ELECTRICITY,BRITISH GAS BUSINESS,0000216432,165.89
DEPARTMENT OF ENERGY AND CLIMATE CHANGE,THE COAL AUTHORITY,11/12/2014,SUB PUMP STTN MAINTENANCE-PWER,SUBSIDENCE PUMPING STATIONS,ENERGY&UTILITIES-ELECTRICITY,BRITISH GAS BUSINESS,0000216432,286.45
DEPARTMENT OF ENERGY AND CLIMATE CHANGE,THE COAL AUTHORITY,11/12/2014,SUB PUMP STTN MAINTENANCE-PWER,SUBSIDENCE PUMPING STATIONS,ENERGY&UTILITIES-ELECTRICITY,BRITISH GAS BUSINESS,0000216432,61.50
DEPARTMENT OF ENERGY AND CLIMATE CHANGE,THE COAL AUTHORITY,11/12/2014,SUB PUMP STTN MAINTENANCE-PWER,SUBSIDENCE PUMPING STATIONS,ENERGY&UTILITIES-ELECTRICITY,BRITISH GAS BUSINESS,0000216432,43.76
DEPARTMENT OF ENERGY AND CLIMATE CHANGE,THE COAL AUTHORITY,11/12/2014,SUB PUMP STTN MAINTENANCE-PWER,SUBSIDENCE PUMPING STATIONS,ENERGY&UTILITIES-ELECTRICITY,BRITISH GAS BUSINESS,0000216432,131.16
DEPARTMENT OF ENERGY AND CLIMATE CHANGE,THE COAL AUTHORITY,11/12/2014,SUB PUMP STTN MAINTENANCE-PWER,SUBSIDENCE PUMPING STATIONS,ENERGY&UTILITIES-ELECTRICITY,BRITISH GAS BUSINESS,0000216432,31.93
DEPARTMENT OF ENERGY AND CLIMATE CHANGE,THE COAL AUTHORITY,11/12/2014,SUB PUMP STTN MAINTENANCE-PWER,SUBSIDENCE PUMPING STATIONS,ENERGY&UTILITIES-ELECTRICITY,BRITISH GAS BUSINESS,0000216432,157.66
DEPARTMENT OF ENERGY AND CLIMATE CHANGE,THE COAL AUTHORITY,11/12/2014,SUB PUMP STTN MAINTENANCE-PWER,SUBSIDENCE PUMPING STATIONS,ENERGY&UTILITIES-ELECTRICITY,BRITISH GAS BUSINESS,0000216432,1336.43
DEPARTMENT OF ENERGY AND CLIMATE CHANGE,THE COAL AUTHORITY,11/12/2014,SUB PUMP STTN MAINTENANCE-PWER,SUBSIDENCE PUMPING STATIONS,ENERGY&UTILITIES-ELECTRICITY,BRITISH GAS BUSINESS,0000216433,-146.40
DEPARTMENT OF ENERGY AND CLIMATE CHANGE,THE COAL AUTHORITY,25/09/2014,R&D-EXTERNAL COSTS,SURFACE HAZARDS,PROF SER CNSLTNCY-MRKTNG&CMTN,WYG ENV PLANNING TRANSPOR,0000214402,1262.00
DEPARTMENT OF ENERGY AND CLIMATE CHANGE,THE COAL AUTHORITY,21/11/2014,R&D-EXTERNAL COSTS,SURFACE HAZARDS,CONSTRUCTION-MAIN CONTRACTORS,ALLIANCE CONSTRUCTION SOL,0000215823,8655.16
DEPARTMENT OF ENERGY AND CLIMATE CHANGE,THE COAL AUTHORITY,20/11/2014,CHILDCARE VOUCHERS,SURFACE HAZARDS,PERSONNEL RLTD-STAFF CHILDCARE,FIDELITI LIMITED,0000215838,10.00
DEPARTMENT OF ENERGY AND CLIMATE CHANGE,THE COAL AUTHORITY,20/11/2014,CHILDCARE VOUCHERS,SURFACE HAZARDS,PERSONNEL RLTD-STAFF CHILDCARE,FIDELITI LIMITED,0000215838,50.00
DEPARTMENT OF ENERGY AND CLIMATE CHANGE,THE COAL AUTHORITY,20/11/2014,CHILDCARE VOUCHERS,SURFACE HAZARDS,PERSONNEL RLTD-STAFF CHILDCARE,FIDELITI LIMITED,0000215838,303.00
DEPARTMENT OF ENERGY AND CLIMATE CHANGE,THE COAL AUTHORITY,21/11/2014,CHILDCARE VOUCHERS,SURFACE HAZARDS,PERSONNEL RLTD-STAFF CHILDCARE,FIDELITI LIMITED,0000215839,-243.00
DEPARTMENT OF ENERGY AND CLIMATE CHANGE,THE COAL AUTHORITY,14/11/2014,CONTRACTORS AND CLAIM COSTS,SURFACE HAZARDS,CONSTRUCTION-MAIN CONTRACTORS,ONSITE CENTRAL LIMITED,0000215863,1950.00
DEPARTMENT OF ENERGY AND CLIMATE CHANGE,THE COAL AUTHORITY,26/11/2014,IT-APPLICATIONS MANAGEMENT,SURFACE HAZARDS,ICT-SYSTEMS DELIVERY,SCISYS UK LTD,0000215901,9588.05
DEPARTMENT OF ENERGY AND CLIMATE CHANGE,THE COAL AUTHORITY,25/11/2014,CONTRACTORS AND CLAIM COSTS,SURFACE HAZARDS,CONSTRUCTION-MAIN CONTRACTORS,BALFOUR BEATTY CIVIL ENG,0000215922,2137.50
DEPARTMENT OF ENERGY AND CLIMATE CHANGE,THE COAL AUTHORITY,25/11/2014,CONTRACTORS AND CLAIM COSTS,SURFACE HAZARDS,CONSTRUCTION-MAIN CONTRACTORS,BALFOUR BEATTY CIVIL ENG,0000215924,1639.01
DEPARTMENT OF ENERGY AND CLIMATE CHANGE,THE COAL AUTHORITY,25/11/2014,CONTRACTORS AND CLAIM COSTS,SURFACE HAZARDS,CONSTRUCTION-MAIN CONTRACTORS,BALFOUR BEATTY CIVIL ENG,0000215925,265.47
DEPARTMENT OF ENERGY AND CLIMATE CHANGE,THE COAL AUTHORITY,25/11/2014,CONTRACTORS AND CLAIM COSTS,SURFACE HAZARDS,CONSTRUCTION-MAIN CONTRACTORS,BALFOUR BEATTY CIVIL ENG,0000215926,424.23
DEPARTMENT OF ENERGY AND CLIMATE CHANGE,THE COAL AUTHORITY,28/11/2014,CONTRACTORS AND CLAIM COSTS,SURFACE HAZARDS,CONSTRUCTION-MAIN CONTRACTORS,ALLIANCE CONSTRUCTION SOL,0000215931,1113.76
DEPARTMENT OF ENERGY AND CLIMATE CHANGE,THE COAL AUTHORITY,28/11/2014,CONTRACTORS AND CLAIM COSTS,SURFACE HAZARDS,CONSTRUCTION-MAIN CONTRACTORS,ALLIANCE CONSTRUCTION SOL,0000215932,6682.07
DEPARTMENT OF ENERGY AND CLIMATE CHANGE,THE COAL AUTHORITY,26/11/2014,CURR YR ADD-INTNGBLE INFO TECH,SURFACE HAZARDS,ICT-SYSTEMS DELIVERY,SCISYS UK LTD,0000215936,12642.90
DEPARTMENT OF ENERGY AND CLIMATE CHANGE,THE COAL AUTHORITY,23/11/2014,PAYMENTS TO AGENCIES FOR TEMPS,SURFACE HAZARDS,PROF SER TMP STFF-SPCLST CNTRT,VENTURE FINANCE PLC,0000215945,1098.37
DEPARTMENT OF ENERGY AND CLIMATE CHANGE,THE COAL AUTHORITY,28/11/2014,CONTRACTORS AND CLAIM COSTS,SURFACE HAZARDS,CONSTRUCTION-CNSTRN SER PROVDR,CORNERSTONE  PROJECTS LTD,0000215969,148.00
DEPARTMENT OF ENERGY AND CLIMATE CHANGE,THE COAL AUTHORITY,28/11/2014,CONTRACTORS AND CLAIM COSTS,SURFACE HAZARDS,CONSTRUCTION-CNSTRN SER PROVDR,CORNERSTONE  PROJECTS LTD,0000215970,58.00
DEPARTMENT OF ENERGY AND CLIMATE CHANGE,THE COAL AUTHORITY,28/11/2014,CONTRACTORS AND CLAIM COSTS,SURFACE HAZARDS,CONSTRUCTION-CNSTRN SER PROVDR,CORNERSTONE  PROJECTS LTD,0000215971,143.00
DEPARTMENT OF ENERGY AND CLIMATE CHANGE,THE COAL AUTHORITY,28/11/2014,CONTRACTORS AND CLAIM COSTS,SURFACE HAZARDS,CONSTRUCTION-CNSTRN SER PROVDR,CORNERSTONE  PROJECTS LTD,0000215972,125.02
DEPARTMENT OF ENERGY AND CLIMATE CHANGE,THE COAL AUTHORITY,28/11/2014,CONTRACTORS AND CLAIM COSTS,SURFACE HAZARDS,CONSTRUCTION-CNSTRN SER PROVDR,CORNERSTONE  PROJECTS LTD,0000215973,271.42
DEPARTMENT OF ENERGY AND CLIMATE CHANGE,THE COAL AUTHORITY,28/11/2014,CONTRACTORS AND CLAIM COSTS,SURFACE HAZARDS,CONSTRUCTION-CNSTRN SER PROVDR,CORNERSTONE  PROJECTS LTD,0000215974,143.00
DEPARTMENT OF ENERGY AND CLIMATE CHANGE,THE COAL AUTHORITY,28/11/2014,CONTRACTORS AND CLAIM COSTS,SURFACE HAZARDS,CONSTRUCTION-CNSTRN SER PROVDR,CORNERSTONE  PROJECTS LTD,0000215976,143.00
DEPARTMENT OF ENERGY AND CLIMATE CHANGE,THE COAL AUTHORITY,28/11/2014,CONTRACTORS AND CLAIM COSTS,SURFACE HAZARDS,CONSTRUCTION-CNSTRN SER PROVDR,CORNERSTONE  PROJECTS LTD,0000215977,148.00
DEPARTMENT OF ENERGY AND CLIMATE CHANGE,THE COAL AUTHORITY,28/11/2014,CONTRACTORS AND CLAIM COSTS,SURFACE HAZARDS,CONSTRUCTION-CNSTRN SER PROVDR,CORNERSTONE  PROJECTS LTD,0000215978,148.00
DEPARTMENT OF ENERGY AND CLIMATE CHANGE,THE COAL AUTHORITY,24/11/2014,CONTRACTORS AND CLAIM COSTS,SURFACE HAZARDS,CONSTRUCTION-MAIN CONTRACTORS,NAL PLANT LIMITED,0000216006,676.21
DEPARTMENT OF ENERGY AND CLIMATE CHANGE,THE COAL AUTHORITY,01/12/2014,OUTSOURCED MANAGEMENT-PS&S,SURFACE HAZARDS,SOCIAL CARE-EMERGENCY SERVICES,MINES RESCUE SERVICE LIMI,0000216022,17500.00
DEPARTMENT OF ENERGY AND CLIMATE CHANGE,THE COAL AUTHORITY,28/11/2014,R&D-EXTERNAL COSTS,SURFACE HAZARDS,PROF SER CNSLTNCY-TCHNL CNSLTY,OPUS INT CONSULTANTS (UK),0000216034,1700.00
DEPARTMENT OF ENERGY AND CLIMATE CHANGE,THE COAL AUTHORITY,06/11/2014,CAR HIRE,SURFACE HAZARDS,TRAVEL&EVENTS-VEHICLE HIRE,ENTERPRISE RENT A CAR,0000216039,41.98
DEPARTMENT OF ENERGY AND CLIMATE CHANGE,THE COAL AUTHORITY,01/11/2014,CAR HIRE,SURFACE HAZARDS,TRAVEL&EVENTS-VEHICLE HIRE,ENTERPRISE RENT A CAR,0000216041,106.20
DEPARTMENT OF ENERGY AND CLIMATE CHANGE,THE COAL AUTHORITY,04/11/2014,CAR HIRE,SURFACE HAZARDS,TRAVEL&EVENTS-VEHICLE HIRE,ENTERPRISE RENT A CAR,0000216043,46.00
DEPARTMENT OF ENERGY AND CLIMATE CHANGE,THE COAL AUTHORITY,15/11/2014,CAR HIRE,SURFACE HAZARDS,TRAVEL&EVENTS-VEHICLE HIRE,ENTERPRISE RENT A CAR,0000216046,95.96
DEPARTMENT OF ENERGY AND CLIMATE CHANGE,THE COAL AUTHORITY,30/11/2014,R&D-EXTERNAL COSTS,SURFACE HAZARDS,PROF SER CNSLTNCY-PROP/CNSTRCN,JMC ENGINEERING (UK) LTD,0000216061,2022.00
DEPARTMENT OF ENERGY AND CLIMATE CHANGE,THE COAL AUTHORITY,28/11/2014,CONTRACTORS AND CLAIM COSTS,SURFACE HAZARDS,CONSTRUCTION-MAIN CONTRACTORS,BALFOUR BEATTY CIVIL ENG,0000216092,457.12
DEPARTMENT OF ENERGY AND CLIMATE CHANGE,THE COAL AUTHORITY,28/11/2014,CONTRACTORS AND CLAIM COSTS,SURFACE HAZARDS,CONSTRUCTION-MAIN CONTRACTORS,BALFOUR BEATTY CIVIL ENG,0000216093,384.54
DEPARTMENT OF ENERGY AND CLIMATE CHANGE,THE COAL AUTHORITY,20/11/2014,CONTRACTORS AND CLAIM COSTS,SURFACE HAZARDS,CONSTRUCTION-MAIN CONTRACTORS,BALFOUR BEATTY CIVIL ENG,0000216094,4245.78
DEPARTMENT OF ENERGY AND CLIMATE CHANGE,THE COAL AUTHORITY,03/12/2014,CONTRACTORS AND CLAIM COSTS,SURFACE HAZARDS,PROF SER-ENVIRONMENTAL SRVICES,PAYMENT FOR GARDEN MAINTE,0000216096,50.00
DEPARTMENT OF ENERGY AND CLIMATE CHANGE,THE COAL AUTHORITY,03/12/2014,FUEL (VEHICLE),SURFACE HAZARDS,FUELS/LUBRCNT/GAS-FUELS,ALLSTAR BUSINESS SOLUTION,0000216138,61.21
DEPARTMENT OF ENERGY AND CLIMATE CHANGE,THE COAL AUTHORITY,03/12/2014,FUEL (VEHICLE),SURFACE HAZARDS,FUELS/LUBRCNT/GAS-FUELS,ALLSTAR BUSINESS SOLUTION,0000216139,62.28
DEPARTMENT OF ENERGY AND CLIMATE CHANGE,THE COAL AUTHORITY,03/12/2014,FUEL (VEHICLE),SURFACE HAZARDS,FUELS/LUBRCNT/GAS-FUELS,ALLSTAR BUSINESS SOLUTION,0000216140,141.88
DEPARTMENT OF ENERGY AND CLIMATE CHANGE,THE COAL AUTHORITY,03/12/2014,FUEL (VEHICLE),SURFACE HAZARDS,FUELS/LUBRCNT/GAS-FUELS,ALLSTAR BUSINESS SOLUTION,0000216141,80.28
DEPARTMENT OF ENERGY AND CLIMATE CHANGE,THE COAL AUTHORITY,03/12/2014,FUEL (VEHICLE),SURFACE HAZARDS,FUELS/LUBRCNT/GAS-FUELS,ALLSTAR BUSINESS SOLUTION,0000216142,94.65
DEPARTMENT OF ENERGY AND CLIMATE CHANGE,THE COAL AUTHORITY,03/12/2014,FUEL (VEHICLE),SURFACE HAZARDS,FUELS/LUBRCNT/GAS-FUELS,ALLSTAR BUSINESS SOLUTION,0000216143,77.75
DEPARTMENT OF ENERGY AND CLIMATE CHANGE,THE COAL AUTHORITY,03/12/2014,FUEL (VEHICLE),SURFACE HAZARDS,FUELS/LUBRCNT/GAS-FUELS,ALLSTAR BUSINESS SOLUTION,0000216144,72.35
DEPARTMENT OF ENERGY AND CLIMATE CHANGE,THE COAL AUTHORITY,04/12/2014,CONTRACTORS AND CLAIM COSTS,SURFACE HAZARDS,CONSTRUCTION-MAIN CONTRACTORS,LLETTYSHENKIN CONS CO LTD,0000216145,1054.25
DEPARTMENT OF ENERGY AND CLIMATE CHANGE,THE COAL AUTHORITY,04/12/2014,CONTRACTORS AND CLAIM COSTS,SURFACE HAZARDS,CONSTRUCTION-MAIN CONTRACTORS,LLETTYSHENKIN CONS CO LTD,0000216146,285.00
DEPARTMENT OF ENERGY AND CLIMATE CHANGE,THE COAL AUTHORITY,04/12/2014,CONTRACTORS AND CLAIM COSTS,SURFACE HAZARDS,CONSTRUCTION-MAIN CONTRACTORS,LLETTYSHENKIN CONS CO LTD,0000216147,397.50
DEPARTMENT OF ENERGY AND CLIMATE CHANGE,THE COAL AUTHORITY,04/12/2014,CONTRACTORS AND CLAIM COSTS,SURFACE HAZARDS,CONSTRUCTION-MAIN CONTRACTORS,LLETTYSHENKIN CONS CO LTD,0000216148,690.00
DEPARTMENT OF ENERGY AND CLIMATE CHANGE,THE COAL AUTHORITY,02/12/2014,CONTRACTORS AND CLAIM COSTS,SURFACE HAZARDS,PROF SER-OPERATIONAL SERVICES,DERBYSHIRE COUNTY COUNCIL,0000216152,751.58
DEPARTMENT OF ENERGY AND CLIMATE CHANGE,THE COAL AUTHORITY,04/12/2014,CONTRACTORS AND CLAIM COSTS,SURFACE HAZARDS,CONSTRUCTION-MAIN CONTRACTORS,ALLIANCE CONSTRUCTION SOL,0000216154,1800.99
DEPARTMENT OF ENERGY AND CLIMATE CHANGE,THE COAL AUTHORITY,30/11/2014,PAYMENTS TO AGENCIES FOR TEMPS,SURFACE HAZARDS,PROF SER TMP STFF-SPCLST CNTRT,VENTURE FINANCE PLC,0000216160,1067.43
DEPARTMENT OF ENERGY AND CLIMATE CHANGE,THE COAL AUTHORITY,05/12/2014,FARES - RAIL,SURFACE HAZARDS,TRAVEL&EVENTS-RAIL,STAFF EXPENSES CONTROL,0000216174,6.80
DEPARTMENT OF ENERGY AND CLIMATE CHANGE,THE COAL AUTHORITY,05/12/2014,INCIDENTALS,SURFACE HAZARDS,VEHICLES-FLEET MANAGEMENT,STAFF EXPENSES CONTROL,0000216175,5.00
DEPARTMENT OF ENERGY AND CLIMATE CHANGE,THE COAL AUTHORITY,05/12/2014,INCIDENTALS,SURFACE HAZARDS,VEHICLES-FLEET MANAGEMENT,STAFF EXPENSES CONTROL,0000216176,1.00
DEPARTMENT OF ENERGY AND CLIMATE CHANGE,THE COAL AUTHORITY,05/12/2014,MILEAGE PAYMENTS,SURFACE HAZARDS,FUELS/LUBRCNT/GAS-FUELS,STAFF EXPENSES CONTROL,0000216178,67.50
DEPARTMENT OF ENERGY AND CLIMATE CHANGE,THE COAL AUTHORITY,05/12/2014,SUBSISTENCE ALLOWANCES,SURFACE HAZARDS,FACILITIES - FOOD,STAFF EXPENSES CONTROL,0000216178,27.27
DEPARTMENT OF ENERGY AND CLIMATE CHANGE,THE COAL AUTHORITY,05/12/2014,MILEAGE PAYMENTS,SURFACE HAZARDS,FUELS/LUBRCNT/GAS-FUELS,STAFF EXPENSES CONTROL,0000216181,71.23
DEPARTMENT OF ENERGY AND CLIMATE CHANGE,THE COAL AUTHORITY,05/12/2014,CONTRACTORS AND CLAIM COSTS,SURFACE HAZARDS,CONSTRUCTION-MAIN CONTRACTORS,DIVERSION OF SEWER 4 THIR,0000216185,7869.56
DEPARTMENT OF ENERGY AND CLIMATE CHANGE,THE COAL AUTHORITY,01/12/2014,MEMBERSHIP SUBSCRIPTIONS,SURFACE HAZARDS,PERSONNEL RLTD-STAFF SUBSCRPTN,BSI,0000216189,578.00
DEPARTMENT OF ENERGY AND CLIMATE CHANGE,THE COAL AUTHORITY,05/12/2014,CONTRACTORS AND CLAIM COSTS,SURFACE HAZARDS,CONSTRUCTION-MAIN CONTRACTORS,LLETTYSHENKIN CONS CO LTD,0000216196,1478.50
DEPARTMENT OF ENERGY AND CLIMATE CHANGE,THE COAL AUTHORITY,08/12/2014,MILEAGE PAYMENTS,SURFACE HAZARDS,FUELS/LUBRCNT/GAS-FUELS,STAFF EXPENSES CONTROL,0000216202,8.00
DEPARTMENT OF ENERGY AND CLIMATE CHANGE,THE COAL AUTHORITY,04/12/2014,CONTRACTORS AND CLAIM COSTS,SURFACE HAZARDS,CONSTRUCTION-MAIN CONTRACTORS,JIM DAVIES CIVIL ENGINEER,0000216214,262.80
DEPARTMENT OF ENERGY AND CLIMATE CHANGE,THE COAL AUTHORITY,04/12/2014,CONTRACTORS AND CLAIM COSTS,SURFACE HAZARDS,CONSTRUCTION-MAIN CONTRACTORS,JIM DAVIES CIVIL ENGINEER,0000216215,259.65
DEPARTMENT OF ENERGY AND CLIMATE CHANGE,THE COAL AUTHORITY,04/12/2014,CONTRACTORS AND CLAIM COSTS,SURFACE HAZARDS,CONSTRUCTION-MAIN CONTRACTORS,JIM DAVIES CIVIL ENGINEER,0000216217,281.70
DEPARTMENT OF ENERGY AND CLIMATE CHANGE,THE COAL AUTHORITY,04/12/2014,CONTRACTORS AND CLAIM COSTS,SURFACE HAZARDS,CONSTRUCTION-MAIN CONTRACTORS,JIM DAVIES CIVIL ENGINEER,0000216218,274.50
DEPARTMENT OF ENERGY AND CLIMATE CHANGE,THE COAL AUTHORITY,04/12/2014,CONTRACTORS AND CLAIM COSTS,SURFACE HAZARDS,CONSTRUCTION-MAIN CONTRACTORS,JIM DAVIES CIVIL ENGINEER,0000216219,328.50
DEPARTMENT OF ENERGY AND CLIMATE CHANGE,THE COAL AUTHORITY,04/12/2014,CONTRACTORS AND CLAIM COSTS,SURFACE HAZARDS,CONSTRUCTION-MAIN CONTRACTORS,JIM DAVIES CIVIL ENGINEER,0000216220,698.10
DEPARTMENT OF ENERGY AND CLIMATE CHANGE,THE COAL AUTHORITY,30/11/2014,FARES - RAIL,SURFACE HAZARDS,TRAVEL&EVENTS-RAIL,REDFERN TRAVEL LTD,0000216227,130.66
DEPARTMENT OF ENERGY AND CLIMATE CHANGE,THE COAL AUTHORITY,30/11/2014,HOTEL ACCOMMODATION,SURFACE HAZARDS,TRAVEL&EVENTS-HOTELS,REDFERN TRAVEL LTD,0000216228,2142.66
DEPARTMENT OF ENERGY AND CLIMATE CHANGE,THE COAL AUTHORITY,09/12/2014,CONTRACTORS AND CLAIM COSTS,SURFACE HAZARDS,CONSTRUCTION-MAIN CONTRACTORS,ALLIANCE CONSTRUCTION SOL,0000216229,337.50
DEPARTMENT OF ENERGY AND CLIMATE CHANGE,THE COAL AUTHORITY,09/12/2014,CONTRACTORS AND CLAIM COSTS,SURFACE HAZARDS,CONSTRUCTION-MAIN CONTRACTORS,ALLIANCE CONSTRUCTION SOL,0000216230,70.70
DEPARTMENT OF ENERGY AND CLIMATE CHANGE,THE COAL AUTHORITY,09/12/2014,CONTRACTORS AND CLAIM COSTS,SURFACE HAZARDS,CONSTRUCTION-MAIN CONTRACTORS,ALLIANCE CONSTRUCTION SOL,0000216231,130.00
DEPARTMENT OF ENERGY AND CLIMATE CHANGE,THE COAL AUTHORITY,09/12/2014,CONTRACTORS AND CLAIM COSTS,SURFACE HAZARDS,CONSTRUCTION-MAIN CONTRACTORS,ALLIANCE CONSTRUCTION SOL,0000216232,15.00
DEPARTMENT OF ENERGY AND CLIMATE CHANGE,THE COAL AUTHORITY,09/12/2014,CONTRACTORS AND CLAIM COSTS,SURFACE HAZARDS,CONSTRUCTION-MAIN CONTRACTORS,ALLIANCE CONSTRUCTION SOL,0000216233,215.50
DEPARTMENT OF ENERGY AND CLIMATE CHANGE,THE COAL AUTHORITY,09/12/2014,CONTRACTORS AND CLAIM COSTS,SURFACE HAZARDS,CONSTRUCTION-MAIN CONTRACTORS,ALLIANCE CONSTRUCTION SOL,0000216234,215.00
DEPARTMENT OF ENERGY AND CLIMATE CHANGE,THE COAL AUTHORITY,09/12/2014,CONTRACTORS AND CLAIM COSTS,SURFACE HAZARDS,CONSTRUCTION-MAIN CONTRACTORS,ALLIANCE CONSTRUCTION SOL,0000216235,434.25
DEPARTMENT OF ENERGY AND CLIMATE CHANGE,THE COAL AUTHORITY,09/12/2014,CONTRACTORS AND CLAIM COSTS,SURFACE HAZARDS,CONSTRUCTION-MAIN CONTRACTORS,ALLIANCE CONSTRUCTION SOL,0000216236,274.75
DEPARTMENT OF ENERGY AND CLIMATE CHANGE,THE COAL AUTHORITY,09/12/2014,CONTRACTORS AND CLAIM COSTS,SURFACE HAZARDS,"CONSTRUCTION-BLD,REPR&MAINTNCE",CLAIM FOR LOSS & DISTURBA,0000216244,1299.00
DEPARTMENT OF ENERGY AND CLIMATE CHANGE,THE COAL AUTHORITY,09/12/2014,CONTRACTORS AND CLAIM COSTS,SURFACE HAZARDS,PROF SER-OPERATIONAL SERVICES,"AGENTS FEES, MEETING & EX",0000216245,1011.00
DEPARTMENT OF ENERGY AND CLIMATE CHANGE,THE COAL AUTHORITY,10/12/2014,MILEAGE PAYMENTS,SURFACE HAZARDS,FUELS/LUBRCNT/GAS-FUELS,STAFF EXPENSES CONTROL,0000216247,63.45
DEPARTMENT OF ENERGY AND CLIMATE CHANGE,THE COAL AUTHORITY,10/12/2014,MILEAGE PAYMENTS,SURFACE HAZARDS,FUELS/LUBRCNT/GAS-FUELS,STAFF EXPENSES CONTROL,0000216250,11.90
DEPARTMENT OF ENERGY AND CLIMATE CHANGE,THE COAL AUTHORITY,10/12/2014,SUBSISTENCE ALLOWANCES,SURFACE HAZARDS,FACILITIES - FOOD,STAFF EXPENSES CONTROL,0000216250,19.20
DEPARTMENT OF ENERGY AND CLIMATE CHANGE,THE COAL AUTHORITY,10/12/2014,LEGAL COSTS,SURFACE HAZARDS,PROF SER-OPERATIONAL SERVICES,LAND REGISTRY,0000216252,54.00
DEPARTMENT OF ENERGY AND CLIMATE CHANGE,THE COAL AUTHORITY,09/12/2014,LEGAL COSTS,SURFACE HAZARDS,PROF SER-OPERATIONAL SERVICES,REGISTERS OF SCOTLAND,0000216254,14.00
DEPARTMENT OF ENERGY AND CLIMATE CHANGE,THE COAL AUTHORITY,10/12/2014,CONTRACTORS AND CLAIM COSTS,SURFACE HAZARDS,CONSTRUCTION-MAIN CONTRACTORS,GEOL-CONSULTANTS LTD,0000216257,1100.00
DEPARTMENT OF ENERGY AND CLIMATE CHANGE,THE COAL AUTHORITY,10/12/2014,CONTRACTORS AND CLAIM COSTS,SURFACE HAZARDS,CONSTRUCTION-MAIN CONTRACTORS,GEOL-CONSULTANTS LTD,0000216258,1485.00
DEPARTMENT OF ENERGY AND CLIMATE CHANGE,THE COAL AUTHORITY,10/12/2014,CONTRACTORS AND CLAIM COSTS,SURFACE HAZARDS,CONSTRUCTION-MAIN CONTRACTORS,GEOL-CONSULTANTS LTD,0000216259,1479.00
DEPARTMENT OF ENERGY AND CLIMATE CHANGE,THE COAL AUTHORITY,10/12/2014,CONTRACTORS AND CLAIM COSTS,SURFACE HAZARDS,CONSTRUCTION-MAIN CONTRACTORS,GEOL-CONSULTANTS LTD,0000216262,1300.00
DEPARTMENT OF ENERGY AND CLIMATE CHANGE,THE COAL AUTHORITY,10/12/2014,CONTRACTORS AND CLAIM COSTS,SURFACE HAZARDS,CONSTRUCTION-MAIN CONTRACTORS,GEOL-CONSULTANTS LTD,0000216264,1379.00
DEPARTMENT OF ENERGY AND CLIMATE CHANGE,THE COAL AUTHORITY,10/12/2014,CONTRACTORS AND CLAIM COSTS,SURFACE HAZARDS,CONSTRUCTION-MAIN CONTRACTORS,GEOL-CONSULTANTS LTD,0000216265,1745.00
DEPARTMENT OF ENERGY AND CLIMATE CHANGE,THE COAL AUTHORITY,10/12/2014,CONTRACTORS AND CLAIM COSTS,SURFACE HAZARDS,CONSTRUCTION-MAIN CONTRACTORS,GEOL-CONSULTANTS LTD,0000216266,1576.00
DEPARTMENT OF ENERGY AND CLIMATE CHANGE,THE COAL AUTHORITY,10/12/2014,CONTRACTORS AND CLAIM COSTS,SURFACE HAZARDS,CONSTRUCTION-MAIN CONTRACTORS,GEOL-CONSULTANTS LTD,0000216267,1865.30
DEPARTMENT OF ENERGY AND CLIMATE CHANGE,THE COAL AUTHORITY,10/12/2014,CONTRACTORS AND CLAIM COSTS,SURFACE HAZARDS,CONSTRUCTION-MAIN CONTRACTORS,GEOL-CONSULTANTS LTD,0000216268,1745.00
DEPARTMENT OF ENERGY AND CLIMATE CHANGE,THE COAL AUTHORITY,10/12/2014,CONTRACTORS AND CLAIM COSTS,SURFACE HAZARDS,CONSTRUCTION-MAIN CONTRACTORS,GEOL-CONSULTANTS LTD,0000216269,1745.00
DEPARTMENT OF ENERGY AND CLIMATE CHANGE,THE COAL AUTHORITY,10/12/2014,CONTRACTORS AND CLAIM COSTS,SURFACE HAZARDS,CONSTRUCTION-MAIN CONTRACTORS,GEOL-CONSULTANTS LTD,0000216270,1745.00
DEPARTMENT OF ENERGY AND CLIMATE CHANGE,THE COAL AUTHORITY,10/12/2014,CONTRACTORS AND CLAIM COSTS,SURFACE HAZARDS,CONSTRUCTION-MAIN CONTRACTORS,GEOL-CONSULTANTS LTD,0000216271,8138.00
DEPARTMENT OF ENERGY AND CLIMATE CHANGE,THE COAL AUTHORITY,10/12/2014,CONTRACTORS AND CLAIM COSTS,SURFACE HAZARDS,CONSTRUCTION-MAIN CONTRACTORS,GEOL-CONSULTANTS LTD,0000216272,1541.00
DEPARTMENT OF ENERGY AND CLIMATE CHANGE,THE COAL AUTHORITY,08/12/2014,PUBLICATIONS,SURFACE HAZARDS,OPRTNL GOODS&SERV-DEVLPNG MTRL,COMPANY BARCLAYCARD,0000216296,68.00
DEPARTMENT OF ENERGY AND CLIMATE CHANGE,THE COAL AUTHORITY,08/12/2014,OFFICE MACHINERY PURCHASED,SURFACE HAZARDS,OFFICE SOLUTIONS-OFFCE SPPLIES,COMPANY BARCLAYCARD,0000216297,10.23
